Workbook

Sheet Topics
A1: Northwest Accounting Educators Conference 2012
A2: Advanced Excel for Accounting and Finance
A3: Topics:
A4: 1 | B4: Efficiently Create Budget Using Mixed Cell References
A5: 2 | B5: Conditionally Format Row Using Mixed Cell References
A6: 3 | B6: Conditionally Format MIN / MAX Values In Each Row (Mixed Cell References)
A7: 4 | B7: SUMPRODUCT Function To Calculate Expected Value
A8: 5 | B8: SUMPRODUCT Function To Calculate Weighted Grades
A9: 6 | B9: SUMPRODUCT Function To Calculate Budgeted Income Statement
A10: 7 | B10: SUMPRODUCT Function To Calculate Weighted Average From Transactional Data
A11: 8 | B11: VLOOKUP Basics
A12: 9 | B12: VLOOKUP & MATCH Functions To Do Two-Way Lookup
A13: 10 | B13: VLOOKUP & MATCH Functions To Retrieve Record and Display Vertically or Horizontally
A14: 11 | B14: VLOOKUP For Variable Tax or Commission Calculation
A15: 12 | B15: Grade Table Subtract Two Lowest Before Assigning Decimal Grade
A16: 13 | B16: Array Formula: INDEX & MATCH Functions To Lookup First Value
A17: 14 | B17: Array Formula: LOOKUP Function To Lookup Last Value
A18: 15 | B18: PivotTable For Yearly Percentage Change Calculations
A19: 16 | B19: PivotTable For Running Total
A20: 17 | B20: PivotTable For Cross Tabular Calculations & % of Row & % of Column Calculations
A21: 18 | B21: Creating & Using Defined Names With Keyboard
A22: 19 | B22: Recorded Macro For Variable Height Tables: Using Relative & Absolute Cell References
A23: 20 | B23: Number Formatting For Formula Inputs
A25: Video Title at YouTube:
A26: Excel for Accounting and Finance - Northwest Accounting Educators Conference 2012 - NAE 2012
A27: Link:
A28: http://www.youtube.com/watch?v=u1ieHLBFxAU
A30: Loose this paper?
A31: Just seacrh Google for
A32: "Excel Northwest Accounting Educators Conference 2012"
A33: It should be the first link

Sheet (1)
A1: Topic: | B1: =INDIRECT("'Topics'!B"&SUBSTITUTE(REPLACE(CELL("filename",A1),1,SEARCH("(",CELL("filename",A1)),""),")","")+3) -> Efficiently Create Budget Using Mixed Cell References
A3: 1/2 Year Budget
B4: Jan | C4: Feb | D4: Mar | E4: Apr | F4: May | G4: June
A5: Sales
A6: =A18 -> Expense 1
A7: Expense 2
A8: Expense 3
A9: Expense 4
A10: Expense 5
A11: Expense 6
A12: Total Expense
A13: Net Income
A15: Assumption Table: Formula Inputs | D15: Notes:
A16: Jan Start | B16: 55000 | D16: F4 key toggle between 4 Cell References
A17: Rev % Increase | B17: 0.0475 | D17: When labels in formula table and assumption table are parallel, mixed
A18: Expense 1 | B18: 0.17 | D18: cell references can be used to reduce formula creation time.
A19: Expense 2 | B19: 0.205 | D19: Formula in cell B6 is =B$5*B$18
A20: Expense 3 | B20: 0.15
A21: Expense 4 | B21: 0.125 | D21: For more about Cell References see:
A22: Expense 5 | B22: 0.06 | D22: Excel Cell References 15 Examples Formulas, Conditional Formatting & Data Validation
A23: Expense 6 | B23: 0.025 | D23: http://www.youtube.com/watch?v=_PBPU_5jTUA
A31: 1/2 Year Budget
B32: Jan | C32: Feb | D32: Mar | E32: Apr | F32: May | G32: June
A33: Sales
A34: =A18 -> Expense 1
A35: Expense 2
A36: Expense 3
A37: Expense 4
A38: Expense 5
A39: Expense 6
A40: Total Expense
A41: Net Income
A43: Assumption Table: Formula Inputs | B43: Jan Start | C43: Rev % Increase | D43: Expense 1 | E43: Expense 2 | F43: Expense 3 | G43: Expense 4 | H43: Expense 5 | I43: Expense 6 | J43: Expense 7 | K43: Expense 8
B44: 55000 | C44: 0.0475 | D44: 0.17 | E44: 0.075 | F44: 0.05 | G44: 0.125 | H44: 0.06 | I44: 0.025 | J44: 0.035 | K44: 0.4

Sheet (1an)
A1: Topic: | B1: ='(1)'!B1 -> Efficiently Create Budget Using Mixed Cell References
A3: 1/2 Year Budget
B4: Jan | C4: Feb | D4: Mar | E4: Apr | F4: May | G4: June
A5: Sales | B5: =B16 -> 55000 | C5: =B5*(1+$B$17) -> 57612.5 | D5: =C5*(1+$B$17) -> 60349.09375 | E5: 63215.6757 | F5: 66218.4203 | G5: 69363.79526
A6: =A18 -> Expense 1 | B6: =B$5*$B18 -> 9350 | C6: =C$5*$B18 -> 9794.125 | D6: 10259.34594 | E6: 10746.66487 | F6: 11257.13145 | G6: 11791.84519
A7: Expense 2 | B7: =B$5*$B19 -> 11275 | C7: 11810.5625 | D7: 12371.56422 | E7: 12959.21352 | F7: 13574.77616 | G7: 14219.57803
A8: Expense 3 | B8: 8250 | C8: 8641.875 | D8: 9052.364063 | E8: 9482.351355 | F8: 9932.763045 | G8: 10404.56929
A9: Expense 4 | B9: 6875 | C9: 7201.5625 | D9: 7543.636719 | E9: 7901.959463 | F9: 8277.302537 | G9: 8670.474408
A10: Expense 5 | B10: 3300 | C10: 3456.75 | D10: 3620.945625 | E10: 3792.940542 | F10: 3973.105218 | G10: 4161.827716
A11: Expense 6 | B11: 1375 | C11: 1440.3125 | D11: 1508.727344 | E11: 1580.391893 | F11: 1655.460507 | G11: =G$5*$B23 -> 1734.094882
A12: Total Expense | B12: =SUM(B6:B11) -> 40425 | C12: =SUM(C6:C11) -> 42345.1875 | D12: 44356.58391 | E12: 46463.52164 | F12: 48670.53892 | G12: 50982.38952
A13: Net Income | B13: =B5-B12 -> 14575 | C13: =C5-C12 -> 15267.3125 | D13: 15992.50984 | E13: 16752.15406 | F13: 17547.88138 | G13: 18381.40574
A15: Assumption Table: Formula Inputs | D15: Notes:
A16: Jan Start | B16: 55000 | D16: F4 key toggle between 4 Cell References
A17: Rev % Increase | B17: 0.0475 | D17: When labels in formula table and assumption table are parallel, mixed
A18: Expense 1 | B18: 0.17 | D18: cell references can be used to reduce formula creation time.
A19: Expense 2 | B19: 0.205 | D19: Formula in cell B6 is =B$5*B$18
A20: Expense 3 | B20: 0.15
A21: Expense 4 | B21: 0.125 | D21: For more about Cell References see:
A22: Expense 5 | B22: 0.06 | D22: Excel Cell References 15 Examples Formulas, Conditional Formatting & Data Validation
A23: Expense 6 | B23: 0.025 | D23: http://www.youtube.com/watch?v=_PBPU_5jTUA
A31: 1/2 Year Budget
B32: Jan | C32: Feb | D32: Mar | E32: Apr | F32: May | G32: June
A33: Sales
A34: =A18 -> Expense 1
A35: Expense 2
A36: Expense 3
A37: Expense 4
A38: Expense 5
A39: Expense 6
A40: Total Expense
A41: Net Income
A43: Assumption Table: Formula Inputs | B43: Jan Start | C43: Rev % Increase | D43: Expense 1 | E43: Expense 2 | F43: Expense 3 | G43: Expense 4 | H43: Expense 5 | I43: Expense 6 | J43: Expense 7 | K43: Expense 8
B44: 55000 | C44: 0.0475 | D44: 0.17 | E44: 0.075 | F44: 0.05 | G44: 0.125 | H44: 0.06 | I44: 0.025 | J44: 0.035 | K44: 0.4

Sheet (2)
A1: Topic: | B1: =INDIRECT("'Topics'!B"&SUBSTITUTE(REPLACE(CELL("filename",A1),1,SEARCH("(",CELL("filename",A1)),""),")","")+3) -> Conditionally Format Row Using Mixed Cell References
P2: % | Q2: Decimal
A3: Name | B3: ID | C3: Total | D3: % Grade | E3: Grade | P3: 0 | Q3: 0
A4: Max | C4: 500 | D4: =C4/C$4 -> 1 | E4: =VLOOKUP(D4,$P$3:$Q$37,2) -> 4 | P4: 0.64 | Q4: 0.7
A5: Name 1 | B5: 890-4399-28 | C5: 470 | D5: =C5/C$4 -> 0.94 | E5: 3.7 | P5: 0.65 | Q5: 0.8
A6: Name 2 | B6: 890-6131-83 | C6: 436 | D6: 0.872 | E6: 3 | P6: 0.66 | Q6: 0.9
A7: Name 3 | B7: 890-8798-27 | C7: 403 | D7: 0.806 | E7: 2.3 | P7: 0.67 | Q7: 1
A8: Name 4 | B8: 890-9230-00 | C8: 423 | D8: 0.846 | E8: 2.7 | P8: 0.68 | Q8: 1.1
A9: Name 5 | B9: 890-2035-86 | C9: 375 | D9: 0.75 | E9: 1.8 | P9: 0.69 | Q9: 1.2
A10: Name 6 | B10: 890-1448-63 | C10: 392 | D10: 0.784 | E10: 2.1 | P10: 0.7 | Q10: 1.3
A11: Name 7 | B11: 890-2540-99 | C11: 476 | D11: 0.952 | E11: 3.8 | P11: 0.71 | Q11: 1.4
A12: Name 8 | B12: 890-3442-78 | C12: 442 | D12: 0.884 | E12: 3.1 | P12: 0.72 | Q12: 1.5
A13: Name 9 | B13: 890-9023-54 | C13: 359 | D13: 0.718 | E13: 1.4 | P13: 0.73 | Q13: 1.6
A14: Name 10 | B14: 890-9670-04 | C14: 407 | D14: 0.814 | E14: 2.4 | P14: 0.74 | Q14: 1.7
A15: Name 11 | B15: 890-9002-79 | C15: 442 | D15: 0.884 | E15: 3.1 | P15: 0.75 | Q15: 1.8
A16: Name 12 | B16: 890-1803-39 | C16: 382 | D16: 0.764 | E16: 1.9 | P16: 0.76 | Q16: 1.9
A17: Name 13 | B17: 890-0330-60 | C17: 466 | D17: 0.932 | E17: 3.6 | P17: 0.77 | Q17: 2
P18: 0.78 | Q18: 2.1
D19: Criteria | P19: 0.79 | Q19: 2.2
D20: Hurdle | E20: 3.5 | P20: 0.8 | Q20: 2.3
A21: Notes: | P21: 0.81 | Q21: 2.4
A22: Logical Formulas are formulas that yield TRUE or FALSE | P22: 0.82 | Q22: 2.5
A23: Comparative Operators are used in Logical Formulas | P23: 0.83 | Q23: 2.6
A24: Logical Formulas are the key to Advanced Conditional Formatting | P24: 0.84 | Q24: 2.7
A25: Mixed Cell References are required to highlight a particular row based on criteria | P25: 0.85 | Q25: 2.8
A26: Formula in cell G5 is =$E5>=$E$20 | P26: 0.86 | Q26: 2.9
P27: 0.87 | Q27: 3
A28: For more about Conditional Formatting see: | P28: 0.88 | Q28: 3.1
A29: Excel Magic Trick 787: Conditional Formatting Basic To Advanced (30 Examples) | P29: 0.89 | Q29: 3.2
A30: http://www.youtube.com/watch?v=LOaezdoyJDE | P30: 0.9 | Q30: 3.3
P31: 0.91 | Q31: 3.4
P32: 0.92 | Q32: 3.5
P33: 0.93 | Q33: 3.6
P34: 0.94 | Q34: 3.7
P35: 0.95 | Q35: 3.8
P36: 0.96 | Q36: 3.9
P37: 0.97 | Q37: 4

Sheet (2an)
A1: Topic: | B1: ='(2)'!B1 -> Conditionally Format Row Using Mixed Cell References
P2: % | Q2: Decimal
A3: Name | B3: ID | C3: Total | D3: % Grade | E3: Grade | P3: 0 | Q3: 0
A4: Max | C4: 500 | D4: =C4/C$4 -> 1 | E4: =VLOOKUP(D4,$P$3:$Q$37,2) -> 4 | P4: 0.64 | Q4: 0.7
A5: Name 1 | B5: 890-4399-28 | C5: 470 | D5: =C5/C$4 -> 0.94 | E5: 3.7 | G5: =$E5>=$E$20 -> TRUE | H5: =$E5>=$E$20 -> TRUE | I5: TRUE | J5: TRUE | K5: TRUE | P5: 0.65 | Q5: 0.8
A6: Name 2 | B6: 890-6131-83 | C6: 436 | D6: 0.872 | E6: 3 | G6: =$E6>=$E$20 -> FALSE | H6: FALSE | I6: FALSE | J6: FALSE | K6: FALSE | P6: 0.66 | Q6: 0.9
A7: Name 3 | B7: 890-8798-27 | C7: 403 | D7: 0.806 | E7: 2.3 | G7: FALSE | H7: FALSE | I7: FALSE | J7: FALSE | K7: FALSE | P7: 0.67 | Q7: 1
A8: Name 4 | B8: 890-9230-00 | C8: 423 | D8: 0.846 | E8: 2.7 | G8: FALSE | H8: FALSE | I8: FALSE | J8: FALSE | K8: FALSE | P8: 0.68 | Q8: 1.1
A9: Name 5 | B9: 890-2035-86 | C9: 375 | D9: 0.75 | E9: 1.8 | G9: FALSE | H9: FALSE | I9: FALSE | J9: FALSE | K9: FALSE | P9: 0.69 | Q9: 1.2
A10: Name 6 | B10: 890-1448-63 | C10: 392 | D10: 0.784 | E10: 2.1 | G10: FALSE | H10: FALSE | I10: FALSE | J10: FALSE | K10: FALSE | P10: 0.7 | Q10: 1.3
A11: Name 7 | B11: 890-2540-99 | C11: 476 | D11: 0.952 | E11: 3.8 | G11: TRUE | H11: TRUE | I11: TRUE | J11: TRUE | K11: TRUE | P11: 0.71 | Q11: 1.4
A12: Name 8 | B12: 890-3442-78 | C12: 442 | D12: 0.884 | E12: 3.1 | G12: FALSE | H12: FALSE | I12: FALSE | J12: FALSE | K12: FALSE | P12: 0.72 | Q12: 1.5
A13: Name 9 | B13: 890-9023-54 | C13: 359 | D13: 0.718 | E13: 1.4 | G13: FALSE | H13: FALSE | I13: FALSE | J13: FALSE | K13: FALSE | P13: 0.73 | Q13: 1.6
A14: Name 10 | B14: 890-9670-04 | C14: 407 | D14: 0.814 | E14: 2.4 | G14: FALSE | H14: FALSE | I14: FALSE | J14: FALSE | K14: FALSE | P14: 0.74 | Q14: 1.7
A15: Name 11 | B15: 890-9002-79 | C15: 442 | D15: 0.884 | E15: 3.1 | G15: FALSE | H15: FALSE | I15: FALSE | J15: FALSE | K15: FALSE | P15: 0.75 | Q15: 1.8
A16: Name 12 | B16: 890-1803-39 | C16: 382 | D16: 0.764 | E16: 1.9 | G16: FALSE | H16: FALSE | I16: FALSE | J16: FALSE | K16: FALSE | P16: 0.76 | Q16: 1.9
A17: Name 13 | B17: 890-0330-60 | C17: 466 | D17: 0.932 | E17: 3.6 | G17: TRUE | H17: TRUE | I17: TRUE | J17: TRUE | K17: TRUE | P17: 0.77 | Q17: 2
P18: 0.78 | Q18: 2.1
D19: Criteria | P19: 0.79 | Q19: 2.2
D20: Hurdle | E20: 3.5 | P20: 0.8 | Q20: 2.3
A21: Notes: | P21: 0.81 | Q21: 2.4
A22: Logical Formulas are formulas that yield TRUE or FALSE | P22: 0.82 | Q22: 2.5
A23: Comparative Operators are used in Logical Formulas | P23: 0.83 | Q23: 2.6
A24: Logical Formulas are the key to Advanced Conditional Formatting | P24: 0.84 | Q24: 2.7
A25: Mixed Cell References are required to highlight a particular row based on criteria | P25: 0.85 | Q25: 2.8
A26: Formula in cell G5 is =$E5>=$E$20 | P26: 0.86 | Q26: 2.9
P27: 0.87 | Q27: 3
A28: For more about Conditional Formatting see: | P28: 0.88 | Q28: 3.1
A29: Excel Magic Trick 787: Conditional Formatting Basic To Advanced (30 Examples) | P29: 0.89 | Q29: 3.2
A30: http://www.youtube.com/watch?v=LOaezdoyJDE | P30: 0.9 | Q30: 3.3
P31: 0.91 | Q31: 3.4
P32: 0.92 | Q32: 3.5
P33: 0.93 | Q33: 3.6
P34: 0.94 | Q34: 3.7
P35: 0.95 | Q35: 3.8
P36: 0.96 | Q36: 3.9
P37: 0.97 | Q37: 4

Sheet (3)
A1: Topic: | B1: =INDIRECT("'Topics'!B"&SUBSTITUTE(REPLACE(CELL("filename",A1),1,SEARCH("(",CELL("filename",A1)),""),")","")+3) -> Conditionally Format MIN / MAX Values In Each Row (Mixed Cell References)
A3: Name | B3: ID | C3: Quiz 1 | D3: Quiz 2 | E3: Quiz 3 | F3: Quiz 4
A4: Max | C4: 50 | D4: 50 | E4: 50 | F4: 50
A5: Name 1 | B5: 890-4399-28 | C5: 45 | D5: 44 | E5: 49 | F5: 46
A6: Name 2 | B6: 890-6131-83 | C6: 49 | D6: 40 | E6: 47 | F6: 39
A7: Name 3 | B7: 890-8798-27 | C7: 27 | D7: 43 | E7: 24 | F7: 36
A8: Name 4 | B8: 890-9230-00 | C8: 44 | D8: 41 | E8: 45 | F8: 49
A9: Name 5 | B9: 890-2035-86 | C9: 50 | D9: 22 | E9: 50 | F9: 49
A10: Name 6 | B10: 890-1448-63 | C10: 38 | D10: 26 | E10: 42 | F10: 38
A11: Name 7 | B11: 890-2540-99 | C11: 50 | D11: 44 | E11: 48 | F11: 49
A12: Name 8 | B12: 890-3442-78 | C12: 40 | D12: 41 | E12: 50 | F12: 49
A13: Name 9 | B13: 890-9023-54 | C13: 50 | D13: 42 | E13: 49 | F13: 35
A14: Name 10 | B14: 890-9670-04 | C14: 48 | D14: 50 | E14: 45 | F14: 41
A15: Name 11 | B15: 890-9002-79 | C15: 43 | D15: 32 | E15: 42 | F15: 45
A16: Name 12 | B16: 890-1803-39 | C16: 24 | D16: 39 | E16: 26 | F16: 37
A17: Name 13 | B17: 890-0330-60 | C17: 50 | D17: 45 | E17: 50 | F17: 45
A19: Note:
A20: Formula in cell H5 is =MAX($C5:$F5)=C5
A22: Name | B22: ID | C22: Quiz 1 | D22: Quiz 2 | E22: Quiz 3 | F22: Quiz 4
A23: Max | C23: 50 | D23: 50 | E23: 50 | F23: 50
A24: Name 1 | B24: 890-4399-28 | C24: 45 | D24: 44 | E24: 49 | F24: 46 | H24: =MIN($C24:$F24)=C24 -> FALSE | I24: =MIN($C24:$F24)=D24 -> TRUE | J24: =MIN($C24:$F24)=E24 -> FALSE | K24: =MIN($C24:$F24)=F24 -> FALSE
A25: Name 2 | B25: 890-6131-83 | C25: 49 | D25: 40 | E25: 47 | F25: 39 | H25: FALSE | I25: FALSE | J25: FALSE | K25: TRUE
A26: Name 3 | B26: 890-8798-27 | C26: 27 | D26: 43 | E26: 24 | F26: 36 | H26: FALSE | I26: FALSE | J26: TRUE | K26: FALSE
A27: Name 4 | B27: 890-9230-00 | C27: 44 | D27: 41 | E27: 45 | F27: 49 | H27: FALSE | I27: TRUE | J27: FALSE | K27: FALSE
A28: Name 5 | B28: 890-2035-86 | C28: 50 | D28: 22 | E28: 50 | F28: 49 | H28: FALSE | I28: TRUE | J28: FALSE | K28: FALSE
A29: Name 6 | B29: 890-1448-63 | C29: 38 | D29: 26 | E29: 42 | F29: 38 | H29: FALSE | I29: TRUE | J29: FALSE | K29: FALSE
A30: Name 7 | B30: 890-2540-99 | C30: 50 | D30: 44 | E30: 48 | F30: 49 | H30: FALSE | I30: TRUE | J30: FALSE | K30: FALSE
A31: Name 8 | B31: 890-3442-78 | C31: 40 | D31: 41 | E31: 50 | F31: 49 | H31: TRUE | I31: FALSE | J31: FALSE | K31: FALSE
A32: Name 9 | B32: 890-9023-54 | C32: 50 | D32: 42 | E32: 49 | F32: 35 | H32: FALSE | I32: FALSE | J32: FALSE | K32: TRUE
A33: Name 10 | B33: 890-9670-04 | C33: 48 | D33: 50 | E33: 45 | F33: 41 | H33: FALSE | I33: FALSE | J33: FALSE | K33: TRUE
A34: Name 11 | B34: 890-9002-79 | C34: 43 | D34: 32 | E34: 42 | F34: 45 | H34: FALSE | I34: TRUE | J34: FALSE | K34: FALSE
A35: Name 12 | B35: 890-1803-39 | C35: 24 | D35: 39 | E35: 26 | F35: 37 | H35: TRUE | I35: FALSE | J35: FALSE | K35: FALSE
A36: Name 13 | B36: 890-0330-60 | C36: 50 | D36: 45 | E36: 50 | F36: 45 | H36: FALSE | I36: TRUE | J36: FALSE | K36: TRUE
A38: Note:
A39: Formula in cell H24 is =MIN($C24:$F24)=C24
A40: For more about Conditional Formatting see:
A41: Excel Magic Trick 787: Conditional Formatting Basic To Advanced (30 Examples)
A42: http://www.youtube.com/watch?v=LOaezdoyJDE

Sheet (3an)
A1: Topic: | B1: ='(3)'!B1 -> Conditionally Format MIN / MAX Values In Each Row (Mixed Cell References)
A3: Name | B3: ID | C3: Quiz 1 | D3: Quiz 2 | E3: Quiz 3 | F3: Quiz 4
A4: Max | C4: 50 | D4: 50 | E4: 50 | F4: 50
A5: Name 1 | B5: 890-4399-28 | C5: 45 | D5: 50 | E5: 49 | F5: 46 | H5: =MAX($C5:$F5)=C5 -> FALSE | I5: =MAX($C5:$F5)=D5 -> TRUE | J5: FALSE | K5: FALSE
A6: Name 2 | B6: 890-6131-83 | C6: 49 | D6: 40 | E6: 47 | F6: 39 | H6: =MAX($C6:$F6)=C6 -> TRUE | I6: FALSE | J6: FALSE | K6: FALSE
A7: Name 3 | B7: 890-8798-27 | C7: 27 | D7: 43 | E7: 24 | F7: 36 | H7: FALSE | I7: TRUE | J7: FALSE | K7: FALSE
A8: Name 4 | B8: 890-9230-00 | C8: 44 | D8: 41 | E8: 45 | F8: 49 | H8: FALSE | I8: FALSE | J8: FALSE | K8: TRUE
A9: Name 5 | B9: 890-2035-86 | C9: 50 | D9: 22 | E9: 50 | F9: 49 | H9: TRUE | I9: FALSE | J9: TRUE | K9: FALSE
A10: Name 6 | B10: 890-1448-63 | C10: 38 | D10: 26 | E10: 42 | F10: 38 | H10: FALSE | I10: FALSE | J10: TRUE | K10: FALSE
A11: Name 7 | B11: 890-2540-99 | C11: 50 | D11: 44 | E11: 48 | F11: 49 | H11: TRUE | I11: FALSE | J11: FALSE | K11: FALSE
A12: Name 8 | B12: 890-3442-78 | C12: 40 | D12: 41 | E12: 50 | F12: 49 | H12: FALSE | I12: FALSE | J12: TRUE | K12: FALSE
A13: Name 9 | B13: 890-9023-54 | C13: 50 | D13: 42 | E13: 49 | F13: 35 | H13: TRUE | I13: FALSE | J13: FALSE | K13: FALSE
A14: Name 10 | B14: 890-9670-04 | C14: 48 | D14: 50 | E14: 45 | F14: 41 | H14: FALSE | I14: TRUE | J14: FALSE | K14: FALSE
A15: Name 11 | B15: 890-9002-79 | C15: 43 | D15: 32 | E15: 42 | F15: 45 | H15: FALSE | I15: FALSE | J15: FALSE | K15: TRUE
A16: Name 12 | B16: 890-1803-39 | C16: 24 | D16: 39 | E16: 26 | F16: 37 | H16: FALSE | I16: TRUE | J16: FALSE | K16: FALSE
A17: Name 13 | B17: 890-0330-60 | C17: 50 | D17: 45 | E17: 50 | F17: 45 | H17: TRUE | I17: FALSE | J17: TRUE | K17: FALSE
A19: Note:
A20: Formula in cell H5 is =MAX($C5:$F5)=C5
A22: Name | B22: ID | C22: Quiz 1 | D22: Quiz 2 | E22: Quiz 3 | F22: Quiz 4
A23: Max | C23: 50 | D23: 50 | E23: 50 | F23: 50
A24: Name 1 | B24: 890-4399-28 | C24: 45 | D24: 44 | E24: 12 | F24: 46 | H24: =MIN($C24:$F24)=C24 -> FALSE | I24: FALSE | J24: TRUE | K24: FALSE
A25: Name 2 | B25: 890-6131-83 | C25: 49 | D25: 40 | E25: 47 | F25: 39 | H25: FALSE | I25: FALSE | J25: FALSE | K25: TRUE
A26: Name 3 | B26: 890-8798-27 | C26: 27 | D26: 43 | E26: 24 | F26: 36 | H26: FALSE | I26: FALSE | J26: TRUE | K26: FALSE
A27: Name 4 | B27: 890-9230-00 | C27: 44 | D27: 41 | E27: 45 | F27: 49 | H27: FALSE | I27: TRUE | J27: FALSE | K27: FALSE
A28: Name 5 | B28: 890-2035-86 | C28: 50 | D28: 22 | E28: 50 | F28: 49 | H28: FALSE | I28: TRUE | J28: FALSE | K28: FALSE
A29: Name 6 | B29: 890-1448-63 | C29: 38 | D29: 26 | E29: 42 | F29: 38 | H29: FALSE | I29: TRUE | J29: FALSE | K29: FALSE
A30: Name 7 | B30: 890-2540-99 | C30: 50 | D30: 44 | E30: 48 | F30: 49 | H30: FALSE | I30: TRUE | J30: FALSE | K30: FALSE
A31: Name 8 | B31: 890-3442-78 | C31: 40 | D31: 41 | E31: 50 | F31: 49 | H31: TRUE | I31: FALSE | J31: FALSE | K31: FALSE
A32: Name 9 | B32: 890-9023-54 | C32: 50 | D32: 42 | E32: 49 | F32: 35 | H32: FALSE | I32: FALSE | J32: FALSE | K32: TRUE
A33: Name 10 | B33: 890-9670-04 | C33: 48 | D33: 50 | E33: 45 | F33: 41 | H33: FALSE | I33: FALSE | J33: FALSE | K33: TRUE
A34: Name 11 | B34: 890-9002-79 | C34: 43 | D34: 32 | E34: 42 | F34: 45 | H34: FALSE | I34: TRUE | J34: FALSE | K34: FALSE
A35: Name 12 | B35: 890-1803-39 | C35: 24 | D35: 39 | E35: 26 | F35: 37 | H35: TRUE | I35: FALSE | J35: FALSE | K35: FALSE
A36: Name 13 | B36: 890-0330-60 | C36: 50 | D36: 45 | E36: 50 | F36: 45 | H36: FALSE | I36: TRUE | J36: FALSE | K36: TRUE
A38: Note:
A39: Formula in cell H24 is =MIN($C24:$F24)=C24
A40: For more about Conditional Formatting see:
A41: Excel Magic Trick 787: Conditional Formatting Basic To Advanced (30 Examples)
A42: http://www.youtube.com/watch?v=LOaezdoyJDE

Sheet (4)
A1: Topic: | B1: =INDIRECT("'Topics'!B"&SUBSTITUTE(REPLACE(CELL("filename",A1),1,SEARCH("(",CELL("filename",A1)),""),")","")+3) -> SUMPRODUCT Function To Calculate Expected Value
G3: PRODUCT:
A4: State of Economy | B4: Prob. Of State of Economy | C4: Stock A Return | E4: Long Way | G4: Step 1: Multiply Two Columns
A5: Boom | B5: 0.15 | C5: 0.15 | G5: =B5&" * "&C5&" = "&B5*C5 -> 0.15 * 0.15 = 0.0225
A6: Normal | B6: =1-SUM(B5,B7) -> 0.3 | C6: 0.07 | G6: =B6&" * "&C6&" = "&B6*C6 -> 0.3 * 0.07 = 0.021
A7: Bust | B7: 0.55 | C7: -0.02 | G7: =B7&" * "&C7&" = "&B7*C7 -> 0.55 * -0.02 = -0.011
B8: E(Ri) | G8: SUM:
G9: Step 2: Add
C10: Long Way | G10: =B5*C5&" + "&B6*C6&" + "&B7*C7&" = "&SUMPRODUCT(B5:B7,C5:C7) -> 0.0225 + 0.021 + -0.011 = 0.0325
A13: State of Economy | B13: Prob. Of State of Economy | C13: Stock A Return | D13: Stock B Return | E13: Stock C Return
A14: Boom | B14: 0.15 | C14: 0.15 | D14: 0.25 | E14: 0.11
A15: Normal | B15: =1-SUM(B14,B16) -> 0.3 | C15: 0.07 | D15: 0.13 | E15: 0.1
A16: Bust | B16: 0.55 | C16: -0.02 | D16: -0.135 | E16: 0.03
B17: E(Ri)
A19: Notes:
A20: SUMPRODUCT allows "array calculations".
A21: Formula in cell C8 is =SUMPRODUCT(B5:B7,C5:C7)
A22: Formula in cell C17 is =SUMPRODUCT($B$14:$B$16,C14:C16)
A23: For more about SUMPRODUCT, see these video:
A24: Excel Magic Trick 777: SUMPRODUCT Function -- Basics To Advanced (14 Examples)
A25: http://www.youtube.com/watch?v=vxpeEf8MYaY
A26: Excel Magic Trick 777.5: SUMPRODUCT Function OR Criteria, 2 Tips: TRUE+FALSE & TRUE+TRUE
A27: http://www.youtube.com/watch?v=VBGN0MbNuzM
A28: Excel Magic Trick 777.75: SUMPRODUCT Solves: SUMIF Won't Calculate From Closed Workbook
A29: http://www.youtube.com/watch?v=H40-xBVtl-Q
A30: For more about Expected Value, see:
A31: Excel Finance Class 104: Expected Return & Standard Deviation For 1 Stock -- Estimating Future
A32: http://www.youtube.com/watch?v=vMW_zw3gE7k
A33: Excel Finance Class 105: Expected Return & Standard Deviation For Portfolio -- Estimating Future
A34: http://www.youtube.com/watch?v=-Gj97DDvMWk
A35: Excel Magic Trick 747: Expected Returns and Standard Deviation Single Cell Array Formula
A36: http://www.youtube.com/watch?v=OhFH04_ufu4

Sheet (4an)
A1: Topic: | B1: ='(4)'!B1 -> SUMPRODUCT Function To Calculate Expected Value
G3: PRODUCT:
A4: State of Economy | B4: Prob. Of State of Economy | C4: Stock A Return | E4: Long Way | G4: Step 1: Multiply Two Columns
A5: Boom | B5: 0.15 | C5: 0.15 | E5: =B5*C5 -> 0.0225 | G5: =B5&" * "&C5&" = "&B5*C5 -> 0.15 * 0.15 = 0.0225
A6: Normal | B6: =1-SUM(B5,B7) -> 0.3 | C6: 0.07 | E6: =B6*C6 -> 0.021 | G6: =B6&" * "&C6&" = "&B6*C6 -> 0.3 * 0.07 = 0.021
A7: Bust | B7: 0.55 | C7: -0.02 | E7: =B7*C7 -> -0.011 | G7: =B7&" * "&C7&" = "&B7*C7 -> 0.55 * -0.02 = -0.011
B8: E(Ri) | C8: =SUMPRODUCT(B5:B7,C5:C7) -> 0.0325 | E8: =SUM(E5:E7) -> 0.0325 | G8: SUM:
G9: Step 2: Add
C10: Long Way | D10: =C5*B5+C6*B6+C7*B7 -> 0.0325 | G10: =B5*C5&" + "&B6*C6&" + "&B7*C7&" = "&SUMPRODUCT(B5:B7,C5:C7) -> 0.0225 + 0.021 + -0.011 = 0.0325
A13: State of Economy | B13: Prob. Of State of Economy | C13: Stock A Return | D13: Stock B Return | E13: Stock C Return
A14: Boom | B14: 0.15 | C14: 0.15 | D14: 0.25 | E14: 0.11
A15: Normal | B15: =1-SUM(B14,B16) -> 0.3 | C15: 0.07 | D15: 0.13 | E15: 0.1
A16: Bust | B16: 0.55 | C16: -0.02 | D16: -0.135 | E16: 0.03
B17: E(Ri) | C17: =SUMPRODUCT($B$14:$B$16,C14:C16) -> 0.0325 | D17: =SUMPRODUCT($B$14:$B$16,D14:D16) -> 0.00225 | E17: 0.063
A19: Notes:
A20: SUMPRODUCT allows "array calculations".
A21: Formula in cell C8 is =SUMPRODUCT(B5:B7,C5:C7)
A22: Formula in cell C17 is =SUMPRODUCT($B$14:$B$16,C14:C16)
A23: For more about SUMPRODUCT, see these video:
A24: Excel Magic Trick 777: SUMPRODUCT Function -- Basics To Advanced (14 Examples)
A25: http://www.youtube.com/watch?v=vxpeEf8MYaY
A26: Excel Magic Trick 777.5: SUMPRODUCT Function OR Criteria, 2 Tips: TRUE+FALSE & TRUE+TRUE
A27: http://www.youtube.com/watch?v=VBGN0MbNuzM
A28: Excel Magic Trick 777.75: SUMPRODUCT Solves: SUMIF Won't Calculate From Closed Workbook
A29: http://www.youtube.com/watch?v=H40-xBVtl-Q
A30: For more about Expected Value, see:
A31: Excel Finance Class 104: Expected Return & Standard Deviation For 1 Stock -- Estimating Future
A32: http://www.youtube.com/watch?v=vMW_zw3gE7k
A33: Excel Finance Class 105: Expected Return & Standard Deviation For Portfolio -- Estimating Future
A34: http://www.youtube.com/watch?v=-Gj97DDvMWk
A35: Excel Magic Trick 747: Expected Returns and Standard Deviation Single Cell Array Formula
A36: http://www.youtube.com/watch?v=OhFH04_ufu4

Sheet (5)
A1: Topic: | B1: =INDIRECT("'Topics'!B"&SUBSTITUTE(REPLACE(CELL("filename",A1),1,SEARCH("(",CELL("filename",A1)),""),")","")+3) -> SUMPRODUCT Function To Calculate Weighted Grades
K2: Weights
A3: Name | B3: ID | C3: Test 1 | D3: Test 2 | E3: Test 3 | F3: Total | G3: % | I3: Long Way | K3: Test 1 | L3: Test 2 | M3: Test 3 | N3: Total?
A4: Max | C4: 100 | D4: 100 | E4: 250 | K4: 0.25 | L4: 0.25 | M4: =1-SUM(K4:L4) -> 0.5 | N4: =SUM(K4:M4) -> 1
A5: Name 1 | B5: 890-4399-28 | C5: 82 | D5: 80 | E5: 239
A6: Name 2 | B6: 890-6131-83 | C6: 75 | D6: 89 | E6: 199
A7: Name 3 | B7: 890-8798-27 | C7: 80 | D7: 82 | E7: 231
A8: Name 4 | B8: 890-9230-00 | C8: 98 | D8: 24 | E8: 0
A9: Name 5 | B9: 890-2035-86 | C9: 58 | D9: 11 | E9: 236
A10: Name 6 | B10: 890-1448-63 | C10: 0 | D10: 22 | E10: 182
A11: Name 7 | B11: 890-2540-99 | C11: 97 | D11: 98 | E11: 245
A12: Name 8 | B12: 890-3442-78 | C12: 53 | D12: 18 | E12: 234
A13: Name 9 | B13: 890-9023-54 | C13: 70 | D13: 87 | E13: 198
A14: Name 10 | B14: 890-9670-04 | C14: 70 | D14: 95 | E14: 201
A15: Name 11 | B15: 890-9002-79 | C15: 83 | D15: 8 | E15: 224
A16: Name 12 | B16: 890-1803-39 | C16: 91 | D16: 99 | E16: 248
A17: Name 13 | B17: 890-0330-60 | C17: 71 | D17: 82 | E17: 214
A19: Note:
A20: Formula in cell F4 is =SUMPRODUCT(C4:E4,$K$4:$M$4)
A22: For more about Grading Formulas in Excel, see this playlist of videos:
A23: Excel Grade Book Examples
A24: http://www.youtube.com/course?list=EC55EE6D4F281D8363
A26: For more about SUMPRODUCT, see these video:
A27: Excel Magic Trick 777: SUMPRODUCT Function -- Basics To Advanced (14 Examples)
A28: http://www.youtube.com/watch?v=vxpeEf8MYaY
A29: Excel Magic Trick 777.5: SUMPRODUCT Function OR Criteria, 2 Tips: TRUE+FALSE & TRUE+TRUE
A30: http://www.youtube.com/watch?v=VBGN0MbNuzM
A31: Excel Magic Trick 777.75: SUMPRODUCT Solves: SUMIF Won't Calculate From Closed Workbook
A32: http://www.youtube.com/watch?v=H40-xBVtl-Q

Sheet (5an)
A1: Topic: | B1: ='(5)'!B1 -> SUMPRODUCT Function To Calculate Weighted Grades
K2: Weights
A3: Name | B3: ID | C3: Test 1 | D3: Test 2 | E3: Test 3 | F3: Total | G3: % | I3: Long Way | K3: Test 1 | L3: Test 2 | M3: Test 3 | N3: Total?
A4: Max | C4: 100 | D4: 100 | E4: 250 | F4: =SUMPRODUCT(C4:E4,$K$4:$M$4) -> 175 | G4: =F4/$F$4 -> 1 | I4: =C4*$K$4+D4*$L$4+E4*$M$4 -> 175 | K4: 0.25 | L4: 0.25 | M4: =1-SUM(K4:L4) -> 0.5 | N4: =SUM(K4:M4) -> 1
A5: Name 1 | B5: 890-4399-28 | C5: 82 | D5: 80 | E5: 239 | F5: =SUMPRODUCT(C5:E5,$K$4:$M$4) -> 160 | G5: =F5/$F$4 -> 0.9142857143 | I5: =C5*$K$4+D5*$L$4+E5*$M$4 -> 160
A6: Name 2 | B6: 890-6131-83 | C6: 75 | D6: 89 | E6: 199 | F6: 140.5 | G6: 0.8028571429 | I6: 140.5
A7: Name 3 | B7: 890-8798-27 | C7: 80 | D7: 82 | E7: 231 | F7: 156 | G7: 0.8914285714 | I7: 156
A8: Name 4 | B8: 890-9230-00 | C8: 98 | D8: 24 | E8: 0 | F8: 30.5 | G8: 0.1742857143 | I8: 30.5
A9: Name 5 | B9: 890-2035-86 | C9: 58 | D9: 11 | E9: 236 | F9: 135.25 | G9: 0.7728571429 | I9: 135.25
A10: Name 6 | B10: 890-1448-63 | C10: 0 | D10: 22 | E10: 182 | F10: 96.5 | G10: 0.5514285714 | I10: 96.5
A11: Name 7 | B11: 890-2540-99 | C11: 97 | D11: 98 | E11: 245 | F11: 171.25 | G11: 0.9785714286 | I11: 171.25
A12: Name 8 | B12: 890-3442-78 | C12: 53 | D12: 18 | E12: 234 | F12: 134.75 | G12: 0.77 | I12: 134.75
A13: Name 9 | B13: 890-9023-54 | C13: 70 | D13: 87 | E13: 198 | F13: 138.25 | G13: 0.79 | I13: 138.25
A14: Name 10 | B14: 890-9670-04 | C14: 70 | D14: 95 | E14: 201 | F14: 141.75 | G14: 0.81 | I14: 141.75
A15: Name 11 | B15: 890-9002-79 | C15: 83 | D15: 8 | E15: 224 | F15: 134.75 | G15: 0.77 | I15: 134.75
A16: Name 12 | B16: 890-1803-39 | C16: 91 | D16: 99 | E16: 248 | F16: 171.5 | G16: 0.98 | I16: 171.5
A17: Name 13 | B17: 890-0330-60 | C17: 71 | D17: 82 | E17: 214 | F17: 145.25 | G17: 0.83 | I17: 145.25
A19: Note:
A20: Formula in cell F4 is =SUMPRODUCT(C4:E4,$K$4:$M$4)
A22: For more about Grading Formulas in Excel, see this playlist of videos:
A23: Excel Grade Book Examples
A24: http://www.youtube.com/course?list=EC55EE6D4F281D8363
A26: For more about SUMPRODUCT, see these video:
A27: Excel Magic Trick 777: SUMPRODUCT Function -- Basics To Advanced (14 Examples)
A28: http://www.youtube.com/watch?v=vxpeEf8MYaY
A29: Excel Magic Trick 777.5: SUMPRODUCT Function OR Criteria, 2 Tips: TRUE+FALSE & TRUE+TRUE
A30: http://www.youtube.com/watch?v=VBGN0MbNuzM
A31: Excel Magic Trick 777.75: SUMPRODUCT Solves: SUMIF Won't Calculate From Closed Workbook
A32: http://www.youtube.com/watch?v=H40-xBVtl-Q

Sheet (6)
A1: Topic: | B1: =INDIRECT("'Topics'!B"&SUBSTITUTE(REPLACE(CELL("filename",A1),1,SEARCH("(",CELL("filename",A1)),""),")","")+3) -> SUMPRODUCT Function To Calculate Budgeted Income Statement
A3: From past Accounting Data, Product Frequency Table
A4: Units Purchased | B4: Probability | L4: (X - Mean)^2 | N4: Mean
A5: 500 | B5: 0.1 | L5: =(A5-$N$5)^2 -> 84100 | N5: =SUMPRODUCT(A5:A11,B5:B11) -> 790
A6: 600 | B6: 0.15 | L6: 36100
A7: 700 | B7: 0.15 | L7: 8100
A8: 800 | B8: 0.2 | L8: 100
A9: 900 | B9: 0.2 | L9: 12100
A10: 1000 | B10: 0.15 | L10: 44100
A11: 1100 | B11: 0.05 | L11: 96100
A12: Total | B12: =SUM(B5:B11) -> 1
F13: Formulas:
A14: For Budget Monthly Order Quantity | C14: Weighted Average = Mean = Expected Value | F14: =SUMPRODUCT(A5:A11,B5:B11)
A16: Price per unit | B16: 125 | L16: SD | M16: =SQRT(SUMPRODUCT((A5:A11-B14)^2,B5:B11)) -> 808.084154
A17: Cost per unit | B17: 60
A18: Assumed Units sold | B18: 500
A19: Sales | F19: =B18*B16
A20: Expenses | F20: =B17*B14
A21: Gross Profit | F21: =B19-B20
A23: For more about SUMPRODUCT, see these video:
A24: Excel Magic Trick 777: SUMPRODUCT Function -- Basics To Advanced (14 Examples)
A25: http://www.youtube.com/watch?v=vxpeEf8MYaY
A26: Excel Magic Trick 777.5: SUMPRODUCT Function OR Criteria, 2 Tips: TRUE+FALSE & TRUE+TRUE
A27: http://www.youtube.com/watch?v=VBGN0MbNuzM
A28: Excel Magic Trick 777.75: SUMPRODUCT Solves: SUMIF Won't Calculate From Closed Workbook
A29: http://www.youtube.com/watch?v=H40-xBVtl-Q
B35: All Values
B36: 500
B37: 500
B38: 500
B39: 500
B40: 500
B41: 500
B42: 500
B43: 500
B44: 500
B45: 500
B46: 600
B47: 600
B48: 600
B49: 600
B50: 600
B51: 600
B52: 600
B53: 600
B54: 600
B55: 600
B56: 600
B57: 600
B58: 600
B59: 600
B60: 600
B61: 700
B62: 700
B63: 700
B64: 700
B65: 700
B66: 700
B67: 700
B68: 700
B69: 700
B70: 700
B71: 700
B72: 700
B73: 700
B74: 700
B75: 700
B76: 800
B77: 800
B78: 800
B79: 800
B80: 800
B81: 800
B82: 800
B83: 800
B84: 800
B85: 800
B86: 800
B87: 800
B88: 800
B89: 800
B90: 800
B91: 800
B92: 800
B93: 800
B94: 800
B95: 800
B96: 900
B97: 900
B98: 900
B99: 900
B100: 900
B101: 900
B102: 900
B103: 900
B104: 900
B105: 900
B106: 900
B107: 900
B108: 900
B109: 900
B110: 900
B111: 900
B112: 900
B113: 900
B114: 900
B115: 900
B116: 1000
B117: 1000
B118: 1000
B119: 1000
B120: 1000
B121: 1000
B122: 1000
B123: 1000
B124: 1000
B125: 1000
B126: 1000
B127: 1000
B128: 1000
B129: 1000
B130: 1000
B131: 1100
B132: 1100
B133: 1100
B134: 1100
B135: 1100
A136: VAR.P | B136: =_xlfn.VAR.P(B36:B135) -> 28900
A137: STDEV.S | B137: =_xlfn.STDEV.P(B36:B135) -> 170

Sheet (6an)
A1: Topic: | B1: ='(6)'!B1 -> SUMPRODUCT Function To Calculate Budgeted Income Statement
A3: From past Accounting Data, Product Frequency Table
A4: Units Purchased | B4: Probability | L4: (X - Mean)^2 | N4: Mean
A5: 500 | B5: 0.1 | L5: =(A5-$N$5)^2 -> 84100 | N5: =SUMPRODUCT(A5:A11,B5:B11) -> 790
A6: 600 | B6: 0.15 | L6: 36100
A7: 700 | B7: 0.15 | L7: 8100
A8: 800 | B8: 0.2 | L8: 100
A9: 900 | B9: 0.2 | L9: 12100
A10: 1000 | B10: 0.15 | L10: 44100
A11: 1100 | B11: 0.05 | L11: 96100
A12: Total | B12: =SUM(B5:B11) -> 1
F13: Formulas:
A14: For Budget Monthly Order Quantity | B14: =SUMPRODUCT(A5:A11,B5:B11) -> 790 | C14: Weighted Average = Mean = Expected Value | F14: =SUMPRODUCT(A5:A11,B5:B11)
A16: Price per unit | B16: 125 | L16: SD | M16: =SQRT(SUMPRODUCT((A5:A11-B14)^2,B5:B11)) -> 170
A17: Cost per unit | B17: 60
A18: Assumed Units sold | B18: 500
A19: Sales | B19: =B18*B16 -> 62500 | F19: =B18*B16
A20: Expenses | B20: =B17*B14 -> 47400 | F20: =B17*B14
A21: Gross Profit | B21: =B19-B20 -> 15100 | F21: =B19-B20
A23: For more about SUMPRODUCT, see these video:
A24: Excel Magic Trick 777: SUMPRODUCT Function -- Basics To Advanced (14 Examples)
A25: http://www.youtube.com/watch?v=vxpeEf8MYaY
A26: Excel Magic Trick 777.5: SUMPRODUCT Function OR Criteria, 2 Tips: TRUE+FALSE & TRUE+TRUE
A27: http://www.youtube.com/watch?v=VBGN0MbNuzM
A28: Excel Magic Trick 777.75: SUMPRODUCT Solves: SUMIF Won't Calculate From Closed Workbook
A29: http://www.youtube.com/watch?v=H40-xBVtl-Q
B35: All Values
B36: 500
B37: 500
B38: 500
B39: 500
B40: 500
B41: 500
B42: 500
B43: 500
B44: 500
B45: 500
B46: 600
B47: 600
B48: 600
B49: 600
B50: 600
B51: 600
B52: 600
B53: 600
B54: 600
B55: 600
B56: 600
B57: 600
B58: 600
B59: 600
B60: 600
B61: 700
B62: 700
B63: 700
B64: 700
B65: 700
B66: 700
B67: 700
B68: 700
B69: 700
B70: 700
B71: 700
B72: 700
B73: 700
B74: 700
B75: 700
B76: 800
B77: 800
B78: 800
B79: 800
B80: 800
B81: 800
B82: 800
B83: 800
B84: 800
B85: 800
B86: 800
B87: 800
B88: 800
B89: 800
B90: 800
B91: 800
B92: 800
B93: 800
B94: 800
B95: 800
B96: 900
B97: 900
B98: 900
B99: 900
B100: 900
B101: 900
B102: 900
B103: 900
B104: 900
B105: 900
B106: 900
B107: 900
B108: 900
B109: 900
B110: 900
B111: 900
B112: 900
B113: 900
B114: 900
B115: 900
B116: 1000
B117: 1000
B118: 1000
B119: 1000
B120: 1000
B121: 1000
B122: 1000
B123: 1000
B124: 1000
B125: 1000
B126: 1000
B127: 1000
B128: 1000
B129: 1000
B130: 1000
B131: 1100
B132: 1100
B133: 1100
B134: 1100
B135: 1100
A136: VAR.P | B136: =_xlfn.VAR.P(B36:B135) -> 28900
A137: STDEV.S | B137: =_xlfn.STDEV.P(B36:B135) -> 170

Sheet (7)
A1: Topic: | B1: =INDIRECT("'Topics'!B"&SUBSTITUTE(REPLACE(CELL("filename",A1),1,SEARCH("(",CELL("filename",A1)),""),")","")+3) -> SUMPRODUCT Function To Calculate Weighted Average From Transactional Data
A3: Date | B3: Item | C3: Units | D3: Cost per Unit | F3: Item | G3: Total Cost | H3: Total Units | I3: WAC
A4: 2012-05-14 | B4: Item 2 | C4: 312 | D4: 19.2 | F4: Item 1
A5: 2012-05-15 | B5: Item 3 | C5: 488 | D5: 21.5 | F5: Item 2
A6: 2012-05-16 | B6: Item 2 | C6: 432 | D6: 20.5 | F6: Item 3
A7: 2012-05-17 | B7: Item 3 | C7: 284 | D7: 17.8
A8: 2012-05-22 | B8: Item 3 | C8: 141 | D8: 22.2 | F8: Item | G8: WAC
A9: 2012-05-23 | B9: Item 1 | C9: 137 | D9: 55.4 | F9: Item 1
A10: 2012-05-28 | B10: Item 3 | C10: 463 | D10: 20.3 | F10: Item 2
A11: 2012-05-30 | B11: Item 2 | C11: 441 | D11: 17.2 | F11: Item 3
A12: 2012-06-01 | B12: Item 2 | C12: 361 | D12: 16.1
A13: 2012-06-02 | B13: Item 1 | C13: 281 | D13: 64
A14: 2012-06-03 | B14: Item 3 | C14: 131 | D14: 21.4
A15: 2012-06-04 | B15: Item 3 | C15: 191 | D15: 19.6
A17: Notes: | B17: For SUMPRODUCT, when you need to isolate just some of the items in a column (matching a criteria), you can build
B18: a logical array calculation and convert the TRUEs and FALSES to 1s and 0s with a double negative; be sure to put
B19: array calculation in parenthesis so that the equal sign (=) calculates before the double negative.
B20: SUMIFS can add with 1 or more criteria.
B21: SUMIFS Function has more self-explanatory screen tips than does the SUMIF function.
B22: Ctrl + C + C = opens Clip Board
B23: Collecting formula elements on Clipboard makes it easy to paste and build a mega formula
B24: Formula in cell G9 is =ROUND(SUMPRODUCT(--($B$4:$B$15=F9),$C$4:$C$15,$D$4:$D$15)/SUMIFS($C$4:$C$15,$B$4:$B$15,F9),2)
A26: For more about SUMPRODUCT, see these video:
A27: Excel Magic Trick 777: SUMPRODUCT Function -- Basics To Advanced (14 Examples)
A28: http://www.youtube.com/watch?v=vxpeEf8MYaY
A29: Excel Magic Trick 777.5: SUMPRODUCT Function OR Criteria, 2 Tips: TRUE+FALSE & TRUE+TRUE
A30: http://www.youtube.com/watch?v=VBGN0MbNuzM
A31: Excel Magic Trick 777.75: SUMPRODUCT Solves: SUMIF Won't Calculate From Closed Workbook
A32: http://www.youtube.com/watch?v=H40-xBVtl-Q

Sheet (7an)
A1: Topic: | B1: ='(7)'!B1 -> SUMPRODUCT Function To Calculate Weighted Average From Transactional Data
A3: Date | B3: Item | C3: Units | D3: Cost per Unit | F3: Item | G3: Total Cost | H3: Total Units | I3: WAC
A4: 2012-05-14 | B4: Item 2 | C4: 312 | D4: 19.2 | E4: =C4*D4 -> 5990.4 | F4: Item 1 | G4: =SUMPRODUCT($C$4:$C$15,$D$4:$D$15,--($B$4:$B$15=F4)) -> 25573.8 | H4: =SUMIFS($C$4:$C$15,$B$4:$B$15,F4) -> 418 | I4: =G4/H4 -> 61.18133971
A5: 2012-05-15 | B5: Item 3 | C5: 488 | D5: 21.5 | E5: 10492 | F5: Item 2 | G5: =SUMPRODUCT($C$4:$C$15,$D$4:$D$15,--($B$4:$B$15=F5)) -> 28243.7 | H5: =SUMIFS($C$4:$C$15,$B$4:$B$15,F5) -> 1546 | I5: =G5/H5 -> 18.26888745
A6: 2012-05-16 | B6: Item 2 | C6: 432 | D6: 20.5 | E6: 8856 | F6: Item 3 | G6: =SUMPRODUCT($C$4:$C$15,$D$4:$D$15,--($B$4:$B$15=F6)) -> 34623.3 | H6: 1698 | I6: 20.39063604
A7: 2012-05-17 | B7: Item 3 | C7: 284 | D7: 17.8 | E7: 5055.2
A8: 2012-05-22 | B8: Item 3 | C8: 141 | D8: 22.2 | E8: 3130.2 | F8: Item | G8: WAC
A9: 2012-05-23 | B9: Item 1 | C9: 137 | D9: 55.4 | E9: 7589.8 | F9: Item 1 | G9: =ROUND(SUMPRODUCT($C$4:$C$15,$D$4:$D$15,--($B$4:$B$15=F4))/SUMIFS($C$4:$C$15,$B$4:$B$15,F4),2) -> 61.18
A10: 2012-05-28 | B10: Item 3 | C10: 463 | D10: 20.3 | E10: 9398.9 | F10: Item 2 | G10: =ROUND(SUMPRODUCT($C$4:$C$15,$D$4:$D$15,--($B$4:$B$15=F5))/SUMIFS($C$4:$C$15,$B$4:$B$15,F5),2) -> 18.27
A11: 2012-05-30 | B11: Item 2 | C11: 441 | D11: 17.2 | E11: 7585.2 | F11: Item 3 | G11: 20.39
A12: 2012-06-01 | B12: Item 2 | C12: 361 | D12: 16.1 | E12: 5812.1
A13: 2012-06-02 | B13: Item 1 | C13: 281 | D13: 64 | E13: =C13*D13 -> 17984
A14: 2012-06-03 | B14: Item 3 | C14: 131 | D14: 21.4 | E14: 2803.4
A15: 2012-06-04 | B15: Item 3 | C15: 191 | D15: 19.6 | E15: 3743.6
A17: Notes: | B17: For SUMPRODUCT, when you need to isolate just some of the items in a column (matching a criteria), you can build
B18: a logical array calculation and convert the TRUEs and FALSES to 1s and 0s with a double negative; be sure to put
B19: array calculation in parenthesis so that the equal sign (=) calculates before the double negative.
B20: SUMIFS can add with 1 or more criteria.
B21: SUMIFS Function has more self-explanatory screen tips than does the SUMIF function.
B22: Ctrl + C + C = opens Clip Board
B23: Collecting formula elements on Clipboard makes it easy to paste and build a mega formula
B24: Formula in cell G9 is =ROUND(SUMPRODUCT(--($B$4:$B$15=F9),$C$4:$C$15,$D$4:$D$15)/SUMIFS($C$4:$C$15,$B$4:$B$15,F9),2)
A26: For more about SUMPRODUCT, see these video:
A27: Excel Magic Trick 777: SUMPRODUCT Function -- Basics To Advanced (14 Examples)
A28: http://www.youtube.com/watch?v=vxpeEf8MYaY
A29: Excel Magic Trick 777.5: SUMPRODUCT Function OR Criteria, 2 Tips: TRUE+FALSE & TRUE+TRUE
A30: http://www.youtube.com/watch?v=VBGN0MbNuzM
A31: Excel Magic Trick 777.75: SUMPRODUCT Solves: SUMIF Won't Calculate From Closed Workbook
A32: http://www.youtube.com/watch?v=H40-xBVtl-Q

Sheet (8)
A1: Topic: | B1: =INDIRECT("'Topics'!B"&SUBSTITUTE(REPLACE(CELL("filename",A1),1,SEARCH("(",CELL("filename",A1)),""),")","")+3) -> VLOOKUP Basics
A3: VLOOKUP Delivers a value to a cell
A4: Exact Match
A5: Boomerang | B5: Price | D5: Formula:
A6: Carlota | D6: =VLOOKUP(A6,A9:D12,4,0)
A8: Boomerang | B8: Part Number | C8: Flight Range (meters) | D8: Price
A9: Bellen | B9: 1000-165-B100 | C9: 25 | D9: 26.95
A10: Carlota | B10: 1001-540-C101 | C10: 20 | D10: 28.95
A11: Majestic Beaut | B11: 1002-394-M102 | C11: 35 | D11: 31.95
A12: Quad | B12: 1003-307-Q103 | C12: 20 | D12: 35.95
A14: Notes:
A15: Data Validation List (Data Ribbon Tab) feature allows you to have Drop-Down in cell
A16: 1st column is where VLOOKUP "looks" to figure out what row in the table has the value it wants
A17: Tell VLOOKUP what value it should look up = 1st argument
A18: Tell VLOOKUP where the table is = 2nd argument
A19: Tell VLOOKUP what column holds the value you want to return to the cell = 3rd argument
A20: Tell VLOOKUP whether you are doing exact ( 0 ) or approximate (leave argument blank) match = 4th argument
A21: When you do "Exact Match", if there are duplicates, it takes the first one only.
A23: VLOOKUP Delivers a value to a cell
A24: Approximate Match
A25: Your Sales | B25: Commission | D25: Formula:
A26: 150000 | D26: =VLOOKUP(A25,B28:D32,3)
A28: How VLOOKUP "sees" it | B28: Sales Amount | C28: Category | D28: Commission Paid
A29: =DOLLAR(B29,0)&" <= Sales < "&DOLLAR(B30,0) -> $0 <= Sales < $1,000 | B29: 0 | C29: Sub Par | D29: 0
A30: =DOLLAR(B30,0)&" <= Sales < "&DOLLAR(B31,0) -> $1,000 <= Sales < $2,500 | B30: 1000 | C30: Par | D30: 20
A31: =DOLLAR(B31,0)&" <= Sales < "&DOLLAR(B32,0) -> $2,500 <= Sales < $7,000 | B31: 2500 | C31: Above Par | D31: 100
A32: =DOLLAR(B32,0)&" <= Sales < "&DOLLAR(B33,0) -> $7,000 <= Sales < $10,000 | B32: 7000 | C32: Very Good | D32: 250
A33: =DOLLAR(B33,0)&" >= Sales" -> $10,000 >= Sales | B33: 10000 | C33: Excellent | D33: 700
A35: Notes:
A36: Less than 1st value in table LOOKUP says: #N/A
A37: 1st column must be sorted biggest to smallest
A38: Leave 4th argument blank (default behavior)
A39: When you do "Approximate Match", if the lookup value is bigger than the last value in the first column, it retrieves the last value.
A41: For a comprehensive video on what VLOOKUP can do, see this video:
A42: VLOOKUP function Beginner to Advanced 26 Examples (Excel VLOOKUP WEEK Video #1)
A43: http://www.youtube.com/watch?v=-hJxIMBbmZY

Sheet (8an)
A1: Topic: | B1: ='(8)'!B1 -> VLOOKUP Basics
A3: VLOOKUP Delivers a value to a cell
A4: Exact Match
A5: Boomerang | B5: Price | D5: Formula:
A6: Bellen | B6: =VLOOKUP(A6,A9:D12,4,0) -> 26.95 | D6: =VLOOKUP(A6,A9:D12,4,0)
A8: Boomerang | B8: Part Number | C8: Flight Range (meters) | D8: Price
A9: Bellen | B9: 1000-165-B100 | C9: 25 | D9: 26.95
A10: Carlota | B10: 1001-540-C101 | C10: 20 | D10: 28.95
A11: Majestic Beaut | B11: 1002-394-M102 | C11: 35 | D11: 31.95
A12: Quad | B12: 1003-307-Q103 | C12: 20 | D12: 35.95
A14: Notes:
A15: Data Validation List (Data Ribbon Tab) feature allows you to have Drop-Down in cell
A16: 1st column is where VLOOKUP "looks" to figure out what row in the table has the value it wants
A17: Tell VLOOKUP what value it should look up = 1st argument
A18: Tell VLOOKUP where the table is = 2nd argument
A19: Tell VLOOKUP what column holds the value you want to return to the cell = 3rd argument
A20: Tell VLOOKUP whether you are doing exact ( 0 ) or approximate (leave argument blank) match = 4th argument
A21: When you do "Exact Match", if there are duplicates, it takes the first one only.
A23: VLOOKUP Delivers a value to a cell
A24: Approximate Match
A25: Your Sales | B25: Commission | D25: Formula:
A26: 150000 | B26: =VLOOKUP(A26,B29:D33,3) -> 700 | D26: =VLOOKUP(A25,B28:D32,3)
A28: How VLOOKUP "sees" it | B28: Sales Amount | C28: Category | D28: Commission Paid
A29: =DOLLAR(B29,0)&" <= Sales < "&DOLLAR(B30,0) -> $0 <= Sales < $1,000 | B29: 0 | C29: Sub Par | D29: 0
A30: =DOLLAR(B30,0)&" <= Sales < "&DOLLAR(B31,0) -> $1,000 <= Sales < $2,500 | B30: 1000 | C30: Par | D30: 20
A31: =DOLLAR(B31,0)&" <= Sales < "&DOLLAR(B32,0) -> $2,500 <= Sales < $7,000 | B31: 2500 | C31: Above Par | D31: 100
A32: =DOLLAR(B32,0)&" <= Sales < "&DOLLAR(B33,0) -> $7,000 <= Sales < $10,000 | B32: 7000 | C32: Very Good | D32: 250
A33: =DOLLAR(B33,0)&" >= Sales" -> $10,000 >= Sales | B33: 10000 | C33: Excellent | D33: 700
A35: Notes:
A36: Less than 1st value in table LOOKUP says: #N/A
A37: 1st column must be sorted biggest to smallest
A38: Leave 4th argument blank (default behavior)
A39: When you do "Approximate Match", if the lookup value is bigger than the last value in the first column, it retrieves the last value.
A41: For a comprehensive video on what VLOOKUP can do, see this video:
A42: VLOOKUP function Beginner to Advanced 26 Examples (Excel VLOOKUP WEEK Video #1)
A43: http://www.youtube.com/watch?v=-hJxIMBbmZY

Sheet (9)
A1: Topic: | B1: =INDIRECT("'Topics'!B"&SUBSTITUTE(REPLACE(CELL("filename",A1),1,SEARCH("(",CELL("filename",A1)),""),")","")+3) -> VLOOKUP & MATCH Functions To Do Two-Way Lookup | O1: Kid | P1: Word | R1: Kid | S1: Word
O2: Lucien | P2: =VLOOKUP(O2,R2:S4,2) -> Spectacular | R2: Brandon | S2: Cool
A3: Income | B3: 2000 | R3: Isaac | S3: Rad
A4: Allowance | B4: 1 | G4: Formula: | R4: Lucien | S4: Spectacular
A5: Tax | G5: =VLOOKUP(B3,A8:H12,MATCH(B4,A7:H7))
A7: Income/Allowances | B7: 0 | C7: 1 | D7: 2 | E7: 3 | F7: 4 | G7: 5 | H7: 6
A8: 0 | B8: 0 | C8: 1 | D8: 2 | E8: 3 | F8: 4 | G8: 5 | H8: 6
A9: 500 | B9: 1 | C9: 2 | D9: 3 | E9: 4 | F9: 5 | G9: 6 | H9: 7
A10: 1500 | B10: 2 | C10: 3 | D10: 4 | E10: 5 | F10: 6 | G10: 7 | H10: 8
A11: 3900 | B11: 3 | C11: 4 | D11: 5 | E11: 6 | F11: 7 | G11: 8 | H11: 9
A12: 7500 | B12: 4 | C12: 5 | D12: 6 | E12: 7 | F12: 8 | G12: 9 | H12: 10
A14: Notes:
A15: Whereas VLOOKUP retrieves a value based on the lookup value, MATCH function tells you the relative position of an item in a list
A16: MATCH is used to tell the VLOOKUP function which column has the value you want to retrieve.
A18: For a comprehensive video on what VLOOKUP can do, see this video:
A19: VLOOKUP function Beginner to Advanced 26 Examples (Excel VLOOKUP WEEK Video #1)
A20: http://www.youtube.com/watch?v=-hJxIMBbmZY
A22: For conditional Formatting of Intersection, see this video at 43:41 minute mark:
A23: LOOKUP function Beginner to Advanced 23 Examples (Excel VLOOKUP WEEK Video #2)
A24: http://www.youtube.com/watch?v=N24cBM-CTw4

Sheet (9an)
A1: Topic: | B1: ='(9)'!B1 -> VLOOKUP & MATCH Functions To Do Two-Way Lookup | O1: Kid | P1: Word | R1: Kid | S1: Word
O2: Lucien | P2: =VLOOKUP(O2,R2:S4,2) -> Spectacular | R2: Brandon | S2: Cool
A3: Income | B3: 6000 | R3: Isaac | S3: Rad
A4: Allowance | B4: 3 | D4: =MATCH(B4,A7:H7,0) -> 5 | G4: Formula: | R4: Lucien | S4: Spectacular
A5: Tax | B5: =VLOOKUP(B3,A8:H12,MATCH(B4,A7:H7,0)) -> 6 | C5: =VLOOKUP(B3,A8:H12,B4+2) -> 6 | G5: =VLOOKUP(B3,A8:H12,MATCH(B4,A7:H7))
A7: Income/Allowances | B7: 0 | C7: 1 | D7: 2 | E7: 3 | F7: 4 | G7: 5 | H7: 6
A8: 0 | B8: 0 | C8: 1 | D8: 2 | E8: 3 | F8: 4 | G8: 5 | H8: 6
A9: 500 | B9: 1 | C9: 2 | D9: 3 | E9: 4 | F9: 5 | G9: 6 | H9: 7
A10: 1500 | B10: 2 | C10: 3 | D10: 4 | E10: 5 | F10: 6 | G10: 7 | H10: 8
A11: 3900 | B11: 3 | C11: 4 | D11: 5 | E11: 6 | F11: 7 | G11: 8 | H11: 9
A12: 7500 | B12: 4 | C12: 5 | D12: 6 | E12: 7 | F12: 8 | G12: 9 | H12: 10
A14: Notes:
A15: Whereas VLOOKUP retrieves a value based on the lookup value, MATCH function tells you the relative position of an item in a list
A16: MATCH is used to tell the VLOOKUP function which column has the value you want to retrieve.
A18: For a comprehensive video on what VLOOKUP can do, see this video:
A19: VLOOKUP function Beginner to Advanced 26 Examples (Excel VLOOKUP WEEK Video #1)
A20: http://www.youtube.com/watch?v=-hJxIMBbmZY
A22: For conditional Formatting of Intersection, see this video at 43:41 minute mark:
A23: LOOKUP function Beginner to Advanced 23 Examples (Excel VLOOKUP WEEK Video #2)
A24: http://www.youtube.com/watch?v=N24cBM-CTw4

Sheet (10)
A1: Topic: | B1: =INDIRECT("'Topics'!B"&SUBSTITUTE(REPLACE(CELL("filename",A1),1,SEARCH("(",CELL("filename",A1)),""),")","")+3) -> VLOOKUP & MATCH Functions To Retrieve Record and Display Vertically or Horizontally
U2: % | V2: Decimal
A3: Name | B3: ID | C3: Q 1 | D3: Q 2 | E3: Q 3 | F3: Q 4 | G3: Q 5 | H3: Q 6 | I3: Q 7 | J3: Q 8 | K3: Decimal | U3: 0.79 | V3: 2.2
A4: Name 2 | U4: 0.8 | V4: 2.3
U5: 0.81 | V5: 2.4
A6: Name | B6: =A4 -> Name 2 | U6: 0.82 | V6: 2.5
A7: ID | U7: 0.83 | V7: 2.6
A8: Q 1 | U8: 0.84 | V8: 2.7
A9: Q 2 | U9: 0.85 | V9: 2.8
A10: Q 3 | U10: 0.86 | V10: 2.9
A11: Q 4 | U11: 0.87 | V11: 3
A12: Q 5 | U12: 0.88 | V12: 3.1
A13: Q 6 | U13: 0.89 | V13: 3.2
A14: Q 7 | U14: 0.9 | V14: 3.3
A15: Q 8 | U15: 0.91 | V15: 3.4
A16: Decimal | U16: 0.92 | V16: 3.5
U17: 0.93 | V17: 3.6
A18: Name | B18: ID | C18: ="Q "&COLUMNS($C18:C18) -> Q 1 | D18: ="Q "&COLUMNS($C18:D18) -> Q 2 | E18: ="Q "&COLUMNS($C18:E18) -> Q 3 | F18: ="Q "&COLUMNS($C18:F18) -> Q 4 | G18: ="Q "&COLUMNS($C18:G18) -> Q 5 | H18: ="Q "&COLUMNS($C18:H18) -> Q 6 | I18: ="Q "&COLUMNS($C18:I18) -> Q 7 | J18: ="Q "&COLUMNS($C18:J18) -> Q 8 | K18: Two Lowest | L18: Total Possible | M18: % Grade | N18: Decimal | U18: 0 | V18: 0
A19: Max | C19: 50 | D19: 50 | E19: 50 | F19: 50 | G19: 50 | H19: 50 | I19: 50 | J19: 50 | K19: =SUM(SMALL(C19:J19,{1,2})) -> 100 | L19: =SUM(C19:J19)-K19 -> 300 | M19: =L19/L$19 -> 1 | N19: =VLOOKUP(M19,$U$18:$V$38,2) -> 4 | U19: 0.64 | V19: 0.7
A20: Name 1 | B20: 890-4399-28 | C20: 45 | D20: 44 | E20: 49 | F20: 46 | G20: 44 | H20: 14 | I20: 30 | J20: 28 | K20: =SUM(SMALL(C20:J20,{1,2})) -> 42 | L20: =SUM(C20:J20)-K20 -> 258 | M20: =L20/L$19 -> 0.86 | N20: 2.1 | U20: 0.65 | V20: 0.8
A21: Name 2 | B21: 890-6131-83 | C21: 49 | D21: 40 | E21: 47 | F21: 39 | G21: 13 | H21: 40 | I21: 25 | J21: 27 | K21: =SUM(SMALL(C21:J21,{1,2})) -> 38 | L21: 242 | M21: 0.8066666667 | N21: 2.1 | U21: 0.66 | V21: 0.9
A22: Name 3 | B22: 890-8798-27 | C22: 27 | D22: 43 | E22: 24 | F22: 36 | G22: 29 | H22: 27 | I22: 45 | J22: 38 | K22: =SUM(SMALL(C22:J22,{1,2})) -> 51 | L22: 218 | M22: 0.7266666667 | N22: 1.5 | U22: 0.67 | V22: 1
A23: Name 4 | B23: 890-9230-00 | C23: 44 | D23: 41 | E23: 45 | F23: 49 | G23: 33 | H23: 45 | I23: 21 | J23: 23 | K23: =SUM(SMALL(C23:J23,{1,2})) -> 44 | L23: 257 | M23: 0.8566666667 | N23: 2.1 | U23: 0.68 | V23: 1.1
A24: Name 5 | B24: 890-2035-86 | C24: 50 | D24: 22 | E24: 50 | F24: 49 | G24: 13 | H24: 34 | I24: 49 | J24: 48 | K24: =SUM(SMALL(C24:J24,{1,2})) -> 35 | L24: 280 | M24: 0.9333333333 | N24: 2.1 | U24: 0.69 | V24: 1.2
A25: Name 6 | B25: 890-1448-63 | C25: 38 | D25: 26 | E25: 42 | F25: 38 | G25: 32 | H25: 34 | I25: 50 | J25: 26 | K25: =SUM(SMALL(C25:J25,{1,2})) -> 52 | L25: 234 | M25: 0.78 | N25: 2.1 | U25: 0.7 | V25: 1.3
A26: Name 7 | B26: 890-2540-99 | C26: 50 | D26: 44 | E26: 48 | F26: 49 | G26: 21 | H26: 49 | I26: 26 | J26: 44 | K26: =SUM(SMALL(C26:J26,{1,2})) -> 47 | L26: 284 | M26: 0.9466666667 | N26: 3.7 | U26: 0.71 | V26: 1.4
A27: Name 8 | B27: 890-3442-78 | C27: 40 | D27: 41 | E27: 50 | F27: 49 | G27: 3 | H27: 0 | I27: 22 | J27: 8 | K27: =SUM(SMALL(C27:J27,{1,2})) -> 3 | L27: 210 | M27: 0.7 | N27: 1.3 | U27: 0.72 | V27: 1.5
A28: Name 9 | B28: 890-9023-54 | C28: 50 | D28: 42 | E28: 49 | F28: 35 | G28: 47 | H28: 34 | I28: 11 | J28: 12 | K28: =SUM(SMALL(C28:J28,{1,2})) -> 23 | L28: 257 | M28: 0.8566666667 | N28: 2.1 | U28: 0.73 | V28: 1.6
A29: Name 10 | B29: 890-9670-04 | C29: 48 | D29: 50 | E29: 45 | F29: 41 | G29: 16 | H29: 39 | I29: 29 | J29: 22 | K29: =SUM(SMALL(C29:J29,{1,2})) -> 38 | L29: 252 | M29: 0.84 | N29: 2.1 | U29: 0.74 | V29: 1.7
A30: Name 11 | B30: 890-9002-79 | C30: 43 | D30: 32 | E30: 42 | F30: 45 | G30: 46 | H30: 40 | I30: 48 | J30: 10 | K30: =SUM(SMALL(C30:J30,{1,2})) -> 42 | L30: 264 | M30: 0.88 | N30: 2.1 | U30: 0.75 | V30: 1.8
A31: Name 12 | B31: 890-1803-39 | C31: 24 | D31: 39 | E31: 26 | F31: 37 | G31: 49 | H31: 17 | I31: 1 | J31: 40 | K31: =SUM(SMALL(C31:J31,{1,2})) -> 18 | L31: 215 | M31: 0.7166666667 | N31: 1.4 | U31: 0.76 | V31: 1.9
A32: Name 13 | B32: 890-0330-60 | C32: 15 | D32: 33 | E32: 12 | F32: 45 | G32: 41 | H32: 21 | I32: 0 | J32: 0 | K32: =SUM(SMALL(C32:J32,{1,2})) -> 0 | L32: 167 | M32: 0.5566666667 | N32: 0 | U32: 0.77 | V32: 2
U33: 0.78 | V33: 2.1
A34: Notes:
A35: Formula in cell B4 is =VLOOKUP($A$4,$A$20:$N$32,MATCH(B3,$A$18:$N$18,0),0) | U35: 0.94 | V35: 3.7
A36: Formula in cell B7 is =VLOOKUP($B$6,$A$20:$N$32,MATCH(A7,$A$18:$N$18,0),0) | U36: 0.95 | V36: 3.8
U37: 0.96 | V37: 3.9
A38: For a comprehensive video on what VLOOKUP can do, see this video: | U38: 0.97 | V38: 4
A39: VLOOKUP function Beginner to Advanced 26 Examples (Excel VLOOKUP WEEK Video #1)
A40: http://www.youtube.com/watch?v=-hJxIMBbmZY

Sheet (10an)
A1: Topic: | B1: ='(10)'!B1 -> VLOOKUP & MATCH Functions To Retrieve Record and Display Vertically or Horizontally
U2: % | V2: Decimal
A3: Name | B3: ID | C3: Q 1 | D3: Q 2 | E3: Q 3 | F3: Q 4 | G3: Q 5 | H3: Q 6 | I3: Q 7 | J3: Q 8 | K3: Decimal | U3: 0.79 | V3: 2.2
A4: Name 12 | B4: =VLOOKUP($A$4,$A$20:$N$32,MATCH(B3,$A$18:$N$18,0),0) -> 890-1803-39 | C4: =VLOOKUP($A$4,$A$20:$N$32,MATCH(C3,$A$18:$N$18,0),0) -> 24 | D4: 39 | E4: 26 | F4: 37 | G4: 49 | H4: 17 | I4: 1 | J4: 40 | K4: 1.4 | U4: 0.8 | V4: 2.3
U5: 0.81 | V5: 2.4
A6: Name | B6: =A4 -> Name 12 | U6: 0.82 | V6: 2.5
A7: ID | B7: =VLOOKUP($B$6,$A$20:$N$32,MATCH(A7,$A$18:$N$18,0),0) -> 890-1803-39 | U7: 0.83 | V7: 2.6
A8: Q 1 | B8: =VLOOKUP($B$6,$A$20:$N$32,MATCH(A8,$A$18:$N$18,0),0) -> 24 | U8: 0.84 | V8: 2.7
A9: Q 2 | B9: 39 | U9: 0.85 | V9: 2.8
A10: Q 3 | B10: 26 | U10: 0.86 | V10: 2.9
A11: Q 4 | B11: 37 | U11: 0.87 | V11: 3
A12: Q 5 | B12: 49 | U12: 0.88 | V12: 3.1
A13: Q 6 | B13: 17 | U13: 0.89 | V13: 3.2
A14: Q 7 | B14: 1 | U14: 0.9 | V14: 3.3
A15: Q 8 | B15: 40 | U15: 0.91 | V15: 3.4
A16: Decimal | B16: 1.4 | U16: 0.92 | V16: 3.5
U17: 0.93 | V17: 3.6
A18: Name | B18: ID | C18: ="Q "&COLUMNS($C18:C18) -> Q 1 | D18: ="Q "&COLUMNS($C18:D18) -> Q 2 | E18: ="Q "&COLUMNS($C18:E18) -> Q 3 | F18: ="Q "&COLUMNS($C18:F18) -> Q 4 | G18: ="Q "&COLUMNS($C18:G18) -> Q 5 | H18: ="Q "&COLUMNS($C18:H18) -> Q 6 | I18: ="Q "&COLUMNS($C18:I18) -> Q 7 | J18: ="Q "&COLUMNS($C18:J18) -> Q 8 | K18: Two Lowest | L18: Total Possible | M18: % Grade | N18: Decimal | U18: 0 | V18: 0
A19: Max | C19: 50 | D19: 50 | E19: 50 | F19: 50 | G19: 50 | H19: 50 | I19: 50 | J19: 50 | K19: =SUM(SMALL(C19:J19,{1,2})) -> 100 | L19: =SUM(C19:J19)-K19 -> 300 | M19: =L19/L$19 -> 1 | N19: =VLOOKUP(M19,$U$18:$V$38,2) -> 4 | U19: 0.64 | V19: 0.7
A20: Name 1 | B20: 890-4399-28 | C20: 45 | D20: 44 | E20: 49 | F20: 46 | G20: 44 | H20: 14 | I20: 30 | J20: 28 | K20: =SUM(SMALL(C20:J20,{1,2})) -> 42 | L20: =SUM(C20:J20)-K20 -> 258 | M20: =L20/L$19 -> 0.86 | N20: 2.1 | U20: 0.65 | V20: 0.8
A21: Name 2 | B21: 890-6131-83 | C21: 49 | D21: 40 | E21: 47 | F21: 39 | G21: 13 | H21: 40 | I21: 25 | J21: 27 | K21: =SUM(SMALL(C21:J21,{1,2})) -> 38 | L21: 242 | M21: 0.8066666667 | N21: 2.1 | U21: 0.66 | V21: 0.9
A22: Name 3 | B22: 890-8798-27 | C22: 27 | D22: 43 | E22: 24 | F22: 36 | G22: 29 | H22: 27 | I22: 45 | J22: 38 | K22: =SUM(SMALL(C22:J22,{1,2})) -> 51 | L22: 218 | M22: 0.7266666667 | N22: 1.5 | U22: 0.67 | V22: 1
A23: Name 4 | B23: 890-9230-00 | C23: 44 | D23: 41 | E23: 45 | F23: 49 | G23: 33 | H23: 45 | I23: 21 | J23: 23 | K23: =SUM(SMALL(C23:J23,{1,2})) -> 44 | L23: 257 | M23: 0.8566666667 | N23: 2.1 | U23: 0.68 | V23: 1.1
A24: Name 5 | B24: 890-2035-86 | C24: 50 | D24: 22 | E24: 50 | F24: 49 | G24: 13 | H24: 34 | I24: 49 | J24: 48 | K24: =SUM(SMALL(C24:J24,{1,2})) -> 35 | L24: 280 | M24: 0.9333333333 | N24: 2.1 | U24: 0.69 | V24: 1.2
A25: Name 6 | B25: 890-1448-63 | C25: 38 | D25: 26 | E25: 42 | F25: 38 | G25: 32 | H25: 34 | I25: 50 | J25: 26 | K25: =SUM(SMALL(C25:J25,{1,2})) -> 52 | L25: 234 | M25: 0.78 | N25: 2.1 | U25: 0.7 | V25: 1.3
A26: Name 7 | B26: 890-2540-99 | C26: 50 | D26: 44 | E26: 48 | F26: 49 | G26: 21 | H26: 49 | I26: 26 | J26: 44 | K26: =SUM(SMALL(C26:J26,{1,2})) -> 47 | L26: 284 | M26: 0.9466666667 | N26: 3.7 | U26: 0.71 | V26: 1.4
A27: Name 8 | B27: 890-3442-78 | C27: 40 | D27: 41 | E27: 50 | F27: 49 | G27: 3 | H27: 0 | I27: 22 | J27: 8 | K27: =SUM(SMALL(C27:J27,{1,2})) -> 3 | L27: 210 | M27: 0.7 | N27: 1.3 | U27: 0.72 | V27: 1.5
A28: Name 9 | B28: 890-9023-54 | C28: 50 | D28: 42 | E28: 49 | F28: 35 | G28: 47 | H28: 34 | I28: 11 | J28: 12 | K28: =SUM(SMALL(C28:J28,{1,2})) -> 23 | L28: 257 | M28: 0.8566666667 | N28: 2.1 | U28: 0.73 | V28: 1.6
A29: Name 10 | B29: 890-9670-04 | C29: 48 | D29: 50 | E29: 45 | F29: 41 | G29: 16 | H29: 39 | I29: 29 | J29: 22 | K29: =SUM(SMALL(C29:J29,{1,2})) -> 38 | L29: 252 | M29: 0.84 | N29: 2.1 | U29: 0.74 | V29: 1.7
A30: Name 11 | B30: 890-9002-79 | C30: 43 | D30: 32 | E30: 42 | F30: 45 | G30: 46 | H30: 40 | I30: 48 | J30: 10 | K30: =SUM(SMALL(C30:J30,{1,2})) -> 42 | L30: 264 | M30: 0.88 | N30: 2.1 | U30: 0.75 | V30: 1.8
A31: Name 12 | B31: 890-1803-39 | C31: 24 | D31: 39 | E31: 26 | F31: 37 | G31: 49 | H31: 17 | I31: 1 | J31: 40 | K31: =SUM(SMALL(C31:J31,{1,2})) -> 18 | L31: 215 | M31: 0.7166666667 | N31: 1.4 | U31: 0.76 | V31: 1.9
A32: Name 13 | B32: 890-0330-60 | C32: 15 | D32: 33 | E32: 12 | F32: 45 | G32: 41 | H32: 21 | I32: 0 | J32: 0 | K32: =SUM(SMALL(C32:J32,{1,2})) -> 0 | L32: 167 | M32: 0.5566666667 | N32: 0 | U32: 0.77 | V32: 2
U33: 0.78 | V33: 2.1
A34: Notes:
A35: Formula in cell B4 is =VLOOKUP($A$4,$A$20:$N$32,MATCH(B3,$A$18:$N$18,0),0) | U35: 0.94 | V35: 3.7
A36: Formula in cell B7 is =VLOOKUP($B$6,$A$20:$N$32,MATCH(A7,$A$18:$N$18,0),0) | U36: 0.95 | V36: 3.8
U37: 0.96 | V37: 3.9
A38: For a comprehensive video on what VLOOKUP can do, see this video: | U38: 0.97 | V38: 4
A39: VLOOKUP function Beginner to Advanced 26 Examples (Excel VLOOKUP WEEK Video #1)
A40: http://www.youtube.com/watch?v=-hJxIMBbmZY

Sheet (11)
A1: Topic: | B1: =INDIRECT("'Topics'!B"&SUBSTITUTE(REPLACE(CELL("filename",A1),1,SEARCH("(",CELL("filename",A1)),""),")","")+3) -> VLOOKUP For Variable Tax or Commission Calculation
A3: Lookup Value | B3: Over -- | C3: But not over -- | D3: Rate | E3: Tax from Previous brackets | F3: Rule
A4: 0 | B4: 0 | C4: 1313 | D4: 0 | E4: 0 | F4: =IF(B4=0,"Zero Tax",IF(E4=0,"",DOLLAR(E4)&" + ")&TEXT(D4:D4,"0%")&" of excess over "&DOLLAR(B4,0)) -> Zero Tax
A5: =B5+0.01 -> 1313.01 | B5: =C4 -> 1313 | C5: 2038 | D5: 0.1 | E5: =E4+D4*(C4-B4) -> 0 | F5: 10% of excess over $1,313
A6: 2038.01 | B6: 2038 | C6: 6304 | D6: 0.15 | E6: =ROUND(E5+D5*(C5-B5),2) -> 72.5 | F6: $72.50 + 15% of excess over $2,038
A7: 6304.01 | B7: 6304 | C7: 9844 | D7: 0.25 | E7: =ROUND(E6+D6*(C6-B6),2) -> 712.4 | F7: $712.40 + 25% of excess over $6,304
A8: 9844.01 | B8: 9844 | C8: 18050 | D8: 0.28 | E8: =ROUND(E7+D7*(C7-B7),2) -> 1597.4 | F8: $1,597.40 + 28% of excess over $9,844
A9: 18050.01 | B9: 18050 | C9: 31725 | D9: 0.33 | E9: =ROUND(E8+D8*(C8-B8),2) -> 3895.08 | F9: $3,895.08 + 33% of excess over $18,050
A10: 31725.01 | B10: 31725 | D10: 0.35 | E10: =ROUND(E9+D9*(C9-B9),2) -> 8407.83 | F10: $8,407.83 + 35% of excess over $31,725
B12: Taxable Earnings | C12: 2500
B13: Tax | C13: =VLOOKUP(C12,A4:F10,5)+(C12-VLOOKUP(C12,A4:F10,2))*VLOOKUP(C12,A4:F10,4) -> 141.8
C14: =E6+(C12-B6)*D6 -> 141.8 | D14: =IF(C14="","",VLOOKUP(C12,A4:E10,5)&"+("&C12&"-"&VLOOKUP(C12,A4:E10,2)&")*"&VLOOKUP(C12,A4:E10,4)) -> 72.5+(2500-2038)*0.15
D15: =IF(C14="","","VLOOKUP-5+(C12-VLOOKUP-2)*VLOOKUP-4") -> VLOOKUP-5+(C12-VLOOKUP-2)*VLOOKUP-4
A20: For a comprehensive video on what VLOOKUP can do, see this video:
A21: VLOOKUP function Beginner to Advanced 26 Examples (Excel VLOOKUP WEEK Video #1)
A22: http://www.youtube.com/watch?v=-hJxIMBbmZY

Sheet (11an)
A1: Topic: | B1: ='(11)'!B1 -> VLOOKUP For Variable Tax or Commission Calculation
A3: Lookup Value | B3: Over -- | C3: But not over -- | D3: Rate | E3: Tax from Previous brackets | F3: Rule
A4: 0 | B4: 0 | C4: 1313 | D4: 0 | E4: 0 | F4: =IF(B4=0,"Zero Tax",IF(E4=0,"",DOLLAR(E4)&" + ")&TEXT(D4:D4,"0%")&" of excess over "&DOLLAR(B4,0)) -> Zero Tax
A5: =B5+0.01 -> 1313.01 | B5: =C4 -> 1313 | C5: 2038 | D5: 0.1 | E5: =E4+D4*(C4-B4) -> 0 | F5: 10% of excess over $1,313
A6: 2038.01 | B6: 2038 | C6: 6304 | D6: 0.15 | E6: =ROUND(E5+D5*(C5-B5),2) -> 72.5 | F6: $72.50 + 15% of excess over $2,038
A7: 6304.01 | B7: 6304 | C7: 9844 | D7: 0.25 | E7: =ROUND(E6+D6*(C6-B6),2) -> 712.4 | F7: $712.40 + 25% of excess over $6,304
A8: 9844.01 | B8: 9844 | C8: 18050 | D8: 0.28 | E8: =ROUND(E7+D7*(C7-B7),2) -> 1597.4 | F8: $1,597.40 + 28% of excess over $9,844
A9: 18050.01 | B9: 18050 | C9: 31725 | D9: 0.33 | E9: =ROUND(E8+D8*(C8-B8),2) -> 3895.08 | F9: $3,895.08 + 33% of excess over $18,050
A10: 31725.01 | B10: 31725 | D10: 0.35 | E10: =ROUND(E9+D9*(C9-B9),2) -> 8407.83 | F10: $8,407.83 + 35% of excess over $31,725
B12: Taxable Earnings | C12: 2500
B13: Tax | C13: =VLOOKUP(C12,A4:F10,5)+(C12-VLOOKUP(C12,A4:F10,2))*VLOOKUP(C12,A4:F10,4) -> 141.8
C14: =E6+(C12-B6)*D6 -> 141.8 | D14: =IF(C14="","",VLOOKUP(C12,A4:E10,5)&"+("&C12&"-"&VLOOKUP(C12,A4:E10,2)&")*"&VLOOKUP(C12,A4:E10,4)) -> 72.5+(2500-2038)*0.15
D15: =IF(C14="","","VLOOKUP-5+(C12-VLOOKUP-2)*VLOOKUP-4") -> VLOOKUP-5+(C12-VLOOKUP-2)*VLOOKUP-4
A20: For a comprehensive video on what VLOOKUP can do, see this video:
A21: VLOOKUP function Beginner to Advanced 26 Examples (Excel VLOOKUP WEEK Video #1)
A22: http://www.youtube.com/watch?v=-hJxIMBbmZY

Sheet (12)
A1: Topic: | B1: =INDIRECT("'Topics'!B"&SUBSTITUTE(REPLACE(CELL("filename",A1),1,SEARCH("(",CELL("filename",A1)),""),")","")+3) -> Grade Table Subtract Two Lowest Before Assigning Decimal Grade
P2: % | Q2: Decimal
A3: Name | B3: ID | C3: ="Q "&COLUMNS($C3:C3) -> Q 1 | D3: ="Q "&COLUMNS($C3:D3) -> Q 2 | E3: ="Q "&COLUMNS($C3:E3) -> Q 3 | F3: ="Q "&COLUMNS($C3:F3) -> Q 4 | G3: ="Q "&COLUMNS($C3:G3) -> Q 5 | H3: ="Q "&COLUMNS($C3:H3) -> Q 6 | I3: ="Q "&COLUMNS($C3:I3) -> Q 7 | J3: ="Q "&COLUMNS($C3:J3) -> Q 8 | K3: Two Lowest | L3: Total Possible | M3: % Grade | N3: Decimal | P3: 0 | Q3: 0
A4: Max | C4: 50 | D4: 50 | E4: 50 | F4: 50 | G4: 50 | H4: 50 | I4: 50 | J4: 50 | P4: 0.64 | Q4: 0.7
A5: Name 1 | B5: 890-4399-28 | C5: 45 | D5: 44 | E5: 49 | F5: 46 | G5: 44 | H5: 14 | I5: 30 | J5: 28 | P5: 0.65 | Q5: 0.8
A6: Name 2 | B6: 890-6131-83 | C6: 49 | D6: 40 | E6: 47 | F6: 39 | G6: 13 | H6: 40 | I6: 25 | J6: 27 | P6: 0.66 | Q6: 0.9
A7: Name 3 | B7: 890-8798-27 | C7: 27 | D7: 43 | E7: 24 | F7: 36 | G7: 29 | H7: 27 | I7: 45 | J7: 38 | P7: 0.67 | Q7: 1
A8: Name 4 | B8: 890-9230-00 | C8: 44 | D8: 41 | E8: 45 | F8: 49 | G8: 33 | H8: 45 | I8: 21 | J8: 23 | P8: 0.68 | Q8: 1.1
A9: Name 5 | B9: 890-2035-86 | C9: 50 | D9: 22 | E9: 50 | F9: 49 | G9: 13 | H9: 34 | I9: 49 | J9: 48 | P9: 0.69 | Q9: 1.2
A10: Name 6 | B10: 890-1448-63 | C10: 38 | D10: 26 | E10: 42 | F10: 38 | G10: 32 | H10: 34 | I10: 50 | J10: 26 | P10: 0.7 | Q10: 1.3
A11: Name 7 | B11: 890-2540-99 | C11: 50 | D11: 44 | E11: 48 | F11: 49 | G11: 21 | H11: 49 | I11: 26 | J11: 44 | P11: 0.71 | Q11: 1.4
A12: Name 8 | B12: 890-3442-78 | C12: 40 | D12: 41 | E12: 50 | F12: 49 | G12: 3 | H12: 0 | I12: 22 | J12: 8 | P12: 0.72 | Q12: 1.5
A13: Name 9 | B13: 890-9023-54 | C13: 50 | D13: 42 | E13: 49 | F13: 35 | G13: 47 | H13: 34 | I13: 11 | J13: 12 | P13: 0.73 | Q13: 1.6
A14: Name 10 | B14: 890-9670-04 | C14: 48 | D14: 50 | E14: 45 | F14: 41 | G14: 16 | H14: 39 | I14: 29 | J14: 22 | P14: 0.74 | Q14: 1.7
A15: Name 11 | B15: 890-9002-79 | C15: 43 | D15: 32 | E15: 42 | F15: 45 | G15: 46 | H15: 40 | I15: 48 | J15: 10 | P15: 0.75 | Q15: 1.8
A16: Name 12 | B16: 890-1803-39 | C16: 24 | D16: 39 | E16: 26 | F16: 37 | G16: 49 | H16: 17 | I16: 1 | J16: 40 | P16: 0.76 | Q16: 1.9
A17: Name 13 | B17: 890-0330-60 | C17: 15 | D17: 33 | E17: 12 | F17: 45 | G17: 41 | H17: 21 | I17: 0 | J17: 0 | P17: 0.77 | Q17: 2
P18: 0.78 | Q18: 2.1
A19: Notes: | P19: 0.79 | Q19: 2.2
A20: SMALL function can retrieve the 1st, 2nd, 3rd, smallest values | P20: 0.8 | Q20: 2.3
A21: Use array syntax such as {1,2}, allows the SMALL function to get two values simultaneously | P21: 0.81 | Q21: 2.4
A22: VLOOKUP Function retrieves a value from a table and delivers it to a cell based on a lookup value. | P22: 0.82 | Q22: 2.5
A23: The lookup value determines what row in the table has the value you want to return to the cell. | P23: 0.83 | Q23: 2.6
A24: The VLOOKUP table must be sorted ascending when you are doing an approximate match. | P24: 0.84 | Q24: 2.7
A25: The VLOOKUP column number is the column in the table that has the value you want to return to the cell. | P25: 0.85 | Q25: 2.8
A26: Formula in cell K5 is =SUM(SMALL(C5:J5,{1,2})) | P26: 0.86 | Q26: 2.9
P27: 0.87 | Q27: 3
P28: 0.88 | Q28: 3.1
A29: For more about Grading Formulas in Excel, see this playlist of videos: | P29: 0.89 | Q29: 3.2
A30: Excel Grade Book Examples | P30: 0.9 | Q30: 3.3
A31: http://www.youtube.com/course?list=EC55EE6D4F281D8363 | P31: 0.91 | Q31: 3.4
P32: 0.92 | Q32: 3.5
A33: For a comprehensive video on what VLOOKUP can do, see this video: | P33: 0.93 | Q33: 3.6
A34: VLOOKUP function Beginner to Advanced 26 Examples (Excel VLOOKUP WEEK Video #1) | P34: 0.94 | Q34: 3.7
A35: http://www.youtube.com/watch?v=-hJxIMBbmZY | P35: 0.95 | Q35: 3.8
P36: 0.96 | Q36: 3.9
P37: 0.97 | Q37: 4

Sheet (12an)
A1: Topic: | B1: ='(12)'!B1 -> Grade Table Subtract Two Lowest Before Assigning Decimal Grade
P2: % | Q2: Decimal
A3: Name | B3: ID | C3: ="Q "&COLUMNS($C3:C3) -> Q 1 | D3: ="Q "&COLUMNS($C3:D3) -> Q 2 | E3: ="Q "&COLUMNS($C3:E3) -> Q 3 | F3: ="Q "&COLUMNS($C3:F3) -> Q 4 | G3: ="Q "&COLUMNS($C3:G3) -> Q 5 | H3: ="Q "&COLUMNS($C3:H3) -> Q 6 | I3: ="Q "&COLUMNS($C3:I3) -> Q 7 | J3: ="Q "&COLUMNS($C3:J3) -> Q 8 | K3: Two Lowest | L3: Total Possible | M3: % Grade | N3: Decimal | P3: 0 | Q3: 0
A4: Max | C4: 50 | D4: 50 | E4: 50 | F4: 50 | G4: 50 | H4: 50 | I4: 50 | J4: 50 | K4: =SUM(SMALL(C4:J4,{1,2})) -> 100 | L4: =SUM(C4:J4)-K4 -> 300 | M4: =L4/L$4 -> 1 | N4: =VLOOKUP(M4,$P$3:$Q$37,2) -> 4 | P4: 0.64 | Q4: 0.7
A5: Name 1 | B5: 890-4399-28 | C5: 45 | D5: 44 | E5: 49 | F5: 46 | G5: 44 | H5: 14 | I5: 30 | J5: 28 | K5: =SUM(SMALL(C5:J5,{1,2})) -> 42 | L5: =SUM(C5:J5)-K5 -> 258 | M5: =L5/L$4 -> 0.86 | N5: 2.9 | P5: 0.65 | Q5: 0.8
A6: Name 2 | B6: 890-6131-83 | C6: 49 | D6: 40 | E6: 47 | F6: 39 | G6: 13 | H6: 40 | I6: 25 | J6: 27 | K6: =SUM(SMALL(C6:J6,{1,2})) -> 38 | L6: 242 | M6: 0.8066666667 | N6: 2.3 | P6: 0.66 | Q6: 0.9
A7: Name 3 | B7: 890-8798-27 | C7: 27 | D7: 43 | E7: 24 | F7: 36 | G7: 29 | H7: 27 | I7: 45 | J7: 38 | K7: =SUM(SMALL(C7:J7,{1,2})) -> 51 | L7: 218 | M7: 0.7266666667 | N7: 1.5 | P7: 0.67 | Q7: 1
A8: Name 4 | B8: 890-9230-00 | C8: 44 | D8: 41 | E8: 45 | F8: 49 | G8: 33 | H8: 45 | I8: 21 | J8: 23 | K8: =SUM(SMALL(C8:J8,{1,2})) -> 44 | L8: 257 | M8: 0.8566666667 | N8: 2.8 | P8: 0.68 | Q8: 1.1
A9: Name 5 | B9: 890-2035-86 | C9: 50 | D9: 22 | E9: 50 | F9: 49 | G9: 13 | H9: 34 | I9: 49 | J9: 48 | K9: =SUM(SMALL(C9:J9,{1,2})) -> 35 | L9: 280 | M9: 0.9333333333 | N9: 3.6 | P9: 0.69 | Q9: 1.2
A10: Name 6 | B10: 890-1448-63 | C10: 38 | D10: 26 | E10: 42 | F10: 38 | G10: 32 | H10: 34 | I10: 50 | J10: 26 | K10: =SUM(SMALL(C10:J10,{1,2})) -> 52 | L10: 234 | M10: 0.78 | N10: 2.1 | P10: 0.7 | Q10: 1.3
A11: Name 7 | B11: 890-2540-99 | C11: 50 | D11: 44 | E11: 48 | F11: 49 | G11: 21 | H11: 49 | I11: 26 | J11: 44 | K11: =SUM(SMALL(C11:J11,{1,2})) -> 47 | L11: 284 | M11: 0.9466666667 | N11: 3.7 | P11: 0.71 | Q11: 1.4
A12: Name 8 | B12: 890-3442-78 | C12: 40 | D12: 41 | E12: 50 | F12: 49 | G12: 3 | H12: 0 | I12: 22 | J12: 8 | K12: =SUM(SMALL(C12:J12,{1,2})) -> 3 | L12: 210 | M12: 0.7 | N12: 1.3 | P12: 0.72 | Q12: 1.5
A13: Name 9 | B13: 890-9023-54 | C13: 50 | D13: 42 | E13: 49 | F13: 35 | G13: 47 | H13: 34 | I13: 11 | J13: 12 | K13: =SUM(SMALL(C13:J13,{1,2})) -> 23 | L13: 257 | M13: 0.8566666667 | N13: 2.8 | P13: 0.73 | Q13: 1.6
A14: Name 10 | B14: 890-9670-04 | C14: 48 | D14: 50 | E14: 45 | F14: 41 | G14: 16 | H14: 39 | I14: 29 | J14: 22 | K14: =SUM(SMALL(C14:J14,{1,2})) -> 38 | L14: 252 | M14: 0.84 | N14: 2.7 | P14: 0.74 | Q14: 1.7
A15: Name 11 | B15: 890-9002-79 | C15: 43 | D15: 32 | E15: 42 | F15: 45 | G15: 46 | H15: 40 | I15: 48 | J15: 10 | K15: =SUM(SMALL(C15:J15,{1,2})) -> 42 | L15: 264 | M15: 0.88 | N15: 3.1 | P15: 0.75 | Q15: 1.8
A16: Name 12 | B16: 890-1803-39 | C16: 24 | D16: 39 | E16: 26 | F16: 37 | G16: 49 | H16: 17 | I16: 1 | J16: 40 | K16: =SUM(SMALL(C16:J16,{1,2})) -> 18 | L16: 215 | M16: 0.7166666667 | N16: 1.4 | P16: 0.76 | Q16: 1.9
A17: Name 13 | B17: 890-0330-60 | C17: 15 | D17: 33 | E17: 12 | F17: 45 | G17: 41 | H17: 21 | I17: 0 | J17: 0 | K17: =SUM(SMALL(C17:J17,{1,2})) -> 0 | L17: 167 | M17: 0.5566666667 | N17: 0 | P17: 0.77 | Q17: 2
P18: 0.78 | Q18: 2.1
A19: Notes: | P19: 0.79 | Q19: 2.2
A20: SMALL function can retrieve the 1st, 2nd, 3rd, smallest values | P20: 0.8 | Q20: 2.3
A21: Use array syntax such as {1,2}, allows the SMALL function to get two values simultaneously | P21: 0.81 | Q21: 2.4
A22: VLOOKUP Function retrieves a value from a table and delivers it to a cell based on a lookup value. | P22: 0.82 | Q22: 2.5
A23: The lookup value determines what row in the table has the value you want to return to the cell. | P23: 0.83 | Q23: 2.6
A24: The VLOOKUP table must be sorted ascending when you are doing an approximate match. | P24: 0.84 | Q24: 2.7
A25: The VLOOKUP column number is the column in the table that has the value you want to return to the cell. | P25: 0.85 | Q25: 2.8
A26: Formula in cell K5 is =SUM(SMALL(C5:J5,{1,2})) | P26: 0.86 | Q26: 2.9
P27: 0.87 | Q27: 3
P28: 0.88 | Q28: 3.1
A29: For more about Grading Formulas in Excel, see this playlist of videos: | P29: 0.89 | Q29: 3.2
A30: Excel Grade Book Examples | P30: 0.9 | Q30: 3.3
A31: http://www.youtube.com/course?list=EC55EE6D4F281D8363 | P31: 0.91 | Q31: 3.4
P32: 0.92 | Q32: 3.5
A33: For a comprehensive video on what VLOOKUP can do, see this video: | P33: 0.93 | Q33: 3.6
A34: VLOOKUP function Beginner to Advanced 26 Examples (Excel VLOOKUP WEEK Video #1) | P34: 0.94 | Q34: 3.7
A35: http://www.youtube.com/watch?v=-hJxIMBbmZY | P35: 0.95 | Q35: 3.8
P36: 0.96 | Q36: 3.9
P37: 0.97 | Q37: 4

Sheet (13)
A1: Topic: | B1: =INDIRECT("'Topics'!B"&SUBSTITUTE(REPLACE(CELL("filename",A1),1,SEARCH("(",CELL("filename",A1)),""),")","")+3) -> Array Formula: INDEX & MATCH Functions To Lookup First Value
C3: Stock Price
A4: Stock | B4: First Price | C4: Day 1 | D4: Day 2 | E4: Day 3 | F4: Day 4 | G4: Day 5
A5: Stock 1 | D5: 23 | F5: 21.2
A6: Stock 2 | C6: 54 | D6: 53.1 | E6: 51 | F6: 52.15
A7: Stock 3 | G7: 2.12
A8: Stock 4 | E8: 14.5 | F8: 16 | G8: 15.75
A9: Stock 5 | D9: 45.25
A10: Stock 6 | E10: 12.5 | F10: 12.78
A11: Stock 7 | F11: 22.85
A12: Stock 8 | C12: 22.15 | D12: 22.05 | E12: 19.75
A13: Stock 9 | D13: 15.8 | G13: 25.5
A15: Notes:
A16: Array Calculations return more than one value. In this example, we have given the MATCH function an array calculation to do. This make this an array formula.
A17: Array Calculations in functions other than SUMPRODUCT, LOOKUP, INDEX, AGGREGATE require the keystroke: Ctrl + Shift + Enter
A18: When you use Ctrl + Shift + Enter, Excel will put Curly Brackets into the formula to let you know that this is an array formula.
A19: When you do "Exact Match" in VLOOKUP or MATCH, if there are duplicates, it takes the first one only.
A20: INDEX is a lookup function that retrieves an item if you give it the row and/or number.
A21: Formula in cell B5 is {=INDEX(C5:G5,,MATCH(TRUE,C5:G5<>"",0))}. DON'T FORGET Ctrl + Shift + Enter.
A23: For more information about INDEX and MATCH functions, see this video:
A24: Excel Magic Trick 778: INDEX & MATCH Lookup Functions Beginning To Advanced (18 Examples)
A25: http://www.youtube.com/watch?v=bMWv0AN-hSs
A27: More about array formulas:
A28: Excel Array Formulas Beg - Advanced
A29: http://www.youtube.com/course?list=EC007E7E9CA63304D3

Sheet (13an)
A1: Topic: | B1: ='(13)'!B1 -> Array Formula: INDEX & MATCH Functions To Lookup First Value
C3: Stock Price
A4: Stock | B4: First Price | C4: Day 1 | D4: Day 2 | E4: Day 3 | F4: Day 4 | G4: Day 5
A5: Stock 1 | B5: =INDEX(C5:G5,,MATCH(TRUE,C5:G5<>"",0)) -> 23 | D5: 23 | F5: 21.2
A6: Stock 2 | B6: =INDEX(C6:G6,,MATCH(TRUE,C6:G6<>"",0)) -> 54 | C6: 54 | D6: 53.1 | E6: 51 | F6: 52.15
A7: Stock 3 | B7: =INDEX(C7:G7,,MATCH(TRUE,C7:G7<>"",0)) -> 2.12 | G7: 2.12
A8: Stock 4 | B8: =INDEX(C8:G8,,MATCH(TRUE,C8:G8<>"",0)) -> 14.5 | E8: 14.5 | F8: 16 | G8: 15.75
A9: Stock 5 | B9: =INDEX(C9:G9,,MATCH(TRUE,C9:G9<>"",0)) -> 45.25 | D9: 45.25
A10: Stock 6 | B10: =INDEX(C10:G10,,MATCH(TRUE,C10:G10<>"",0)) -> 12.5 | E10: 12.5 | F10: 12.78
A11: Stock 7 | B11: =INDEX(C11:G11,,MATCH(TRUE,C11:G11<>"",0)) -> 22.85 | F11: 22.85
A12: Stock 8 | B12: =INDEX(C12:G12,,MATCH(TRUE,C12:G12<>"",0)) -> 22.15 | C12: 22.15 | D12: 22.05 | E12: 19.75
A13: Stock 9 | B13: =INDEX(C13:G13,,MATCH(TRUE,C13:G13<>"",0)) -> 15.8 | D13: 15.8 | G13: 25.5
A15: Notes:
A16: Array Calculations return more than one value. In this example, we have given the MATCH function an array calculation to do. This make this an array formula.
A17: Array Calculations in functions other than SUMPRODUCT, LOOKUP, INDEX, AGGREGATE require the keystroke: Ctrl + Shift + Enter
A18: When you use Ctrl + Shift + Enter, Excel will put Curly Brackets into the formula to let you know that this is an array formula.
A19: When you do "Exact Match" in VLOOKUP or MATCH, if there are duplicates, it takes the first one only.
A20: INDEX is a lookup function that retrieves an item if you give it the row and/or number.
A21: Formula in cell B5 is {=INDEX(C5:G5,,MATCH(TRUE,C5:G5<>"",0))}. DON'T FORGET Ctrl + Shift + Enter.
A23: For more information about INDEX and MATCH functions, see this video:
A24: Excel Magic Trick 778: INDEX & MATCH Lookup Functions Beginning To Advanced (18 Examples)
A25: http://www.youtube.com/watch?v=bMWv0AN-hSs
A27: More about array formulas:
A28: Excel Array Formulas Beg - Advanced
A29: http://www.youtube.com/course?list=EC007E7E9CA63304D3

Sheet (14)
A1: Topic: | B1: =INDIRECT("'Topics'!B"&SUBSTITUTE(REPLACE(CELL("filename",A1),1,SEARCH("(",CELL("filename",A1)),""),")","")+3) -> Array Formula: LOOKUP Function To Lookup Last Value
D3: Stock Price
A4: Stock | B4: First Price | C4: Last Price | D4: Day 1 | E4: Day 2 | F4: Day 3 | G4: Day 4 | H4: Day 5
A5: Stock 1 | B5: =INDEX(D5:H5,,MATCH(TRUE,D5:H5<>"",0)) -> 23 | E5: 23 | G5: 21.2
A6: Stock 2 | B6: =INDEX(D6:H6,,MATCH(TRUE,D6:H6<>"",0)) -> 54 | D6: 54 | E6: 53.1 | F6: 51 | G6: 52.15
A7: Stock 3 | B7: =INDEX(D7:H7,,MATCH(TRUE,D7:H7<>"",0)) -> 1 | E7: 1 | F7: 2.12
A8: Stock 4 | B8: =INDEX(D8:H8,,MATCH(TRUE,D8:H8<>"",0)) -> 14.5 | F8: 14.5 | G8: 16 | H8: 15.75
A9: Stock 5 | B9: =INDEX(D9:H9,,MATCH(TRUE,D9:H9<>"",0)) -> 45.25 | E9: 45.25
A10: Stock 6 | B10: =INDEX(D10:H10,,MATCH(TRUE,D10:H10<>"",0)) -> 12.5 | F10: 12.5 | G10: 12.78
A11: Stock 7 | B11: =INDEX(D11:H11,,MATCH(TRUE,D11:H11<>"",0)) -> 22.85 | G11: 22.85
A12: Stock 8 | B12: =INDEX(D12:H12,,MATCH(TRUE,D12:H12<>"",0)) -> 22.15 | D12: 22.15 | E12: 22.05 | F12: 19.75
A13: Stock 9 | B13: =INDEX(D13:H13,,MATCH(TRUE,D13:H13<>"",0)) -> 15.8 | E13: 15.8 | H13: 25.5
A15: Notes:
A16: LOOKUP function does "Approximate Match" Lookup like MATCH and VLOOKUP (Table must be sorted ascending).
A17: LOOKUP allows you to have two separate arrays: one to lookup value and one to find the value to retrieve.
A18: LOOKUP Function can do array formula calculations and DOES NOT require Ctrl + Shift + Enter.
A19: When you do "Approximate Match", if the lookup value is bigger than the last value in the first column, it retrieves the last value.
A20: Formula in cell C5 is =LOOKUP(2,1/(D5:H5<>""),D5:H5)
A22: For more about LOOKUP Function, see:
A23: LOOKUP function Beginner to Advanced 23 Examples (Excel VLOOKUP WEEK Video #2)
A24: http://www.youtube.com/watch?v=N24cBM-CTw4
A26: More about array formulas:
A27: Excel Array Formulas Beg - Advanced
A28: http://www.youtube.com/course?list=EC007E7E9CA63304D3

Sheet (14an)
A1: Topic: | B1: ='(14)'!B1 -> Array Formula: LOOKUP Function To Lookup Last Value
D3: Stock Price
A4: Stock | B4: First Price | C4: Last Price | D4: Day 1 | E4: Day 2 | F4: Day 3 | G4: Day 4 | H4: Day 5
A5: Stock 1 | B5: =INDEX(D5:H5,,MATCH(TRUE,D5:H5<>"",0)) -> 23 | C5: =LOOKUP(2,1/(D5:H5<>""),D5:H5) -> 21.2 | E5: 23 | G5: 21.2
A6: Stock 2 | B6: =INDEX(D6:H6,,MATCH(TRUE,D6:H6<>"",0)) -> 54 | C6: =LOOKUP(2,1/(D6:H6<>""),D6:H6) -> 52.15 | D6: 54 | E6: 53.1 | F6: 51 | G6: 52.15
A7: Stock 3 | B7: =INDEX(D7:H7,,MATCH(TRUE,D7:H7<>"",0)) -> 2.12 | C7: 2.12 | H7: 2.12
A8: Stock 4 | B8: =INDEX(D8:H8,,MATCH(TRUE,D8:H8<>"",0)) -> 14.5 | C8: 15.75 | F8: 14.5 | G8: 16 | H8: 15.75
A9: Stock 5 | B9: =INDEX(D9:H9,,MATCH(TRUE,D9:H9<>"",0)) -> 45.25 | C9: 45.25 | E9: 45.25
A10: Stock 6 | B10: =INDEX(D10:H10,,MATCH(TRUE,D10:H10<>"",0)) -> 12.5 | C10: 12.78 | F10: 12.5 | G10: 12.78
A11: Stock 7 | B11: =INDEX(D11:H11,,MATCH(TRUE,D11:H11<>"",0)) -> 22.85 | C11: 22.85 | G11: 22.85
A12: Stock 8 | B12: =INDEX(D12:H12,,MATCH(TRUE,D12:H12<>"",0)) -> 22.15 | C12: 19.75 | D12: 22.15 | E12: 22.05 | F12: 19.75
A13: Stock 9 | B13: =INDEX(D13:H13,,MATCH(TRUE,D13:H13<>"",0)) -> 15.8 | C13: 25.5 | E13: 15.8 | H13: 25.5
A15: Notes:
A16: LOOKUP function does "Approximate Match" Lookup like MATCH and VLOOKUP (Table must be sorted ascending).
A17: LOOKUP allows you to have two separate arrays: one to lookup value and one to find the value to retrieve.
A18: LOOKUP Function can do array formula calculations and DOES NOT require Ctrl + Shift + Enter.
A19: When you do "Approximate Match", if the lookup value is bigger than the last value in the first column, it retrieves the last value.
A20: Formula in cell C5 is =LOOKUP(2,1/(D5:H5<>""),D5:H5)
A22: For more about LOOKUP Function, see:
A23: LOOKUP function Beginner to Advanced 23 Examples (Excel VLOOKUP WEEK Video #2)
A24: http://www.youtube.com/watch?v=N24cBM-CTw4
A26: More about array formulas:
A27: Excel Array Formulas Beg - Advanced
A28: http://www.youtube.com/course?list=EC007E7E9CA63304D3

Sheet (15)
A1: Topic: | B1: =INDIRECT("'Topics'!B"&SUBSTITUTE(REPLACE(CELL("filename",A1),1,SEARCH("(",CELL("filename",A1)),""),")","")+3) -> PivotTable For Yearly Percentage Change Calculations
A3: Notes:
A4: PivotTables:
A5: Proper Data Set
A6: Drag and Drop Fields
A7: Group by Year
A8: Design, Report Layout, Show In Tabular Form
A9: Value Field settings: Name (with space), Show Values As, Number Formatting
A10: Show Values As: Difference From Previous
A11: Show Values As: % Difference From Previous
A13: For more about PivotTables, see these videos:
A14: Office 2010 Class #36: Excel PivotTables Pivot Tables 15 examples (Data Analysis)
A15: http://www.youtube.com/watch?v=qMGILHiLqr0
A17: Date | B17: Sales
A18: 2009-04-24 | B18: 70001
A19: 2009-11-21 | B19: 36636
A20: 2009-10-15 | B20: 12167
A21: 2012-04-04 | B21: 44309
A22: 2009-08-27 | B22: 45872
A23: 2011-10-08 | B23: 67439
A24: 2010-11-13 | B24: 54394
A25: 2009-07-15 | B25: 18746
A26: 2009-10-22 | B26: 36184
A27: 2012-06-06 | B27: 39543
A28: 2011-11-25 | B28: 55522
A29: 2012-02-08 | B29: 54908
A30: 2010-04-14 | B30: 61102
A31: 2012-09-18 | B31: 95776
A32: 2010-05-13 | B32: 56944
A33: 2010-07-21 | B33: 15839
A34: 2009-03-27 | B34: 20279
A35: 2011-01-08 | B35: 84595
A36: 2009-03-05 | B36: 85017
A37: 2010-06-22 | B37: 78207
A38: 2010-03-16 | B38: 66340
A39: 2012-09-03 | B39: 44181
A40: 2012-03-24 | B40: 16665
A41: 2012-05-26 | B41: 13832
A42: 2012-01-24 | B42: 40691
A43: 2009-12-25 | B43: 59154
A44: 2012-10-07 | B44: 60431
A45: 2010-07-09 | B45: 12508
A46: 2011-04-14 | B46: 34069
A47: 2011-10-31 | B47: 65172
A48: 2011-07-07 | B48: 68379
A49: 2010-03-11 | B49: 56702
A50: 2011-03-20 | B50: 42768
A51: 2010-08-08 | B51: 50150
A52: 2011-05-21 | B52: 57257
A53: 2011-08-31 | B53: 50109
A54: 2012-06-04 | B54: 32701
A55: 2009-01-15 | B55: 24008
A56: 2010-08-18 | B56: 60954
A57: 2009-02-01 | B57: 51528
A58: 2012-01-02 | B58: 53802
A59: 2011-03-10 | B59: 82114
A60: 2011-07-19 | B60: 20143
A61: 2010-09-28 | B61: 15309
A62: 2010-01-25 | B62: 86115
A63: 2009-11-30 | B63: 43965
A64: 2012-02-05 | B64: 20326
A65: 2011-07-12 | B65: 53647
A66: 2009-09-26 | B66: 78437
A67: 2009-05-19 | B67: 80307
A68: 2009-01-12 | B68: 57925
A69: 2010-07-28 | B69: 37259
A70: 2010-12-01 | B70: 78529
A71: 2009-07-21 | B71: 80704
A72: 2011-08-22 | B72: 70232
A73: 2012-10-16 | B73: 32244
A74: 2012-02-08 | B74: 50337
A75: 2012-01-01 | B75: 66164
A76: 2012-11-10 | B76: 72228
A77: 2012-01-04 | B77: 40360
A78: 2010-03-12 | B78: 50088
A79: 2009-01-16 | B79: 46374
A80: 2012-06-30 | B80: 65164
A81: 2011-03-21 | B81: 42263
A82: 2011-04-14 | B82: 22112
A83: 2011-04-05 | B83: 39127
A84: 2009-10-01 | B84: 28983
A85: 2011-09-04 | B85: 29869
A86: 2012-03-30 | B86: 21792
A87: 2009-03-01 | B87: 54406
A88: 2010-12-27 | B88: 23915
A89: 2012-06-10 | B89: 74556
A90: 2010-04-15 | B90: 87824
A91: 2010-04-07 | B91: 42339
A92: 2010-01-13 | B92: 21595
A93: 2012-01-27 | B93: 62491
A94: 2012-03-04 | B94: 73334
A95: 2010-02-09 | B95: 71541
A96: 2012-07-15 | B96: 16911
A97: 2011-10-04 | B97: 54194
A98: 2010-10-22 | B98: 38977
A99: 2010-09-29 | B99: 87598
A100: 2011-04-08 | B100: 26433
A101: 2009-03-03 | B101: 75536
A102: 2011-01-20 | B102: 50271
A103: 2009-06-30 | B103: 98154
A104: 2010-08-26 | B104: 18481
A105: 2011-03-02 | B105: 40093
A106: 2011-02-22 | B106: 31566
A107: 2011-02-16 | B107: 27128
A108: 2011-04-29 | B108: 42006
A109: 2012-01-02 | B109: 34507
A110: 2012-02-01 | B110: 61875
A111: 2011-08-11 | B111: 61343
A112: 2009-12-06 | B112: 35086
A113: 2012-11-20 | B113: 77948
A114: 2010-04-25 | B114: 43939
A115: 2009-12-14 | B115: 53152
A116: 2012-01-25 | B116: 35070
A117: 2010-11-18 | B117: 10051
A118: 2012-03-15 | B118: 79782
A119: 2010-07-26 | B119: 60553
A120: 2009-09-17 | B120: 27818
A121: 2012-04-22 | B121: 74808
A122: 2009-06-23 | B122: 10431
A123: 2011-03-22 | B123: 52615
A124: 2011-10-22 | B124: 12790
A125: 2010-07-18 | B125: 24725
A126: 2011-10-04 | B126: 28764
A127: 2011-02-02 | B127: 68140
A128: 2009-04-09 | B128: 77941
A129: 2010-12-20 | B129: 80214
A130: 2012-03-29 | B130: 72111
A131: 2010-03-29 | B131: 81780
A132: 2011-04-18 | B132: 49733
A133: 2010-12-19 | B133: 66607
A134: 2009-07-20 | B134: 48566
A135: 2010-04-03 | B135: 52539
A136: 2009-09-22 | B136: 39403
A137: 2011-02-06 | B137: 34046
A138: 2010-10-25 | B138: 82214
A139: 2009-09-20 | B139: 73621
A140: 2009-04-30 | B140: 102010
A141: 2012-12-12 | B141: 11742
A142: 2012-05-17 | B142: 22799
A143: 2010-05-20 | B143: 61615
A144: 2012-04-10 | B144: 10525
A145: 2010-10-05 | B145: 30474
A146: 2009-10-23 | B146: 65666
A147: 2011-04-16 | B147: 15149
A148: 2011-07-06 | B148: 44738
A149: 2010-09-07 | B149: 50908
A150: 2010-02-25 | B150: 106648
A151: 2010-09-23 | B151: 73247
A152: 2011-02-25 | B152: 49058
A153: 2012-11-01 | B153: 28692
A154: 2011-04-20 | B154: 76561
A155: 2011-06-12 | B155: 52768
A156: 2009-01-19 | B156: 76974
A157: 2011-05-30 | B157: 17582
A158: 2011-06-30 | B158: 47677
A159: 2010-05-11 | B159: 56177
A160: 2009-03-22 | B160: 27748
A161: 2010-02-27 | B161: 104707
A162: 2010-09-11 | B162: 61841
A163: 2011-10-03 | B163: 63846
A164: 2009-11-28 | B164: 68320
A165: 2010-10-02 | B165: 68641
A166: 2011-03-12 | B166: 42160
A167: 2009-07-18 | B167: 75852
A168: 2012-09-24 | B168: 13713
A169: 2009-03-09 | B169: 33455
A170: 2011-10-11 | B170: 40550
A171: 2010-04-29 | B171: 69496
A172: 2010-11-11 | B172: 52357
A173: 2011-08-29 | B173: 16499
A174: 2011-07-25 | B174: 61813
A175: 2011-10-29 | B175: 35397
A176: 2011-05-12 | B176: 59295
A177: 2009-10-11 | B177: 42413
A178: 2010-05-06 | B178: 34666
A179: 2012-06-04 | B179: 67099
A180: 2010-03-26 | B180: 99945
A181: 2012-05-30 | B181: 95761
A182: 2011-07-18 | B182: 56797
A183: 2009-02-07 | B183: 12374
A184: 2011-11-20 | B184: 53009
A185: 2011-08-01 | B185: 13070
A186: 2011-07-17 | B186: 43316
A187: 2010-04-02 | B187: 47151
A188: 2009-11-07 | B188: 23618
A189: 2009-10-21 | B189: 33491
A190: 2012-02-19 | B190: 87997
A191: 2012-08-03 | B191: 10426
A192: 2012-12-20 | B192: 87422
A193: 2011-03-04 | B193: 10709
A194: 2009-09-08 | B194: 46744
A195: 2012-01-06 | B195: 60048
A196: 2011-02-25 | B196: 52288
A197: 2011-07-30 | B197: 100858
A198: 2012-02-14 | B198: 63956
A199: 2012-11-07 | B199: 76921
A200: 2009-08-21 | B200: 99072
A201: 2011-08-28 | B201: 15811
A202: 2010-10-14 | B202: 68639
A203: 2012-12-30 | B203: 82571
... 10502 more rows

Sheet Pt(1-an)
A3: Year | B3: Sales | C3: Amount of Change | D3: % Change
A4: 2009 | B4: 144237826
A5: 2010 | B5: 144180127 | C5: -57699 | D5: -0.0004000268279
A6: 2011 | B6: 141666064 | C6: -2514063 | D6: -0.01743695926
A7: 2012 | B7: 150893810 | C7: 9227746 | D7: 0.06513730769
A8: Grand Total | B8: 580977827

Sheet (16)
A1: Topic: | B1: =INDIRECT("'Topics'!B"&SUBSTITUTE(REPLACE(CELL("filename",A1),1,SEARCH("(",CELL("filename",A1)),""),")","")+3) -> PivotTable For Running Total
A3: Notes:
A4: Show Values Running Total
A6: For more about PivotTables, see these videos:
A7: Office 2010 Class #36: Excel PivotTables Pivot Tables 15 examples (Data Analysis)
A8: http://www.youtube.com/watch?v=qMGILHiLqr0
A10: Date | B10: Sales
A11: 2012-04-24 | B11: 70001
A12: 2012-11-21 | B12: 36636
A13: 2012-10-15 | B13: 12167
A14: 2012-04-04 | B14: 44309
A15: 2012-08-27 | B15: 45872
A16: 2012-10-08 | B16: 67439
A17: 2012-11-13 | B17: 54394
A18: 2012-07-15 | B18: 18746
A19: 2012-10-22 | B19: 36184
A20: 2012-06-06 | B20: 39543
A21: 2012-11-25 | B21: 55522
A22: 2012-02-08 | B22: 54908
A23: 2012-04-14 | B23: 61102
A24: 2012-09-18 | B24: 95776
A25: 2012-05-13 | B25: 56944
A26: 2012-07-21 | B26: 15839
A27: 2012-03-27 | B27: 20279
A28: 2012-01-08 | B28: 84595
A29: 2012-03-05 | B29: 85017
A30: 2012-06-22 | B30: 78207
A31: 2012-03-16 | B31: 66340
A32: 2012-09-03 | B32: 44181
A33: 2012-03-24 | B33: 16665
A34: 2012-05-26 | B34: 13832
A35: 2012-01-24 | B35: 40691
A36: 2012-12-25 | B36: 59154
A37: 2012-10-07 | B37: 60431
A38: 2012-07-09 | B38: 12508
A39: 2012-04-14 | B39: 34069
A40: 2012-10-31 | B40: 65172
A41: 2012-07-07 | B41: 68379
A42: 2012-03-11 | B42: 56702
A43: 2012-03-20 | B43: 42768
A44: 2012-08-08 | B44: 50150
A45: 2012-05-21 | B45: 57257
A46: 2012-08-31 | B46: 50109
A47: 2012-06-04 | B47: 32701
A48: 2012-01-15 | B48: 24008
A49: 2012-08-18 | B49: 60954
A50: 2012-02-01 | B50: 51528
A51: 2012-01-02 | B51: 53802
A52: 2012-03-10 | B52: 82114
A53: 2012-07-19 | B53: 20143
A54: 2012-09-28 | B54: 15309
A55: 2012-01-25 | B55: 86115
A56: 2012-11-30 | B56: 43965
A57: 2012-02-05 | B57: 20326
A58: 2012-07-12 | B58: 53647
A59: 2012-09-26 | B59: 78437
A60: 2012-05-19 | B60: 80307
A61: 2012-01-12 | B61: 57925
A62: 2012-07-28 | B62: 37259
A63: 2012-12-01 | B63: 78529
A64: 2012-07-21 | B64: 80704
A65: 2012-08-22 | B65: 70232
A66: 2012-10-16 | B66: 32244
A67: 2012-02-08 | B67: 50337
A68: 2012-01-01 | B68: 66164
A69: 2012-11-10 | B69: 72228
A70: 2012-01-04 | B70: 40360
A71: 2012-03-12 | B71: 50088
A72: 2012-01-16 | B72: 46374
A73: 2012-06-30 | B73: 65164
A74: 2012-03-21 | B74: 42263
A75: 2012-04-14 | B75: 22112
A76: 2012-04-05 | B76: 39127
A77: 2012-10-01 | B77: 28983
A78: 2012-09-04 | B78: 29869
A79: 2012-03-30 | B79: 21792
A80: 2012-03-01 | B80: 54406
A81: 2012-12-27 | B81: 23915
A82: 2012-06-10 | B82: 74556
A83: 2012-04-15 | B83: 87824
A84: 2012-04-07 | B84: 42339
A85: 2012-01-13 | B85: 21595
A86: 2012-01-27 | B86: 62491
A87: 2012-03-04 | B87: 73334
A88: 2012-02-09 | B88: 71541
A89: 2012-07-15 | B89: 16911
A90: 2012-10-04 | B90: 54194
A91: 2012-10-22 | B91: 38977
A92: 2012-09-29 | B92: 87598
A93: 2012-04-08 | B93: 26433
A94: 2012-03-03 | B94: 75536
A95: 2012-01-20 | B95: 50271
A96: 2012-06-30 | B96: 98154
A97: 2012-08-26 | B97: 18481
A98: 2012-03-02 | B98: 40093
A99: 2012-02-22 | B99: 31566
A100: 2012-02-16 | B100: 27128
A101: 2012-04-29 | B101: 42006
A102: 2012-01-02 | B102: 34507
A103: 2012-02-01 | B103: 61875
A104: 2012-08-11 | B104: 61343
A105: 2012-12-06 | B105: 35086
A106: 2012-11-20 | B106: 77948
A107: 2012-04-25 | B107: 43939
A108: 2012-12-14 | B108: 53152
A109: 2012-01-25 | B109: 35070
A110: 2012-11-18 | B110: 10051
A111: 2012-03-15 | B111: 79782
A112: 2012-07-26 | B112: 60553
A113: 2012-09-17 | B113: 27818
A114: 2012-04-22 | B114: 74808
A115: 2012-06-23 | B115: 10431
A116: 2012-03-22 | B116: 52615
A117: 2012-10-22 | B117: 12790
A118: 2012-07-18 | B118: 24725
A119: 2012-10-04 | B119: 28764
A120: 2012-02-02 | B120: 68140
A121: 2012-04-09 | B121: 77941
A122: 2012-12-20 | B122: 80214
A123: 2012-03-29 | B123: 72111
A124: 2012-03-29 | B124: 81780
A125: 2012-04-18 | B125: 49733
A126: 2012-12-19 | B126: 66607
A127: 2012-07-20 | B127: 48566
A128: 2012-04-03 | B128: 52539
A129: 2012-09-22 | B129: 39403
A130: 2012-02-06 | B130: 34046
A131: 2012-10-25 | B131: 82214
A132: 2012-09-20 | B132: 73621
A133: 2012-04-30 | B133: 102010
A134: 2012-12-12 | B134: 11742
A135: 2012-05-17 | B135: 22799
A136: 2012-05-20 | B136: 61615
A137: 2012-04-10 | B137: 10525
A138: 2012-10-05 | B138: 30474
A139: 2012-10-23 | B139: 65666
A140: 2012-04-16 | B140: 15149
A141: 2012-07-06 | B141: 44738
A142: 2012-09-07 | B142: 50908
A143: 2012-02-25 | B143: 106648
A144: 2012-09-23 | B144: 73247
A145: 2012-02-25 | B145: 49058
A146: 2012-11-01 | B146: 28692
A147: 2012-04-20 | B147: 76561
A148: 2012-06-12 | B148: 52768
A149: 2012-01-19 | B149: 76974
A150: 2012-05-30 | B150: 17582
A151: 2012-06-30 | B151: 47677
A152: 2012-05-11 | B152: 56177
A153: 2012-03-22 | B153: 27748
A154: 2012-02-27 | B154: 104707
A155: 2012-09-11 | B155: 61841
A156: 2012-10-03 | B156: 63846
A157: 2012-11-28 | B157: 68320
A158: 2012-10-02 | B158: 68641
A159: 2012-03-12 | B159: 42160
A160: 2012-07-18 | B160: 75852
A161: 2012-09-24 | B161: 13713
A162: 2012-03-09 | B162: 33455
A163: 2012-10-11 | B163: 40550
A164: 2012-04-29 | B164: 69496
A165: 2012-11-11 | B165: 52357
A166: 2012-08-29 | B166: 16499
A167: 2012-07-25 | B167: 61813
A168: 2012-10-29 | B168: 35397
A169: 2012-05-12 | B169: 59295
A170: 2012-10-11 | B170: 42413
A171: 2012-05-06 | B171: 34666
A172: 2012-06-04 | B172: 67099
A173: 2012-03-26 | B173: 99945
A174: 2012-05-30 | B174: 95761
A175: 2012-07-18 | B175: 56797
A176: 2012-02-07 | B176: 12374
A177: 2012-11-20 | B177: 53009
A178: 2012-08-01 | B178: 13070
A179: 2012-07-17 | B179: 43316
A180: 2012-04-02 | B180: 47151
A181: 2012-11-07 | B181: 23618
A182: 2012-10-21 | B182: 33491
A183: 2012-02-19 | B183: 87997
A184: 2012-08-03 | B184: 10426
A185: 2012-12-20 | B185: 87422
A186: 2012-03-04 | B186: 10709
A187: 2012-09-08 | B187: 46744
A188: 2012-01-06 | B188: 60048
A189: 2012-02-25 | B189: 52288
A190: 2012-07-30 | B190: 100858
A191: 2012-02-14 | B191: 63956
A192: 2012-11-07 | B192: 76921
A193: 2012-08-21 | B193: 99072
A194: 2012-08-28 | B194: 15811
A195: 2012-10-14 | B195: 68639
A196: 2012-12-30 | B196: 82571
A197: 2012-09-16 | B197: 101190
A198: 2012-04-28 | B198: 48372
A199: 2012-06-29 | B199: 87555
A200: 2012-09-30 | B200: 59662
A201: 2012-11-22 | B201: 39773
A202: 2012-01-30 | B202: 45618
A203: 2012-05-13 | B203: 44873
... 10495 more rows

Sheet PT(2-an)
A3: Date | B3: Running Total
A4: Jan | B4: 48945623
A5: Feb | B5: 93177241
A6: Mar | B6: 141625997
A7: Apr | B7: 190920877
A8: May | B8: 238381633
A9: Jun | B9: 286063344
A10: Jul | B10: 336324929
A11: Aug | B11: 381495004
A12: Sep | B12: 428759722
A13: Oct | B13: 481972672
A14: Nov | B14: 530976050
A15: Dec | B15: 580977827
A16: Grand Total

Sheet (17)
A1: Topic: | B1: =INDIRECT("'Topics'!B"&SUBSTITUTE(REPLACE(CELL("filename",A1),1,SEARCH("(",CELL("filename",A1)),""),")","")+3) -> PivotTable For Cross Tabular Calculations & % of Row & % of Column Calculations
A3: Notes:
A4: Cross Tabulation with grouped data:
A5: To Group, Right-click field in PivotTable and point to Group
A6: Copy Paste Pivot Tables
A7: Show Values As: % or Row Total
A8: Show Values As: % of Column Total
A10: For more about PivotTables, see these videos:
A11: Office 2010 Class #36: Excel PivotTables Pivot Tables 15 examples (Data Analysis)
A12: http://www.youtube.com/watch?v=qMGILHiLqr0
A13: Excel 2010 Statistics #21: Cross Tabulation With PivotTable Frequencies and % Column & % Row
A14: http://www.youtube.com/watch?v=hOVCKJTLjaw
A16: No. | B16: Date (2010) | C16: Coupon | D16: Payment Method | E16: Boom | F16: Region | G16: Price | H16: Units | I16: Customer Age | J16: Sales | K16: Range (Flight out meters)
A17: 1 | B17: 2010-05-22 | C17: Coupon | D17: Mastercard | E17: Carlota | F17: West | G17: 22.95 | H17: 2 | I17: 21 | J17: 45.9 | K17: 20
A18: 2 | B18: 2010-06-29 | C18: Coupon | D18: Mastercard | E18: Yanaki | F18: West | G18: 19.95 | H18: 1 | I18: 57 | J18: 19.95 | K18: 25
A19: 3 | B19: 2010-11-05 | C19: No Coupon | D19: Mastercard | E19: Aspen | F19: East | G19: 21.95 | H19: 1 | I19: 25 | J19: 21.95 | K19: 22
A20: 4 | B20: 2010-08-31 | C20: No Coupon | D20: American Express | E20: Yanaki | F20: West | G20: 19.95 | H20: 1 | I20: 38 | J20: 19.95 | K20: 25
A21: 5 | B21: 2010-05-30 | C21: Coupon | D21: Visa | E21: Yanaki | F21: West | G21: 19.95 | H21: 4 | I21: 22 | J21: 79.8 | K21: 25
A22: 6 | B22: 2010-10-05 | C22: Coupon | D22: PayPal | E22: Yanaki | F22: South | G22: 19.95 | H22: 4 | I22: 29 | J22: 79.8 | K22: 25
A23: 7 | B23: 2010-03-22 | C23: Coupon | D23: Visa | E23: Yanaki | F23: West | G23: 19.95 | H23: 3 | I23: 18 | J23: 59.85 | K23: 25
A24: 8 | B24: 2010-06-14 | C24: No Coupon | D24: Discover | E24: Yanaki | F24: West | G24: 19.95 | H24: 7 | I24: 64 | J24: 139.65 | K24: 25
A25: 9 | B25: 2010-05-09 | C25: No Coupon | D25: American Express | E25: Yanaki | F25: West | G25: 19.95 | H25: 6 | I25: 27 | J25: 119.7 | K25: 25
A26: 10 | B26: 2010-08-28 | C26: No Coupon | D26: Visa | E26: Aspen | F26: West | G26: 21.95 | H26: 2 | I26: 22 | J26: 43.9 | K26: 22
A27: 11 | B27: 2010-11-30 | C27: Coupon | D27: PayPal | E27: Aspen | F27: Mid West | G27: 21.95 | H27: 2 | I27: 39 | J27: 43.9 | K27: 22
A28: 12 | B28: 2010-09-13 | C28: No Coupon | D28: Mastercard | E28: Yanaki | F28: Mid West | G28: 19.95 | H28: 5 | I28: 61 | J28: 99.75 | K28: 25
A29: 13 | B29: 2010-10-23 | C29: No Coupon | D29: Visa | E29: Carlota | F29: Mid West | G29: 22.95 | H29: 5 | I29: 18 | J29: 114.75 | K29: 20
A30: 14 | B30: 2010-09-19 | C30: No Coupon | D30: PayPal | E30: Carlota | F30: West | G30: 22.95 | H30: 4 | I30: 22 | J30: 91.8 | K30: 20
A31: 15 | B31: 2010-09-20 | C31: No Coupon | D31: American Express | E31: Carlota | F31: Mid West | G31: 22.95 | H31: 5 | I31: 52 | J31: 114.75 | K31: 20
A32: 16 | B32: 2010-01-18 | C32: Coupon | D32: Visa | E32: Carlota | F32: West | G32: 22.95 | H32: 1 | I32: 22 | J32: 22.95 | K32: 20
A33: 17 | B33: 2010-07-28 | C33: No Coupon | D33: Discover | E33: Sunset | F33: West | G33: 24.95 | H33: 5 | I33: 18 | J33: 124.75 | K33: 35
A34: 18 | B34: 2010-06-06 | C34: No Coupon | D34: PayPal | E34: Yanaki | F34: South | G34: 19.95 | H34: 1 | I34: 55 | J34: 19.95 | K34: 25
A35: 19 | B35: 2010-01-30 | C35: No Coupon | D35: PayPal | E35: Aspen | F35: East | G35: 21.95 | H35: 4 | I35: 20 | J35: 87.8 | K35: 22
A36: 20 | B36: 2010-10-09 | C36: Coupon | D36: PayPal | E36: Carlota | F36: Mid West | G36: 22.95 | H36: 1 | I36: 42 | J36: 22.95 | K36: 20
A37: 21 | B37: 2010-07-04 | C37: No Coupon | D37: PayPal | E37: Delicate Arch | F37: South | G37: 29.95 | H37: 10 | I37: 30 | J37: 299.5 | K37: 45
A38: 22 | B38: 2010-11-08 | C38: Coupon | D38: Visa | E38: Yanaki | F38: Mid West | G38: 19.95 | H38: 1 | I38: 64 | J38: 19.95 | K38: 25
A39: 23 | B39: 2010-06-09 | C39: Coupon | D39: PayPal | E39: Yanaki | F39: Mid West | G39: 19.95 | H39: 5 | I39: 63 | J39: 99.75 | K39: 25
A40: 24 | B40: 2010-03-17 | C40: Coupon | D40: Mastercard | E40: Yanaki | F40: South | G40: 19.95 | H40: 2 | I40: 41 | J40: 39.9 | K40: 25
A41: 25 | B41: 2010-04-07 | C41: No Coupon | D41: Visa | E41: Aspen | F41: East | G41: 21.95 | H41: 3 | I41: 21 | J41: 65.85 | K41: 22
A42: 26 | B42: 2010-01-05 | C42: No Coupon | D42: PayPal | E42: Sunset | F42: East | G42: 24.95 | H42: 1 | I42: 63 | J42: 24.95 | K42: 35
A43: 27 | B43: 2010-07-22 | C43: No Coupon | D43: American Express | E43: Aspen | F43: West | G43: 21.95 | H43: 1 | I43: 54 | J43: 21.95 | K43: 22
A44: 28 | B44: 2010-11-12 | C44: No Coupon | D44: American Express | E44: Yanaki | F44: West | G44: 19.95 | H44: 1 | I44: 18 | J44: 19.95 | K44: 25
A45: 29 | B45: 2010-05-11 | C45: No Coupon | D45: Discover | E45: Carlota | F45: West | G45: 22.95 | H45: 4 | I45: 26 | J45: 91.8 | K45: 20
A46: 30 | B46: 2010-04-14 | C46: No Coupon | D46: PayPal | E46: Aspen | F46: Mid West | G46: 21.95 | H46: 3 | I46: 59 | J46: 65.85 | K46: 22
A47: 31 | B47: 2010-08-11 | C47: No Coupon | D47: Discover | E47: Yanaki | F47: West | G47: 19.95 | H47: 2 | I47: 30 | J47: 39.9 | K47: 25
A48: 32 | B48: 2010-11-14 | C48: No Coupon | D48: Visa | E48: Aspen | F48: West | G48: 21.95 | H48: 2 | I48: 64 | J48: 43.9 | K48: 22
A49: 33 | B49: 2010-01-21 | C49: No Coupon | D49: PayPal | E49: Aspen | F49: West | G49: 21.95 | H49: 3 | I49: 30 | J49: 65.85 | K49: 22
A50: 34 | B50: 2010-04-12 | C50: Coupon | D50: American Express | E50: Aspen | F50: West | G50: 21.95 | H50: 2 | I50: 41 | J50: 43.9 | K50: 22
A51: 35 | B51: 2010-06-04 | C51: Coupon | D51: Mastercard | E51: Yanaki | F51: South | G51: 19.95 | H51: 5 | I51: 23 | J51: 99.75 | K51: 25
A52: 36 | B52: 2010-10-19 | C52: Coupon | D52: Visa | E52: Delicate Arch | F52: West | G52: 29.95 | H52: 1 | I52: 52 | J52: 29.95 | K52: 45
A53: 37 | B53: 2010-09-07 | C53: No Coupon | D53: PayPal | E53: Aspen | F53: West | G53: 21.95 | H53: 3 | I53: 18 | J53: 65.85 | K53: 22
A54: 38 | B54: 2010-09-19 | C54: No Coupon | D54: PayPal | E54: Carlota | F54: West | G54: 22.95 | H54: 1 | I54: 32 | J54: 22.95 | K54: 20
A55: 39 | B55: 2010-01-17 | C55: Coupon | D55: American Express | E55: Yanaki | F55: Mid West | G55: 19.95 | H55: 1 | I55: 22 | J55: 19.95 | K55: 25
A56: 40 | B56: 2010-03-15 | C56: Coupon | D56: PayPal | E56: Yanaki | F56: South | G56: 19.95 | H56: 5 | I56: 29 | J56: 99.75 | K56: 25
A57: 41 | B57: 2010-12-16 | C57: No Coupon | D57: Mastercard | E57: Bellen | F57: Mid West | G57: 24.95 | H57: 5 | I57: 25 | J57: 124.75 | K57: 30
A58: 42 | B58: 2010-07-08 | C58: No Coupon | D58: PayPal | E58: Aspen | F58: West | G58: 21.95 | H58: 1 | I58: 63 | J58: 21.95 | K58: 22
A59: 43 | B59: 2010-05-13 | C59: No Coupon | D59: Mastercard | E59: Sunset | F59: Mid West | G59: 24.95 | H59: 7 | I59: 26 | J59: 174.65 | K59: 35
A60: 44 | B60: 2010-03-03 | C60: Coupon | D60: Discover | E60: Delicate Arch | F60: West | G60: 29.95 | H60: 1 | I60: 31 | J60: 29.95 | K60: 45
A61: 45 | B61: 2010-04-30 | C61: No Coupon | D61: PayPal | E61: Delicate Arch | F61: Mid West | G61: 29.95 | H61: 5 | I61: 23 | J61: 149.75 | K61: 45
A62: 46 | B62: 2010-07-11 | C62: Coupon | D62: PayPal | E62: Delicate Arch | F62: Mid West | G62: 29.95 | H62: 1 | I62: 42 | J62: 29.95 | K62: 45
A63: 47 | B63: 2010-03-22 | C63: Coupon | D63: Visa | E63: Carlota | F63: East | G63: 22.95 | H63: 2 | I63: 28 | J63: 45.9 | K63: 20
A64: 48 | B64: 2010-08-27 | C64: No Coupon | D64: Visa | E64: Carlota | F64: West | G64: 22.95 | H64: 7 | I64: 23 | J64: 160.65 | K64: 20
A65: 49 | B65: 2010-11-16 | C65: No Coupon | D65: Mastercard | E65: Carlota | F65: Mid West | G65: 22.95 | H65: 7 | I65: 19 | J65: 160.65 | K65: 20
A66: 50 | B66: 2010-01-26 | C66: Coupon | D66: Visa | E66: Yanaki | F66: West | G66: 19.95 | H66: 6 | I66: 37 | J66: 119.7 | K66: 25
A67: 51 | B67: 2010-05-06 | C67: No Coupon | D67: Mastercard | E67: Aspen | F67: East | G67: 21.95 | H67: 2 | I67: 38 | J67: 43.9 | K67: 22
A68: 52 | B68: 2010-03-18 | C68: Coupon | D68: Mastercard | E68: Yanaki | F68: Mid West | G68: 19.95 | H68: 6 | I68: 50 | J68: 119.7 | K68: 25
A69: 53 | B69: 2010-04-16 | C69: No Coupon | D69: Discover | E69: Aspen | F69: West | G69: 21.95 | H69: 3 | I69: 26 | J69: 65.85 | K69: 22
A70: 54 | B70: 2010-01-05 | C70: No Coupon | D70: PayPal | E70: Carlota | F70: South | G70: 22.95 | H70: 1 | I70: 33 | J70: 22.95 | K70: 20
A71: 55 | B71: 2010-11-09 | C71: No Coupon | D71: PayPal | E71: Aspen | F71: Mid West | G71: 21.95 | H71: 3 | I71: 59 | J71: 65.85 | K71: 22
A72: 56 | B72: 2010-07-29 | C72: No Coupon | D72: Visa | E72: Aspen | F72: Mid West | G72: 21.95 | H72: 5 | I72: 32 | J72: 109.75 | K72: 22
A73: 57 | B73: 2010-12-07 | C73: No Coupon | D73: Visa | E73: Carlota | F73: Mid West | G73: 22.95 | H73: 5 | I73: 27 | J73: 114.75 | K73: 20
A74: 58 | B74: 2010-11-22 | C74: Coupon | D74: American Express | E74: Bellen | F74: West | G74: 24.95 | H74: 10 | I74: 54 | J74: 249.5 | K74: 30
A75: 59 | B75: 2010-01-10 | C75: No Coupon | D75: PayPal | E75: Aspen | F75: West | G75: 21.95 | H75: 5 | I75: 63 | J75: 109.75 | K75: 22
A76: 60 | B76: 2010-06-01 | C76: No Coupon | D76: Visa | E76: Carlota | F76: East | G76: 22.95 | H76: 5 | I76: 48 | J76: 114.75 | K76: 20
A77: 61 | B77: 2010-05-02 | C77: No Coupon | D77: American Express | E77: Carlota | F77: East | G77: 22.95 | H77: 5 | I77: 29 | J77: 114.75 | K77: 20
A78: 62 | B78: 2010-06-13 | C78: Coupon | D78: Visa | E78: Delicate Arch | F78: West | G78: 29.95 | H78: 4 | I78: 38 | J78: 119.8 | K78: 45
A79: 63 | B79: 2010-02-16 | C79: Coupon | D79: Mastercard | E79: Delicate Arch | F79: East | G79: 29.95 | H79: 1 | I79: 24 | J79: 29.95 | K79: 45
A80: 64 | B80: 2010-08-02 | C80: No Coupon | D80: Visa | E80: Carlota | F80: West | G80: 22.95 | H80: 5 | I80: 51 | J80: 114.75 | K80: 20
A81: 65 | B81: 2010-11-01 | C81: Coupon | D81: Mastercard | E81: Delicate Arch | F81: West | G81: 29.95 | H81: 7 | I81: 25 | J81: 209.65 | K81: 45
A82: 66 | B82: 2010-11-08 | C82: No Coupon | D82: Visa | E82: Carlota | F82: West | G82: 22.95 | H82: 5 | I82: 65 | J82: 114.75 | K82: 20
A83: 67 | B83: 2010-08-17 | C83: No Coupon | D83: PayPal | E83: Yanaki | F83: Mid West | G83: 19.95 | H83: 3 | I83: 35 | J83: 59.85 | K83: 25
A84: 68 | B84: 2010-09-27 | C84: No Coupon | D84: Mastercard | E84: Sunset | F84: East | G84: 24.95 | H84: 5 | I84: 35 | J84: 124.75 | K84: 35
A85: 69 | B85: 2010-01-09 | C85: No Coupon | D85: Visa | E85: Yanaki | F85: Mid West | G85: 19.95 | H85: 2 | I85: 21 | J85: 39.9 | K85: 25
A86: 70 | B86: 2010-10-10 | C86: No Coupon | D86: Mastercard | E86: Sunset | F86: West | G86: 24.95 | H86: 5 | I86: 47 | J86: 124.75 | K86: 35
A87: 71 | B87: 2010-12-31 | C87: No Coupon | D87: Discover | E87: Sunset | F87: East | G87: 24.95 | H87: 1 | I87: 62 | J87: 24.95 | K87: 35
A88: 72 | B88: 2010-12-06 | C88: No Coupon | D88: PayPal | E88: Carlota | F88: East | G88: 22.95 | H88: 1 | I88: 63 | J88: 22.95 | K88: 20
A89: 73 | B89: 2010-03-18 | C89: No Coupon | D89: American Express | E89: Bellen | F89: Mid West | G89: 24.95 | H89: 10 | I89: 23 | J89: 249.5 | K89: 30
A90: 74 | B90: 2010-03-22 | C90: No Coupon | D90: Visa | E90: Yanaki | F90: South | G90: 19.95 | H90: 3 | I90: 59 | J90: 59.85 | K90: 25
A91: 75 | B91: 2010-09-14 | C91: Coupon | D91: Visa | E91: Aspen | F91: West | G91: 21.95 | H91: 2 | I91: 48 | J91: 43.9 | K91: 22
A92: 76 | B92: 2010-02-09 | C92: No Coupon | D92: Mastercard | E92: Yanaki | F92: South | G92: 19.95 | H92: 1 | I92: 57 | J92: 19.95 | K92: 25
A93: 77 | B93: 2010-03-24 | C93: No Coupon | D93: Discover | E93: Delicate Arch | F93: Mid West | G93: 29.95 | H93: 1 | I93: 19 | J93: 29.95 | K93: 45
A94: 78 | B94: 2010-07-28 | C94: Coupon | D94: Mastercard | E94: Yanaki | F94: Mid West | G94: 19.95 | H94: 1 | I94: 48 | J94: 19.95 | K94: 25
A95: 79 | B95: 2010-08-26 | C95: Coupon | D95: Mastercard | E95: Aspen | F95: South | G95: 21.95 | H95: 3 | I95: 21 | J95: 65.85 | K95: 22
A96: 80 | B96: 2010-03-05 | C96: No Coupon | D96: American Express | E96: Carlota | F96: West | G96: 22.95 | H96: 1 | I96: 40 | J96: 22.95 | K96: 20
A97: 81 | B97: 2010-08-18 | C97: No Coupon | D97: Visa | E97: Yanaki | F97: Mid West | G97: 19.95 | H97: 4 | I97: 25 | J97: 79.8 | K97: 25
A98: 82 | B98: 2010-11-02 | C98: Coupon | D98: Mastercard | E98: Yanaki | F98: South | G98: 19.95 | H98: 4 | I98: 59 | J98: 79.8 | K98: 25
A99: 83 | B99: 2010-12-19 | C99: No Coupon | D99: Visa | E99: Carlota | F99: West | G99: 22.95 | H99: 5 | I99: 57 | J99: 114.75 | K99: 20
A100: 84 | B100: 2010-07-05 | C100: Coupon | D100: Discover | E100: Carlota | F100: West | G100: 22.95 | H100: 1 | I100: 56 | J100: 22.95 | K100: 20
A101: 85 | B101: 2010-04-16 | C101: No Coupon | D101: Visa | E101: Yanaki | F101: West | G101: 19.95 | H101: 1 | I101: 19 | J101: 19.95 | K101: 25
A102: 86 | B102: 2010-12-23 | C102: No Coupon | D102: Visa | E102: Aspen | F102: Mid West | G102: 21.95 | H102: 5 | I102: 54 | J102: 109.75 | K102: 22
A103: 87 | B103: 2010-05-29 | C103: No Coupon | D103: PayPal | E103: Delicate Arch | F103: Mid West | G103: 29.95 | H103: 2 | I103: 65 | J103: 59.9 | K103: 45
A104: 88 | B104: 2010-05-01 | C104: Coupon | D104: PayPal | E104: Aspen | F104: West | G104: 21.95 | H104: 2 | I104: 25 | J104: 43.9 | K104: 22
A105: 89 | B105: 2010-07-03 | C105: No Coupon | D105: American Express | E105: Yanaki | F105: West | G105: 19.95 | H105: 2 | I105: 30 | J105: 39.9 | K105: 25
A106: 90 | B106: 2010-08-12 | C106: No Coupon | D106: Mastercard | E106: Delicate Arch | F106: West | G106: 29.95 | H106: 7 | I106: 57 | J106: 209.65 | K106: 45
A107: 91 | B107: 2010-06-21 | C107: Coupon | D107: PayPal | E107: Yanaki | F107: West | G107: 19.95 | H107: 1 | I107: 43 | J107: 19.95 | K107: 25
A108: 92 | B108: 2010-12-15 | C108: No Coupon | D108: Mastercard | E108: Yanaki | F108: South | G108: 19.95 | H108: 4 | I108: 44 | J108: 79.8 | K108: 25
A109: 93 | B109: 2010-05-25 | C109: No Coupon | D109: PayPal | E109: Bellen | F109: East | G109: 24.95 | H109: 5 | I109: 21 | J109: 124.75 | K109: 30
A110: 94 | B110: 2010-03-23 | C110: No Coupon | D110: PayPal | E110: Bellen | F110: West | G110: 24.95 | H110: 1 | I110: 20 | J110: 24.95 | K110: 30
A111: 95 | B111: 2010-01-22 | C111: Coupon | D111: Visa | E111: Carlota | F111: West | G111: 22.95 | H111: 7 | I111: 49 | J111: 160.65 | K111: 20
A112: 96 | B112: 2010-09-26 | C112: No Coupon | D112: Mastercard | E112: Aspen | F112: South | G112: 21.95 | H112: 3 | I112: 37 | J112: 65.85 | K112: 22
A113: 97 | B113: 2010-12-27 | C113: No Coupon | D113: PayPal | E113: Carlota | F113: West | G113: 22.95 | H113: 6 | I113: 26 | J113: 137.7 | K113: 20
A114: 98 | B114: 2010-07-24 | C114: No Coupon | D114: Mastercard | E114: Delicate Arch | F114: East | G114: 29.95 | H114: 1 | I114: 62 | J114: 29.95 | K114: 45
A115: 99 | B115: 2010-04-27 | C115: No Coupon | D115: PayPal | E115: Yanaki | F115: West | G115: 19.95 | H115: 6 | I115: 38 | J115: 119.7 | K115: 25
A116: 100 | B116: 2010-05-07 | C116: No Coupon | D116: Visa | E116: Yanaki | F116: West | G116: 19.95 | H116: 1 | I116: 55 | J116: 19.95 | K116: 25
A117: 101 | B117: 2010-03-03 | C117: Coupon | D117: American Express | E117: Yanaki | F117: East | G117: 19.95 | H117: 2 | I117: 24 | J117: 39.9 | K117: 25
A118: 102 | B118: 2010-03-23 | C118: No Coupon | D118: PayPal | E118: Carlota | F118: Mid West | G118: 22.95 | H118: 5 | I118: 30 | J118: 114.75 | K118: 20
A119: 103 | B119: 2010-12-05 | C119: Coupon | D119: Visa | E119: Aspen | F119: Mid West | G119: 21.95 | H119: 1 | I119: 39 | J119: 21.95 | K119: 22
A120: 104 | B120: 2010-11-11 | C120: Coupon | D120: PayPal | E120: Delicate Arch | F120: South | G120: 29.95 | H120: 6 | I120: 59 | J120: 179.7 | K120: 45
A121: 105 | B121: 2010-04-13 | C121: No Coupon | D121: Discover | E121: Yanaki | F121: East | G121: 19.95 | H121: 2 | I121: 26 | J121: 39.9 | K121: 25
A122: 106 | B122: 2010-12-13 | C122: No Coupon | D122: Visa | E122: Sunset | F122: Mid West | G122: 24.95 | H122: 1 | I122: 33 | J122: 24.95 | K122: 35
A123: 107 | B123: 2010-10-05 | C123: No Coupon | D123: Visa | E123: Bellen | F123: West | G123: 24.95 | H123: 4 | I123: 20 | J123: 99.8 | K123: 30
A124: 108 | B124: 2010-01-02 | C124: No Coupon | D124: Visa | E124: Aspen | F124: West | G124: 21.95 | H124: 4 | I124: 18 | J124: 87.8 | K124: 22
A125: 109 | B125: 2010-11-04 | C125: Coupon | D125: PayPal | E125: Yanaki | F125: East | G125: 19.95 | H125: 2 | I125: 19 | J125: 39.9 | K125: 25
A126: 110 | B126: 2010-04-29 | C126: No Coupon | D126: PayPal | E126: Aspen | F126: West | G126: 21.95 | H126: 3 | I126: 61 | J126: 65.85 | K126: 22
A127: 111 | B127: 2010-10-02 | C127: Coupon | D127: PayPal | E127: Yanaki | F127: East | G127: 19.95 | H127: 10 | I127: 39 | J127: 199.5 | K127: 25
A128: 112 | B128: 2010-12-26 | C128: Coupon | D128: Discover | E128: Aspen | F128: West | G128: 21.95 | H128: 1 | I128: 52 | J128: 21.95 | K128: 22
A129: 113 | B129: 2010-11-05 | C129: No Coupon | D129: Visa | E129: Sunset | F129: West | G129: 24.95 | H129: 5 | I129: 20 | J129: 124.75 | K129: 35
A130: 114 | B130: 2010-11-15 | C130: No Coupon | D130: Visa | E130: Delicate Arch | F130: West | G130: 29.95 | H130: 1 | I130: 50 | J130: 29.95 | K130: 45
A131: 115 | B131: 2010-06-27 | C131: Coupon | D131: PayPal | E131: Aspen | F131: South | G131: 21.95 | H131: 1 | I131: 29 | J131: 21.95 | K131: 22
A132: 116 | B132: 2010-04-21 | C132: No Coupon | D132: Visa | E132: Delicate Arch | F132: West | G132: 29.95 | H132: 4 | I132: 55 | J132: 119.8 | K132: 45
A133: 117 | B133: 2010-09-25 | C133: No Coupon | D133: American Express | E133: Delicate Arch | F133: West | G133: 29.95 | H133: 3 | I133: 18 | J133: 89.85 | K133: 45
A134: 118 | B134: 2010-01-24 | C134: Coupon | D134: Mastercard | E134: Aspen | F134: Mid West | G134: 21.95 | H134: 3 | I134: 39 | J134: 65.85 | K134: 22
A135: 119 | B135: 2010-01-04 | C135: No Coupon | D135: Visa | E135: Carlota | F135: South | G135: 22.95 | H135: 4 | I135: 35 | J135: 91.8 | K135: 20
A136: 120 | B136: 2010-05-06 | C136: Coupon | D136: American Express | E136: Bellen | F136: South | G136: 24.95 | H136: 6 | I136: 38 | J136: 149.7 | K136: 30
A137: 121 | B137: 2010-06-22 | C137: No Coupon | D137: Visa | E137: Yanaki | F137: East | G137: 19.95 | H137: 3 | I137: 20 | J137: 59.85 | K137: 25
A138: 122 | B138: 2010-07-12 | C138: No Coupon | D138: Discover | E138: Aspen | F138: Mid West | G138: 21.95 | H138: 6 | I138: 60 | J138: 131.7 | K138: 22
A139: 123 | B139: 2010-05-03 | C139: No Coupon | D139: Visa | E139: Sunset | F139: Mid West | G139: 24.95 | H139: 2 | I139: 61 | J139: 49.9 | K139: 35
A140: 124 | B140: 2010-03-09 | C140: Coupon | D140: PayPal | E140: Aspen | F140: West | G140: 21.95 | H140: 2 | I140: 62 | J140: 43.9 | K140: 22
A141: 125 | B141: 2010-03-02 | C141: No Coupon | D141: Visa | E141: Yanaki | F141: Mid West | G141: 19.95 | H141: 1 | I141: 21 | J141: 19.95 | K141: 25
A142: 126 | B142: 2010-03-28 | C142: No Coupon | D142: Discover | E142: Aspen | F142: South | G142: 21.95 | H142: 1 | I142: 40 | J142: 21.95 | K142: 22
A143: 127 | B143: 2010-01-15 | C143: No Coupon | D143: Visa | E143: Bellen | F143: West | G143: 24.95 | H143: 1 | I143: 25 | J143: 24.95 | K143: 30
A144: 128 | B144: 2010-11-18 | C144: No Coupon | D144: Mastercard | E144: Yanaki | F144: West | G144: 19.95 | H144: 2 | I144: 50 | J144: 39.9 | K144: 25
A145: 129 | B145: 2010-03-27 | C145: No Coupon | D145: Visa | E145: Bellen | F145: West | G145: 24.95 | H145: 1 | I145: 24 | J145: 24.95 | K145: 30
A146: 130 | B146: 2010-08-11 | C146: Coupon | D146: PayPal | E146: Carlota | F146: West | G146: 22.95 | H146: 5 | I146: 28 | J146: 114.75 | K146: 20
A147: 131 | B147: 2010-12-24 | C147: No Coupon | D147: Visa | E147: Yanaki | F147: Mid West | G147: 19.95 | H147: 6 | I147: 22 | J147: 119.7 | K147: 25
A148: 132 | B148: 2010-11-27 | C148: No Coupon | D148: PayPal | E148: Aspen | F148: West | G148: 21.95 | H148: 2 | I148: 22 | J148: 43.9 | K148: 22
A149: 133 | B149: 2010-03-12 | C149: No Coupon | D149: Visa | E149: Bellen | F149: West | G149: 24.95 | H149: 1 | I149: 27 | J149: 24.95 | K149: 30
A150: 134 | B150: 2010-09-16 | C150: Coupon | D150: Visa | E150: Sunset | F150: West | G150: 24.95 | H150: 7 | I150: 54 | J150: 174.65 | K150: 35
A151: 135 | B151: 2010-02-01 | C151: No Coupon | D151: Mastercard | E151: Bellen | F151: West | G151: 24.95 | H151: 1 | I151: 25 | J151: 24.95 | K151: 30
A152: 136 | B152: 2010-07-03 | C152: No Coupon | D152: Visa | E152: Sunset | F152: Mid West | G152: 24.95 | H152: 2 | I152: 25 | J152: 49.9 | K152: 35
A153: 137 | B153: 2010-08-30 | C153: No Coupon | D153: PayPal | E153: Yanaki | F153: East | G153: 19.95 | H153: 1 | I153: 30 | J153: 19.95 | K153: 25
A154: 138 | B154: 2010-09-18 | C154: Coupon | D154: Mastercard | E154: Yanaki | F154: South | G154: 19.95 | H154: 2 | I154: 59 | J154: 39.9 | K154: 25
A155: 139 | B155: 2010-11-24 | C155: No Coupon | D155: Visa | E155: Carlota | F155: West | G155: 22.95 | H155: 2 | I155: 51 | J155: 45.9 | K155: 20
A156: 140 | B156: 2010-12-22 | C156: No Coupon | D156: Visa | E156: Delicate Arch | F156: West | G156: 29.95 | H156: 6 | I156: 38 | J156: 179.7 | K156: 45
A157: 141 | B157: 2010-04-23 | C157: No Coupon | D157: PayPal | E157: Carlota | F157: South | G157: 22.95 | H157: 7 | I157: 28 | J157: 160.65 | K157: 20
A158: 142 | B158: 2010-11-18 | C158: Coupon | D158: Discover | E158: Aspen | F158: West | G158: 21.95 | H158: 1 | I158: 30 | J158: 21.95 | K158: 22
A159: 143 | B159: 2010-10-28 | C159: No Coupon | D159: Visa | E159: Bellen | F159: South | G159: 24.95 | H159: 5 | I159: 43 | J159: 124.75 | K159: 30
A160: 144 | B160: 2010-08-14 | C160: No Coupon | D160: PayPal | E160: Delicate Arch | F160: West | G160: 29.95 | H160: 3 | I160: 42 | J160: 89.85 | K160: 45
A161: 145 | B161: 2010-05-05 | C161: No Coupon | D161: Visa | E161: Bellen | F161: Mid West | G161: 24.95 | H161: 2 | I161: 24 | J161: 49.9 | K161: 30
A162: 146 | B162: 2010-08-25 | C162: Coupon | D162: Visa | E162: Carlota | F162: Mid West | G162: 22.95 | H162: 1 | I162: 47 | J162: 22.95 | K162: 20
A163: 147 | B163: 2010-10-25 | C163: No Coupon | D163: PayPal | E163: Yanaki | F163: Mid West | G163: 19.95 | H163: 1 | I163: 23 | J163: 19.95 | K163: 25
A164: 148 | B164: 2010-07-31 | C164: No Coupon | D164: PayPal | E164: Yanaki | F164: East | G164: 19.95 | H164: 5 | I164: 59 | J164: 99.75 | K164: 25
A165: 149 | B165: 2010-07-25 | C165: Coupon | D165: Mastercard | E165: Carlota | F165: West | G165: 22.95 | H165: 4 | I165: 22 | J165: 91.8 | K165: 20
A166: 150 | B166: 2010-09-30 | C166: Coupon | D166: Visa | E166: Bellen | F166: Mid West | G166: 24.95 | H166: 2 | I166: 27 | J166: 49.9 | K166: 30
A167: 151 | B167: 2010-10-03 | C167: No Coupon | D167: Discover | E167: Aspen | F167: East | G167: 21.95 | H167: 1 | I167: 65 | J167: 21.95 | K167: 22
A168: 152 | B168: 2010-04-01 | C168: No Coupon | D168: Mastercard | E168: Carlota | F168: Mid West | G168: 22.95 | H168: 2 | I168: 27 | J168: 45.9 | K168: 20
A169: 153 | B169: 2010-12-15 | C169: No Coupon | D169: American Express | E169: Carlota | F169: East | G169: 22.95 | H169: 1 | I169: 27 | J169: 22.95 | K169: 20
A170: 154 | B170: 2010-01-07 | C170: No Coupon | D170: PayPal | E170: Carlota | F170: West | G170: 22.95 | H170: 2 | I170: 28 | J170: 45.9 | K170: 20
A171: 155 | B171: 2010-07-23 | C171: Coupon | D171: PayPal | E171: Bellen | F171: West | G171: 24.95 | H171: 1 | I171: 22 | J171: 24.95 | K171: 30
A172: 156 | B172: 2010-03-16 | C172: No Coupon | D172: PayPal | E172: Yanaki | F172: East | G172: 19.95 | H172: 2 | I172: 42 | J172: 39.9 | K172: 25
A173: 157 | B173: 2010-12-04 | C173: No Coupon | D173: American Express | E173: Delicate Arch | F173: East | G173: 29.95 | H173: 6 | I173: 25 | J173: 179.7 | K173: 45
A174: 158 | B174: 2010-01-08 | C174: Coupon | D174: Mastercard | E174: Aspen | F174: West | G174: 21.95 | H174: 1 | I174: 41 | J174: 21.95 | K174: 22
A175: 159 | B175: 2010-06-02 | C175: Coupon | D175: PayPal | E175: Bellen | F175: West | G175: 24.95 | H175: 1 | I175: 46 | J175: 24.95 | K175: 30
A176: 160 | B176: 2010-08-18 | C176: No Coupon | D176: Discover | E176: Sunset | F176: West | G176: 24.95 | H176: 3 | I176: 41 | J176: 74.85 | K176: 35
A177: 161 | B177: 2010-04-24 | C177: No Coupon | D177: Mastercard | E177: Yanaki | F177: West | G177: 19.95 | H177: 4 | I177: 29 | J177: 79.8 | K177: 25
A178: 162 | B178: 2010-12-01 | C178: No Coupon | D178: Visa | E178: Yanaki | F178: Mid West | G178: 19.95 | H178: 1 | I178: 50 | J178: 19.95 | K178: 25
A179: 163 | B179: 2010-12-31 | C179: Coupon | D179: Visa | E179: Carlota | F179: Mid West | G179: 22.95 | H179: 1 | I179: 50 | J179: 22.95 | K179: 20
A180: 164 | B180: 2010-04-30 | C180: Coupon | D180: PayPal | E180: Carlota | F180: Mid West | G180: 22.95 | H180: 2 | I180: 34 | J180: 45.9 | K180: 20
A181: 165 | B181: 2010-03-16 | C181: Coupon | D181: American Express | E181: Aspen | F181: West | G181: 21.95 | H181: 3 | I181: 24 | J181: 65.85 | K181: 22
A182: 166 | B182: 2010-01-28 | C182: No Coupon | D182: Mastercard | E182: Yanaki | F182: West | G182: 19.95 | H182: 7 | I182: 29 | J182: 139.65 | K182: 25
A183: 167 | B183: 2010-08-03 | C183: No Coupon | D183: Mastercard | E183: Carlota | F183: Mid West | G183: 22.95 | H183: 1 | I183: 35 | J183: 22.95 | K183: 20
A184: 168 | B184: 2010-11-11 | C184: No Coupon | D184: Visa | E184: Yanaki | F184: West | G184: 19.95 | H184: 2 | I184: 24 | J184: 39.9 | K184: 25
A185: 169 | B185: 2010-12-13 | C185: Coupon | D185: Visa | E185: Aspen | F185: South | G185: 21.95 | H185: 5 | I185: 23 | J185: 109.75 | K185: 22
A186: 170 | B186: 2010-03-27 | C186: No Coupon | D186: PayPal | E186: Carlota | F186: Mid West | G186: 22.95 | H186: 7 | I186: 31 | J186: 160.65 | K186: 20
A187: 171 | B187: 2010-10-08 | C187: Coupon | D187: PayPal | E187: Bellen | F187: Mid West | G187: 24.95 | H187: 2 | I187: 24 | J187: 49.9 | K187: 30
A188: 172 | B188: 2010-08-03 | C188: No Coupon | D188: Visa | E188: Carlota | F188: Mid West | G188: 22.95 | H188: 1 | I188: 30 | J188: 22.95 | K188: 20
A189: 173 | B189: 2010-03-10 | C189: Coupon | D189: Visa | E189: Carlota | F189: West | G189: 22.95 | H189: 2 | I189: 22 | J189: 45.9 | K189: 20
A190: 174 | B190: 2010-03-02 | C190: No Coupon | D190: Visa | E190: Carlota | F190: East | G190: 22.95 | H190: 3 | I190: 43 | J190: 68.85 | K190: 20
A191: 175 | B191: 2010-01-26 | C191: No Coupon | D191: Visa | E191: Carlota | F191: West | G191: 22.95 | H191: 10 | I191: 55 | J191: 229.5 | K191: 20
A192: 176 | B192: 2010-05-06 | C192: No Coupon | D192: American Express | E192: Delicate Arch | F192: West | G192: 29.95 | H192: 1 | I192: 38 | J192: 29.95 | K192: 45
A193: 177 | B193: 2010-03-10 | C193: Coupon | D193: Visa | E193: Yanaki | F193: West | G193: 19.95 | H193: 2 | I193: 28 | J193: 39.9 | K193: 25
A194: 178 | B194: 2010-11-18 | C194: Coupon | D194: PayPal | E194: Aspen | F194: Mid West | G194: 21.95 | H194: 2 | I194: 30 | J194: 43.9 | K194: 22
A195: 179 | B195: 2010-01-30 | C195: Coupon | D195: Discover | E195: Yanaki | F195: West | G195: 19.95 | H195: 1 | I195: 35 | J195: 19.95 | K195: 25
A196: 180 | B196: 2010-07-02 | C196: No Coupon | D196: Visa | E196: Delicate Arch | F196: West | G196: 29.95 | H196: 2 | I196: 41 | J196: 59.9 | K196: 45
A197: 181 | B197: 2010-10-13 | C197: Coupon | D197: Discover | E197: Yanaki | F197: East | G197: 19.95 | H197: 5 | I197: 28 | J197: 99.75 | K197: 25
A198: 182 | B198: 2010-02-07 | C198: No Coupon | D198: Discover | E198: Bellen | F198: Mid West | G198: 24.95 | H198: 7 | I198: 65 | J198: 174.65 | K198: 30
A199: 183 | B199: 2010-06-05 | C199: No Coupon | D199: Mastercard | E199: Aspen | F199: West | G199: 21.95 | H199: 3 | I199: 20 | J199: 65.85 | K199: 22
A200: 184 | B200: 2010-11-02 | C200: No Coupon | D200: Visa | E200: Sunset | F200: Mid West | G200: 24.95 | H200: 5 | I200: 39 | J200: 124.75 | K200: 35
A201: 185 | B201: 2010-12-13 | C201: No Coupon | D201: Visa | E201: Aspen | F201: East | G201: 21.95 | H201: 4 | I201: 19 | J201: 87.8 | K201: 22
A202: 186 | B202: 2010-10-23 | C202: No Coupon | D202: Visa | E202: Carlota | F202: West | G202: 22.95 | H202: 10 | I202: 64 | J202: 229.5 | K202: 20
A203: 187 | B203: 2010-12-22 | C203: Coupon | D203: PayPal | E203: Yanaki | F203: South | G203: 19.95 | H203: 5 | I203: 42 | J203: 99.75 | K203: 25
... 13 more rows

Sheet PT(3-an)
A3: Sum of Sales | B3: Customer Age
A4: Payment Method | B4: 15-24 | C4: 25-34 | D4: 35-44 | E4: 45-54 | F4: 55-65 | G4: Grand Total
A5: American Express | B5: 584.8 | C5: 551.85 | D5: 266.45 | E5: 386.2 | G5: 1789.3
A6: Discover | B6: 154.7 | C6: 389.1 | D6: 116.75 | E6: 21.95 | F6: 515.85 | G6: 1198.35
A7: Mastercard | B7: 559.75 | C7: 821.3 | D7: 489.9 | E7: 304.3 | F7: 613.7 | G7: 2788.95
A8: PayPal | B8: 763.4 | C8: 1786.15 | D8: 725.3 | E8: 44.9 | F8: 924 | G8: 4243.75
A9: Visa | B9: 1537.5 | C9: 610.65 | D9: 911.2 | E9: 930 | F9: 1001.85 | G9: 4991.2
A10: Grand Total | B10: 3600.15 | C10: 4159.05 | D10: 2509.6 | E10: 1687.35 | F10: 3055.4 | G10: 15011.55
A14: Sum of Sales | B14: Customer Age
A15: Payment Method | B15: 15-24 | C15: 25-34 | D15: 35-44 | E15: 45-54 | F15: 55-65 | G15: Grand Total
A16: American Express | B16: 0.1624376762 | C16: 0.132686551 | D16: 0.1061722984 | E16: 0.2288796041 | F16: 0 | G16: 0.1191948866
A17: Discover | B17: 0.04297043179 | C17: 0.09355501857 | D17: 0.04652135799 | E17: 0.01300856372 | F17: 0.1688322315 | G17: 0.07982853203
A18: Mastercard | B18: 0.1554796328 | C18: 0.1974729806 | D18: 0.1952103921 | E18: 0.1803419563 | F18: 0.2008574982 | G18: 0.1857869441
A19: PayPal | B19: 0.2120467203 | C19: 0.4294610548 | D19: 0.2890102008 | E19: 0.02660977272 | F19: 0.3024153957 | G19: 0.2826989884
A20: Visa | B20: 0.4270655389 | C20: 0.146824395 | D20: 0.3630857507 | E20: 0.5511601031 | F20: 0.3278948746 | G20: 0.3324906489
A21: Grand Total | B21: 1 | C21: 1 | D21: 1 | E21: 1 | F21: 1 | G21: 1
A25: Sum of Sales | B25: Customer Age
A26: Payment Method | B26: 15-24 | C26: 25-34 | D26: 35-44 | E26: 45-54 | F26: 55-65 | G26: Grand Total
A27: American Express | B27: 0.3268317219 | C27: 0.3084166993 | D27: 0.1489129827 | E27: 0.2158385961 | F27: 0 | G27: 1
A28: Discover | B28: 0.1290941712 | C28: 0.3246964576 | D28: 0.0974256269 | E28: 0.01831685234 | F28: 0.430466892 | G28: 1
A29: Mastercard | B29: 0.2007027734 | C29: 0.294483587 | D29: 0.1756575055 | E29: 0.1091091629 | F29: 0.2200469711 | G29: 1
A30: PayPal | B30: 0.1798880707 | C30: 0.4208895434 | D30: 0.170910162 | E30: 0.0105802651 | F30: 0.2177319588 | G30: 1
A31: Visa | B31: 0.3080421542 | C31: 0.1223453278 | D31: 0.1825613079 | E31: 0.1863279372 | F31: 0.200723273 | G31: 1
A32: Grand Total | B32: 0.2398253345 | C32: 0.2770566664 | D32: 0.1671779397 | E32: 0.1124034493 | F32: 0.2035366101 | G32: 1
A34: Region | B34: Mid West
A36: Sum of Sales | B36: Customer Age
A37: Payment Method | B37: 15-24 | C37: 25-34 | D37: 35-44 | E37: 45-54 | F37: 55-65 | G37: Grand Total
A38: American Express | B38: 369.25 | E38: 114.75 | G38: 484
A39: Discover | B39: 29.95 | F39: 306.35 | G39: 336.3
A40: Mastercard | B40: 160.65 | C40: 345.3 | D40: 88.8 | E40: 139.65 | F40: 214.5 | G40: 948.9
A41: PayPal | B41: 259.5 | C41: 365.2 | D41: 156.65 | E41: 19.95 | F41: 291.35 | G41: 1092.65
A42: Visa | B42: 344.2 | C42: 452 | D42: 146.7 | E42: 175.6 | F42: 69.85 | G42: 1188.35
A43: Grand Total | B43: 1163.55 | C43: 1162.5 | D43: 392.15 | E43: 449.95 | F43: 882.05 | G43: 4050.2

Sheet (18)
A1: Topic: | B1: =INDIRECT("'Topics'!B"&SUBSTITUTE(REPLACE(CELL("filename",A1),1,SEARCH("(",CELL("filename",A1)),""),")","")+3) -> Creating & Using Defined Names With Keyboard
A3: InvoiceDate | B3: Units | D3: Criteria
A4: 2011-06-06 | B4: 18 | D4: 2011-06-06
A5: 2011-06-12 | B5: 19 | D5: Sum
A6: 2011-06-12 | B6: 18
A7: 2011-06-06 | B7: 13 | F7: Revenue | G7: TotalExpenses | H7: Net Income
A8: 2011-06-10 | B8: 18 | D8: Criteria | F8: 1000 | G8: 950
A9: 2011-06-06 | B9: 25 | D9: =D4 -> 2011-06-06
A10: 2011-06-12 | B10: 18 | D10: Sum
A11: 2011-06-13 | B11: 17 | D11: =SUMIF(A4:A15,D4,B4:B15) -> 81
A12: 2011-06-06 | B12: 25
A13: 2011-06-15 | B13: 10 | D13: Notes:
A14: 2011-06-12 | B14: 20 | D14: Ctrl + F3 = Name Manager
A15: 2011-06-12 | B15: 11 | D15: Ctrl + Shift + F3 = Create Names From Selection
D16: Paste Defined Name or create List of Names = F3

Sheet (18an)
A1: Topic: | B1: ='(18)'!B1 -> Creating & Using Defined Names With Keyboard
A3: InvoiceDate | B3: Units | D3: Criteria
A4: 2011-06-06 | B4: 18 | D4: 2011-06-06
A5: 2011-06-12 | B5: 19 | D5: Sum
A6: 2011-06-12 | B6: 18 | D6: =SUMIFS(UnitsAN,InvoiceDateAN,D4) -> 81
A7: 2011-06-06 | B7: 13 | F7: Revenue | G7: TotalExpenses | H7: Net Income
A8: 2011-06-10 | B8: 18 | D8: Criteria | F8: 1000 | G8: 950 | H8: =RevenueAN-TotalExpensesAN -> 50
A9: 2011-06-06 | B9: 25 | D9: =D4 -> 2011-06-06
A10: 2011-06-12 | B10: 18 | D10: Sum
A11: 2011-06-13 | B11: 17 | D11: =SUMIF(A4:A15,D4,B4:B15) -> 81
A12: 2011-06-06 | B12: 25
A13: 2011-06-15 | B13: 10 | D13: Notes:
A14: 2011-06-12 | B14: 20 | D14: Ctrl + F3 = Name Manager
A15: 2011-06-12 | B15: 11 | D15: Ctrl + Shift + F3 = Create Names From Selection
D16: Paste Defined Name or create List of Names = F3

Sheet (19)
A1: Topic: | B1: =INDIRECT("'Topics'!B"&SUBSTITUTE(REPLACE(CELL("filename",A1),1,SEARCH("(",CELL("filename",A1)),""),")","")+3) -> Recorded Macro For Variable Height Tables: Using Relative & Absolute Cell References
A3: Notes:
A4: In Excel 2007 or later, you must use the file extension ".xlsm" if you want to record a Macro.
A5: In Excel 2010, to show the Developer Ribbon Tab, Right-click any Ribbon Tab and point to "Customize Ribbon".
A6: The MACRO recorder is like a tape recorder: it will follow your actions in Excel and instead of recording the sound or
A7: visual of your actions, it writes the code that represents your actions.
A8: Recording an Absolute MACRO: 1) The Relative/Absolute recording button must be off; 2) The MACRO records your
A9: actions absolutely, that is to say when you click in the cell A1, it records cell A1, not a relative position.
A10: Recording an Relative MACRO: 1) The Relative/Absolute recording button must be on; 2) The MACRO records your
A11: actions relatively that is to say when you click in the cell 4 rows above, it will always click in the cell 4 above from
A12: the relative starting point.
A13: Alt + F8 = Opens List of Macros
A14: Alt + F11 = opens VBA Editor
A15: When the Macro Recorder is on, the keyboard "Ctrl + Arrow" records "move to end of correct region".
A18: For more about Basic Recorded Macros, see:
A19: Excel Recorded Macros - Excel Macro Recorder
A20: http://www.youtube.com/course?list=EC68B3F66EEB526D5B

Sheet M(1)
A1: Date | B1: Time | C1: Temp (F)
A2: 2009-04-01 | B2: 17:07:18.708 | C2: 42.92
A3: 2009-04-02 | B3: 23:49:58.762 | C3: 42.61
A4: 2009-04-03 | B4: 11:59:10.701 | C4: 49.69
A5: 2009-04-04 | B5: 22:41:23.238 | C5: 44.58
A6: 2009-04-05 | B6: 00:20:05.128 | C6: 43.03
A7: 2009-04-06 | B7: 11:49:22.327 | C7: 43.94
A8: 2009-04-07 | B8: 20:02:30.344 | C8: 43.74
A9: 2009-04-08 | B9: 22:23:35.341 | C9: 48.37
A10: 2009-04-09 | B10: 00:44:26.639 | C10: 42.56
A11: 2009-04-10 | B11: 08:53:54.036 | C11: 41.18
A12: 2009-04-11 | B12: 05:51:37.917 | C12: 47.98
A13: 2009-04-12 | B13: 05:19:06.640 | C13: 47.62
A14: 2009-04-13 | B14: 17:34:57.066 | C14: 44.99
A15: 2009-04-14 | B15: 11:46:21.218 | C15: 43.41
A16: 2009-04-15 | B16: 06:29:31.734 | C16: 41.82
A17: 2009-04-16 | B17: 11:52:54.386 | C17: 49.31
A18: 2009-04-17 | B18: 17:27:17.793 | C18: 42.77
A19: 2009-04-18 | B19: 01:52:24.064 | C19: 45.77
A20: 2009-04-19 | B20: 00:37:02.355 | C20: 42.04
A21: 2009-04-20 | B21: 23:57:22.639 | C21: 41.81

Sheet M(2)
A1: Date | B1: Time | C1: Temp (F)
A2: 2009-04-01 | B2: 17:07:18.708 | C2: 42.92
A3: 2009-04-02 | B3: 23:49:58.762 | C3: 42.61
A4: 2009-04-03 | B4: 11:59:10.701 | C4: 49.69
A5: 2009-04-04 | B5: 22:41:23.238 | C5: 44.58
A6: 2009-04-05 | B6: 00:20:05.128 | C6: 43.03
A7: 2009-04-06 | B7: 11:49:22.327 | C7: 43.94
A8: 2009-04-07 | B8: 20:02:30.344 | C8: 43.74
A9: 2009-04-08 | B9: 22:23:35.341 | C9: 48.37
A10: 2009-04-09 | B10: 00:44:26.639 | C10: 42.56
A11: 2009-04-10 | B11: 08:53:54.036 | C11: 41.18
A12: 2009-04-11 | B12: 05:51:37.917 | C12: 47.98

Sheet M(3)
A1: Date | B1: Time | C1: Temp (F) | F1: Relative & Absolute Macro because the table is different sizes each time, and sometimes we are moving relatively and sometimes absolutely.
A2: 2009-06-01 | B2: 17:07:18.708 | C2: 42.92
A3: 2009-06-02 | B3: 23:49:58.762 | C3: 42.61
A4: 2009-06-03 | B4: 11:59:10.701 | C4: 49.69
A5: 2009-06-04 | B5: 22:41:23.238 | C5: 44.58
A6: 2009-06-05 | B6: 00:20:05.128 | C6: 43.03
A7: 2009-06-06 | B7: 11:49:22.327 | C7: 43.94
A8: 2009-06-07 | B8: 20:02:30.344 | C8: 43.74
A9: 2009-06-08 | B9: 22:23:35.341 | C9: 48.37
A10: 2009-06-09 | B10: 00:44:26.639 | C10: 42.56
A11: 2009-06-10 | B11: 08:53:54.036 | C11: 41.18
A12: 2009-06-11 | B12: 05:51:37.917 | C12: 47.98
A13: 2009-06-12 | B13: 05:19:06.640 | C13: 47.62
A14: 2009-06-13 | B14: 17:34:57.066 | C14: 44.99
A15: 2009-06-14 | B15: 11:46:21.218 | C15: 43.41
A16: 2009-06-15 | B16: 06:29:31.734 | C16: 41.82
A17: 2009-06-16 | B17: 11:52:54.386 | C17: 49.31
A18: 2009-06-17 | B18: 17:27:17.793 | C18: 42.77
A19: 2009-06-18 | B19: 01:52:24.064 | C19: 45.77
A20: 2009-06-19 | B20: 00:37:02.355 | C20: 42.04
A21: 2009-06-20 | B21: 23:57:22.639 | C21: 41.81
A22: 2009-06-21 | B22: 11:52:54.386 | C22: 39.621
A23: 2009-06-22 | B23: 17:27:17.793 | C23: 38.048
A24: 2009-06-23 | B24: 01:52:24.064 | C24: 36.475
A25: 2009-06-24 | B25: 00:37:02.355 | C25: 34.902
A26: 2009-06-25 | B26: 23:57:22.639 | C26: 33.329
A27: 2009-06-26 | B27: 11:52:54.386 | C27: 31.756
A28: 2009-06-27 | B28: 17:27:17.793 | C28: 30.183
A29: 2009-06-28 | B29: 01:52:24.064 | C29: 28.61
A30: 2009-06-29 | B30: 02:52:24.064 | C30: 29.61
A31: 2009-06-30 | B31: 03:52:24.064 | C31: 30.61
A32: 2009-07-01 | B32: 04:52:24.064 | C32: 31.61
A33: 2009-07-02 | B33: 05:52:24.064 | C33: 32.61
A34: 2009-07-03 | B34: 06:52:24.064 | C34: 33.61
A35: 2009-07-04 | B35: 07:52:24.064 | C35: 34.61
A36: 2009-07-05 | B36: 08:52:24.064 | C36: 35.61
A37: 2009-07-06 | B37: 09:52:24.064 | C37: 36.61
A38: 2009-07-07 | B38: 10:52:24.064 | C38: 37.61
A39: 2009-07-08 | B39: 11:52:24.064 | C39: 38.61
A40: 2009-07-09 | B40: 12:52:24.064 | C40: 39.61
A41: 2009-07-10 | B41: 13:52:24.064 | C41: 40.61
A42: 2009-07-11 | B42: 14:52:24.064 | C42: 41.61
A43: 2009-07-12 | B43: 15:52:24.064 | C43: 42.61
A44: 2009-07-13 | B44: 16:52:24.064 | C44: 43.61
A45: 2009-07-14 | B45: 17:52:24.064 | C45: 44.61
A46: 2009-07-15 | B46: 18:52:24.064 | C46: 45.61
A47: 2009-07-16 | B47: 19:52:24.064 | C47: 46.61
A48: 2009-07-17 | B48: 20:52:24.064 | C48: 47.61
A49: 2009-07-18 | B49: 21:52:24.064 | C49: 48.61
A50: 2009-07-19 | B50: 22:52:24.064 | C50: 49.61
A51: 2009-07-20 | B51: 23:52:24.064 | C51: 50.61
A52: 2009-07-21 | B52: 1.03638963 | C52: 51.61
A53: 2009-07-22 | B53: 1.078056297 | C53: 52.61
A54: 2009-07-23 | B54: 1.119722963 | C54: 53.61
A55: 2009-07-24 | B55: 1.16138963 | C55: 54.61
A56: 2009-07-25 | B56: 1.203056297 | C56: 55.61
A57: 2009-07-26 | B57: 1.244722963 | C57: 56.61
A58: 2009-07-27 | B58: 1.28638963 | C58: 57.61
A59: 2009-07-28 | B59: 1.328056297 | C59: 58.61
A60: 2009-07-29 | B60: 1.369722963 | C60: 59.61
A61: 2009-07-30 | B61: 1.41138963 | C61: 60.61
A62: 2009-07-31 | B62: 1.453056297 | C62: 61.61
A63: 2009-08-01 | B63: 1.494722963 | C63: 62.61
A64: 2009-08-02 | B64: 1.53638963 | C64: 63.61
A65: 2009-08-03 | B65: 1.578056297 | C65: 64.61
A66: 2009-08-04 | B66: 1.619722963 | C66: 65.61
A67: 2009-08-05 | B67: 1.66138963 | C67: 66.61
A68: 2009-08-06 | B68: 1.703056297 | C68: 67.61
A69: 2009-08-07 | B69: 1.744722963 | C69: 68.61
A70: 2009-08-08 | B70: 1.78638963 | C70: 69.61
A71: 2009-08-09 | B71: 1.828056297 | C71: 70.61
A72: 2009-08-10 | B72: 1.869722963 | C72: 71.61
A73: 2009-08-11 | B73: 1.91138963 | C73: 72.61
A74: 2009-08-12 | B74: 1.953056297 | C74: 73.61
A75: 2009-08-13 | B75: 1.994722963 | C75: 74.61
A76: 2009-08-14 | B76: 2.03638963 | C76: 75.61
A77: 2009-08-15 | B77: 2.078056297 | C77: 76.61
A78: 2009-08-16 | B78: 2.119722963 | C78: 77.61
A79: 2009-08-17 | B79: 2.16138963 | C79: 78.61
A80: 2009-08-18 | B80: 2.203056297 | C80: 79.61
A81: 2009-08-19 | B81: 2.244722963 | C81: 80.61
A82: 2009-08-20 | B82: 2.28638963 | C82: 81.61
A83: 2009-08-21 | B83: 2.328056297 | C83: 82.61
A84: 2009-08-22 | B84: 2.369722963 | C84: 83.61
A85: 2009-08-23 | B85: 2.41138963 | C85: 84.61
A86: 2009-08-24 | B86: 2.453056297 | C86: 85.61
A87: 2009-08-25 | B87: 2.494722963 | C87: 86.61
A88: 2009-08-26 | B88: 2.53638963 | C88: 87.61
A89: 2009-08-27 | B89: 2.578056297 | C89: 88.61
A90: 2009-08-28 | B90: 2.619722963 | C90: 89.61
A91: 2009-08-29 | B91: 2.66138963 | C91: 90.61
A92: 2009-08-30 | B92: 2.703056297 | C92: 91.61
A93: 2009-08-31 | B93: 2.744722963 | C93: 92.61
A94: 2009-09-01 | B94: 2.78638963 | C94: 93.61

Sheet M(4)
A1: Date | B1: Time | C1: Temp (F) | F1: Relative & Absolute Macro because the table is different sizes each time, and sometimes we are moving relatively and sometimes absolutely.
A2: 2009-06-01 | B2: 17:07:18.708 | C2: 42.92
A3: 2009-06-02 | B3: 23:49:58.762 | C3: 42.61
A4: 2009-06-03 | B4: 11:59:10.701 | C4: 49.69
A5: 2009-06-04 | B5: 22:41:23.238 | C5: 44.58
A6: 2009-06-05 | B6: 00:20:05.128 | C6: 43.03
A7: 2009-06-06 | B7: 11:49:22.327 | C7: 43.94
A8: 2009-06-07 | B8: 20:02:30.344 | C8: 43.74

Sheet M(5)
A1: Date | B1: Time | C1: Temp (F) | F1: Relative & Absolute Macro because the table is different sizes each time, and sometimes we are moving relatively and sometimes absolutely.
A2: 2009-06-01 | B2: 17:07:18.708 | C2: 42.92
A3: 2009-06-02 | B3: 23:49:58.762 | C3: 42.61
A4: 2009-06-03 | B4: 11:59:10.701 | C4: 49.69
A5: 2009-06-04 | B5: 22:41:23.238 | C5: 44.58
A6: 2009-06-05 | B6: 00:20:05.128 | C6: 43.03
A7: 2009-06-06 | B7: 11:49:22.327 | C7: 43.94
A8: 2009-06-07 | B8: 20:02:30.344 | C8: 43.74
A9: 2009-06-08 | B9: 22:23:35.341 | C9: 48.37
A10: 2009-06-09 | B10: 00:44:26.639 | C10: 42.56
A11: 2009-06-10 | B11: 08:53:54.036 | C11: 41.18
A12: 2009-06-11 | B12: 05:51:37.917 | C12: 47.98
A13: 2009-06-12 | B13: 05:19:06.640 | C13: 47.62
A14: 2009-06-13 | B14: 17:34:57.066 | C14: 44.99
A15: 2009-06-14 | B15: 11:46:21.218 | C15: 43.41
A16: 2009-06-15 | B16: 06:29:31.734 | C16: 41.82
A17: 2009-06-16 | B17: 11:52:54.386 | C17: 49.31
A18: 2009-06-17 | B18: 17:27:17.793 | C18: 42.77
A19: 2009-06-18 | B19: 01:52:24.064 | C19: 45.77
A20: 2009-06-19 | B20: 00:37:02.355 | C20: 42.04
A21: 2009-06-20 | B21: 23:57:22.639 | C21: 41.81
A22: 2009-06-21 | B22: 11:52:54.386 | C22: 39.621
A23: 2009-06-22 | B23: 17:27:17.793 | C23: 38.048
A24: 2009-06-23 | B24: 01:52:24.064 | C24: 36.475
A25: 2009-06-24 | B25: 00:37:02.355 | C25: 34.902
A26: 2009-06-25 | B26: 23:57:22.639 | C26: 33.329
A27: 2009-06-26 | B27: 11:52:54.386 | C27: 31.756
A28: 2009-06-27 | B28: 17:27:17.793 | C28: 30.183
A29: 2009-06-28 | B29: 01:52:24.064 | C29: 28.61
A30: 2009-06-29 | B30: 02:52:24.064 | C30: 29.61
A31: 2009-06-30 | B31: 03:52:24.064 | C31: 30.61
A32: 2009-07-01 | B32: 04:52:24.064 | C32: 31.61
A33: 2009-07-02 | B33: 05:52:24.064 | C33: 32.61
A34: 2009-07-03 | B34: 06:52:24.064 | C34: 33.61
A35: 2009-07-04 | B35: 07:52:24.064 | C35: 34.61
A36: 2009-07-05 | B36: 08:52:24.064 | C36: 35.61
A37: 2009-07-06 | B37: 09:52:24.064 | C37: 36.61
A38: 2009-07-07 | B38: 10:52:24.064 | C38: 37.61
A39: 2009-07-08 | B39: 11:52:24.064 | C39: 38.61
A40: 2009-07-09 | B40: 12:52:24.064 | C40: 39.61
A41: 2009-07-10 | B41: 13:52:24.064 | C41: 40.61
A42: 2009-07-11 | B42: 14:52:24.064 | C42: 41.61
A43: 2009-07-12 | B43: 15:52:24.064 | C43: 42.61
A44: 2009-07-13 | B44: 16:52:24.064 | C44: 43.61
A45: 2009-07-14 | B45: 17:52:24.064 | C45: 44.61
A46: 2009-07-15 | B46: 18:52:24.064 | C46: 45.61
A47: 2009-07-16 | B47: 19:52:24.064 | C47: 46.61

Sheet M(6)
A1: Date | B1: Time | C1: Temp (F) | F1: Relative & Absolute Macro because the table is different sizes each time, and sometimes we are moving relatively and sometimes absolutely.
A2: 2009-06-01 | B2: 17:07:18.708 | C2: 42.92
A3: 2009-06-02 | B3: 23:49:58.762 | C3: 42.61
A4: 2009-06-03 | B4: 11:59:10.701 | C4: 49.69
A5: 2009-06-04 | B5: 22:41:23.238 | C5: 44.58
A6: 2009-06-05 | B6: 00:20:05.128 | C6: 43.03
A7: 2009-06-06 | B7: 11:49:22.327 | C7: 43.94
A8: 2009-06-07 | B8: 20:02:30.344 | C8: 43.74
A9: 2009-06-08 | B9: 22:23:35.341 | C9: 48.37
A10: 2009-06-09 | B10: 00:44:26.639 | C10: 42.56
A11: 2009-06-10 | B11: 08:53:54.036 | C11: 41.18
A12: 2009-06-11 | B12: 05:51:37.917 | C12: 47.98
A13: 2009-06-12 | B13: 05:19:06.640 | C13: 47.62
A14: 2009-06-13 | B14: 17:34:57.066 | C14: 44.99
A15: 2009-06-14 | B15: 11:46:21.218 | C15: 43.41
A16: 2009-06-15 | B16: 06:29:31.734 | C16: 41.82
A17: 2009-06-16 | B17: 11:52:54.386 | C17: 49.31
A18: 2009-06-17 | B18: 17:27:17.793 | C18: 42.77
A19: 2009-06-18 | B19: 01:52:24.064 | C19: 45.77
A20: 2009-06-19 | B20: 00:37:02.355 | C20: 42.04
A21: 2009-06-20 | B21: 23:57:22.639 | C21: 41.81
A22: 2009-06-21 | B22: 11:52:54.386 | C22: 39.621
A23: 2009-06-22 | B23: 17:27:17.793 | C23: 38.048
A24: 2009-06-23 | B24: 01:52:24.064 | C24: 36.475

Sheet (20)
A1: Topic: | B1: =INDIRECT("'Topics'!B"&SUBSTITUTE(REPLACE(CELL("filename",A1),1,SEARCH("(",CELL("filename",A1)),""),")","")+3) -> Number Formatting For Formula Inputs
B3: 157.75 | D3: Notes:
D4: Custom Number Formatting: Text in quotes appears on the surface of the spreadsheet,
D5: but it is not actually in the cell and will not affect formula calculations
D6: Formulas calculate without considering Number Formatting
A7: Units | B7: Sales
A8: 15
A9: 45 | D9: If range is highlighted, Ctrl + Enter, puts formulas into all the cells
A10: 68
A11: 15
A12: 120
A13: 77
A14: 12
A16: For more about Custom Number Formatting:
A17: Highline Excel Class 27: Custom Number Format & TEXT function
A18: http://www.youtube.com/watch?v=u9MR0qTyspw

Sheet (20an)
A1: Topic: | B1: ='(20)'!B1 -> Number Formatting For Formula Inputs
B3: 157.75 | D3: Notes:
D4: Custom Number Formatting: Text in quotes appears on the surface of the spreadsheet,
D5: but it is not actually in the cell and will not affect formula calculations
D6: Formulas calculate without considering Number Formatting
A7: Units | B7: Sales
A8: 15 | B8: =A8*$B$3 -> 2366.25
A9: 45 | B9: 7098.75 | D9: If range is highlighted, Ctrl + Enter, puts formulas into all the cells
A10: 68 | B10: 10727
A11: 15 | B11: 2366.25
A12: 120 | B12: 18930
A13: 77 | B13: 12146.75
A14: 12 | B14: 1893
A16: For more about Custom Number Formatting:
A17: Highline Excel Class 27: Custom Number Format & TEXT function
A18: http://www.youtube.com/watch?v=u9MR0qTyspw
